Workbook

Sheet Main
B10: 2024-02-12
B12: Sheet No. | C12: Template Name | D12: Summary
B13: 1 | C13: Future Intra | D13: For Intraday trading in F&O segment
B14: 2 | C14: Cash Intra | D14: For Intraday trading in cash market segment
B15: 3 | C15: Mid-cap Intra | D15: For Intraday trading in Mid-cap stocks
B16: 4 | C16: Bulk Deals | D16: Reveals Bulk Deals carried on NSE & BSE
B17: 5 | C17: Call Tracker
K27: `

Sheet Future Intra
M5: Back to Main Page
A6: FOR INTRA DAY TRADING | L6: =Main!B10 -> 2024-02-12
A9: Sr.no | B9: Sector | C9: Scrip | D9: Expiry Date | E9: CLOSE RATE | F9: Pivot Point | G9: Supports | J9: Resistances
E10: Point | F10: Point | G10: S1 | H10: S2 | I10: S3 | J10: R1 | K10: R2 | L10: R3 | M10: HIGH | N10: LOW | O10: OI | P10: % Change in OI
A11: 1 | B11: Index | C11: NIFTY | D11: 2024-02-29 | E11: 21842.60 | F11: 21794.73 | G11: 21722.07 | H11: 21601.53 | I11: 21528.87 | J11: 21915.27 | K11: 21987.93 | L11: 22108.47 | M11: 21867.4 | N11: 21674.2 | O11: 13041000 | P11: -3.89%
A12: 2 | B12: Index | C12: BANKNIFTY | D12: 2024-02-29 | E12: 45899.55 | F12: 45661.57 | G12: 45348.13 | H12: 44796.72 | I12: 44483.28 | J12: 46212.98 | K12: 46526.42 | L12: 47077.83 | M12: 45975 | N12: 45110.15 | O12: 3404730 | P12: -5.45%
A13: 3 | B13: Index | C13: FINNIFTY | D13: 2024-02-27 | E13: 20297.55 | F13: 20227.57 | G13: 20132.98 | H13: 19968.42 | I13: 19873.83 | J13: 20392.13 | K13: 20486.72 | L13: 20651.28 | M13: 20322.15 | N13: 20063 | O13: 84680 | P13: 0.43%
A14: 4 | B14: Index | C14: MIDCPNIFTY | D14: 2024-02-26 | E14: 10755.65 | F14: 10730.03 | G14: 10613.77 | H14: 10471.88 | I14: 10355.62 | J14: 10871.92 | K14: 10988.18 | L14: 11130.07 | M14: 10846.3 | N14: 10588.15 | O14: 807825 | P14: -1.89%
A15: 5 | B15: Chemical | C15: AARTIIND | D15: 2024-02-29 | E15: 666.25 | F15: 653.63 | G15: 638.92 | H15: 611.58 | I15: 596.87 | J15: 680.97 | K15: 695.68 | L15: 723.02 | M15: 668.35 | N15: 626.3 | O15: 13365000 | P15: -2.88%
A16: 6 | B16: Capital_Goods | C16: ABB | D16: 2024-02-29 | E16: 4503.50 | F16: 4476.65 | G16: 4442.25 | H16: 4381.00 | I16: 4346.60 | J16: 4537.90 | K16: 4572.30 | L16: 4633.55 | M16: 4511.05 | N16: 4415.4 | O16: 1420250 | P16: -0.78%
A17: 7 | B17: Pharma | C17: ABBOTINDIA | D17: 2024-02-29 | E17: 28242.00 | F17: 28317.97 | G17: 28090.38 | H17: 27938.77 | I17: 27711.18 | J17: 28469.58 | K17: 28697.17 | L17: 28848.78 | M17: 28545.55 | N17: 28166.35 | O17: 185200 | P17: 2.09%
A18: 8 | B18: Others | C18: ABCAPITAL | D18: 2024-02-29 | E18: 188.80 | F18: 187.10 | G18: 184.50 | H18: 180.20 | I18: 177.60 | J18: 191.40 | K18: 194.00 | L18: 198.30 | M18: 189.7 | N18: 182.8 | O18: 61938000 | P18: 1.51%
A19: 9 | B19: Textile | C19: ABFRL | D19: 2024-02-29 | E19: 254.00 | F19: 254.82 | G19: 247.13 | H19: 240.27 | I19: 232.58 | J19: 261.68 | K19: 269.37 | L19: 276.23 | M19: 262.5 | N19: 247.95 | O19: 48412000 | P19: 6.54%
A20: 10 | B20: Cement | C20: ACC | D20: 2024-02-29 | E20: 2640.60 | F20: 2605.00 | G20: 2552.05 | H20: 2463.50 | I20: 2410.55 | J20: 2693.55 | K20: 2746.50 | L20: 2835.05 | M20: 2657.95 | N20: 2516.45 | O20: 4516200 | P20: 12.87%
A21: 11 | B21: Others | C21: ADANIENT | D21: 2024-02-29 | E21: 3231.15 | F21: 3203.45 | G21: 3163.90 | H21: 3096.65 | I21: 3057.10 | J21: 3270.70 | K21: 3310.25 | L21: 3377.50 | M21: 3243 | N21: 3136.2 | O21: 13865100 | P21: 0.44%
A22: 12 | B22: Others | C22: ADANIPORTS | D22: 2024-02-29 | E22: 1275.50 | F22: 1263.27 | G22: 1247.48 | H22: 1219.47 | I22: 1203.68 | J22: 1291.28 | K22: 1307.07 | L22: 1335.08 | M22: 1279.05 | N22: 1235.25 | O22: 37365600 | P22: 0.41%
A23: 13 | B23: Pharma | C23: ALKEM | D23: 2024-02-29 | E23: 5306.80 | F23: 5320.40 | G23: 5219.15 | H23: 5131.50 | I23: 5030.25 | J23: 5408.05 | K23: 5509.30 | L23: 5596.95 | M23: 5421.65 | N23: 5232.75 | O23: 1464200 | P23: -3.07%
A24: 14 | B24: Cement | C24: AMBUJACEM | D24: 2024-02-29 | E24: 579.95 | F24: 573.32 | G24: 561.63 | H24: 543.32 | I24: 531.63 | J24: 591.63 | K24: 603.32 | L24: 621.63 | M24: 585 | N24: 555 | O24: 51840000 | P24: -0.47%
A25: 15 | B25: Others | C25: APOLLOHOSP | D25: 2024-02-29 | E25: 6461.75 | F25: 6394.33 | G25: 6293.72 | H25: 6125.68 | I25: 6025.07 | J25: 6562.37 | K25: 6662.98 | L25: 6831.02 | M25: 6494.95 | N25: 6226.3 | O25: 2084125 | P25: 1.67%
A26: 16 | B26: Automobile | C26: APOLLOTYRE | D26: 2024-02-29 | E26: 510.70 | F26: 514.45 | G26: 496.95 | H26: 483.20 | I26: 465.70 | J26: 528.20 | K26: 545.70 | L26: 559.45 | M26: 531.95 | N26: 500.7 | O26: 10660700 | P26: -7.62%
A27: 17 | B27: Automobile | C27: ASHOKLEY | D27: 2024-02-29 | E27: 173.20 | F27: 173.07 | G27: 170.13 | H27: 167.07 | I27: 164.13 | J27: 176.13 | K27: 179.07 | L27: 182.13 | M27: 176 | N27: 170 | O27: 115050000 | P27: -3.20%
A28: 18 | B28: FMCG | C28: ASIANPAINT | D28: 2024-02-29 | E28: 2960.40 | F28: 2948.00 | G28: 2931.40 | H28: 2902.40 | I28: 2885.80 | J28: 2977.00 | K28: 2993.60 | L28: 3022.60 | M28: 2964.6 | N28: 2919 | O28: 8802200 | P28: -1.28%
A29: 19 | B29: Others | C29: ASTRAL | D29: 2024-02-29 | E29: 1861.95 | F29: 1864.92 | G29: 1842.58 | H29: 1823.22 | I29: 1800.88 | J29: 1884.28 | K29: 1906.62 | L29: 1925.98 | M29: 1887.25 | N29: 1845.55 | O29: 2816358 | P29: 2.91%
A30: 20 | B30: Others | C30: ATUL | D30: 2024-02-29 | E30: 6379.95 | F30: 6307.23 | G30: 6222.72 | H30: 6065.48 | I30: 5980.97 | J30: 6464.47 | K30: 6548.98 | L30: 6706.22 | M30: 6391.75 | N30: 6150 | O30: 371925 | P30: 9.74%
A31: 21 | B31: Banking | C31: AUBANK | D31: 2024-02-29 | E31: 606.45 | F31: 602.73 | G31: 597.97 | H31: 589.48 | I31: 584.72 | J31: 611.22 | K31: 615.98 | L31: 624.47 | M31: 607.5 | N31: 594.25 | O31: 21706000 | P31: 3.30%
A32: 22 | B32: Pharma | C32: AUROPHARMA | D32: 2024-02-29 | E32: 1002.60 | F32: 999.25 | G32: 978.50 | H32: 954.40 | I32: 933.65 | J32: 1023.35 | K32: 1044.10 | L32: 1068.20 | M32: 1020 | N32: 975.15 | O32: 27236000 | P32: -4.10%
A33: 23 | B33: Banking | C33: AXISBANK | D33: 2024-02-29 | E33: 1055.95 | F33: 1051.12 | G33: 1043.73 | H33: 1031.52 | I33: 1024.13 | J33: 1063.33 | K33: 1070.72 | L33: 1082.93 | M33: 1058.5 | N33: 1038.9 | O33: 51498750 | P33: -0.07%
A34: 24 | B34: Automobile | C34: BAJAJ-AUTO | D34: 2024-02-29 | E34: 7795.55 | F34: 7760.47 | G34: 7716.38 | H34: 7637.22 | I34: 7593.13 | J34: 7839.63 | K34: 7883.72 | L34: 7962.88 | M34: 7804.55 | N34: 7681.3 | O34: 1753750 | P34: -3.26%
A35: 25 | B35: Finance | C35: BAJAJFINSV | D35: 2024-02-29 | E35: 1576.25 | F35: 1580.08 | G35: 1566.17 | H35: 1556.08 | I35: 1542.17 | J35: 1590.17 | K35: 1604.08 | L35: 1614.17 | M35: 1594 | N35: 1570 | O35: 9367000 | P35: -0.23%
A36: 26 | B36: Finance | C36: BAJFINANCE | D36: 2024-02-29 | E36: 6669.40 | F36: 6652.07 | G36: 6611.38 | H36: 6553.37 | I36: 6512.68 | J36: 6710.08 | K36: 6750.77 | L36: 6808.78 | M36: 6692.75 | N36: 6594.05 | O36: 8595875 | P36: -2.45%
A37: 27 | B37: Automobile | C37: BALKRISIND | D37: 2024-02-29 | E37: 2310.75 | F37: 2312.92 | G37: 2286.88 | H37: 2263.02 | I37: 2236.98 | J37: 2336.78 | K37: 2362.82 | L37: 2386.68 | M37: 2338.95 | N37: 2289.05 | O37: 2213700 | P37: -0.30%
A38: 28 | B38: Others | C38: BALRAMCHIN | D38: 2024-02-29 | E38: 384.30 | F38: 385.57 | G38: 379.13 | H38: 373.97 | I38: 367.53 | J38: 390.73 | K38: 397.17 | L38: 402.33 | M38: 392 | N38: 380.4 | O38: 12905600 | P38: -4.36%
A39: 29 | B39: Banking | C39: BANDHANBNK | D39: 2024-02-29 | E39: 216.90 | F39: 215.33 | G39: 213.27 | H39: 209.63 | I39: 207.57 | J39: 218.97 | K39: 221.03 | L39: 224.67 | M39: 217.4 | N39: 211.7 | O39: 107302500 | P39: 1.73%
A40: 30 | B40: Banking | C40: BANKBARODA | D40: 2024-02-29 | E40: 264.95 | F40: 260.15 | G40: 252.95 | H40: 240.95 | I40: 233.75 | J40: 272.15 | K40: 279.35 | L40: 291.35 | M40: 267.35 | N40: 248.15 | O40: 147443400 | P40: 2.93%
A41: 31 | B41: FMCG | C41: BATAINDIA | D41: 2024-02-29 | E41: 1427.55 | F41: 1421.33 | G41: 1412.12 | H41: 1396.68 | I41: 1387.47 | J41: 1436.77 | K41: 1445.98 | L41: 1461.42 | M41: 1430.55 | N41: 1405.9 | O41: 2664375 | P41: 0.03%
A42: 32 | B42: Capital_Goods | C42: BEL | D42: 2024-02-29 | E42: 181.50 | F42: 181.52 | G42: 176.98 | H42: 172.47 | I42: 167.93 | J42: 186.03 | K42: 190.57 | L42: 195.08 | M42: 186.05 | N42: 177 | O42: 120834300 | P42: -1.42%
A43: 33 | B43: FMCG | C43: BERGEPAINT | D43: 2024-02-29 | E43: 545.25 | F43: 543.78 | G43: 538.87 | H43: 532.48 | I43: 527.57 | J43: 550.17 | K43: 555.08 | L43: 561.47 | M43: 548.7 | N43: 537.4 | O43: 14715360 | P43: 3.92%
A44: 34 | B44: Automobile | C44: BHARATFORG | D44: 2024-02-29 | E44: 1320.00 | F44: 1308.32 | G44: 1289.48 | H44: 1258.97 | I44: 1240.13 | J44: 1338.83 | K44: 1357.67 | L44: 1388.18 | M44: 1327.15 | N44: 1277.8 | O44: 7477000 | P44: 11.07%
A45: 35 | B45: Telecom | C45: BHARTIARTL | D45: 2024-02-29 | E45: 1125.35 | F45: 1130.93 | G45: 1115.87 | H45: 1106.38 | I45: 1091.32 | J45: 1140.42 | K45: 1155.48 | L45: 1164.97 | M45: 1146 | N45: 1121.45 | O45: 32089100 | P45: 0.21%
A46: 36 | B46: Capital_Goods | C46: BHEL | D46: 2024-02-29 | E46: 227.95 | F46: 227.78 | G46: 217.57 | H46: 207.18 | I46: 196.97 | J46: 238.17 | K46: 248.38 | L46: 258.77 | M46: 238 | N46: 217.4 | O46: 93024750 | P46: -0.77%
A47: 37 | B47: Pharma | C47: BIOCON | D47: 2024-02-29 | E47: 275.55 | F47: 279.72 | G47: 267.93 | H47: 260.32 | I47: 248.53 | J47: 287.33 | K47: 299.12 | L47: 306.73 | M47: 291.5 | N47: 272.1 | O47: 44235000 | P47: -11.89%
A48: 38 | B48: Automobile | C48: BOSCHLTD | D48: 2024-02-29 | E48: 25339.90 | F48: 25124.00 | G48: 24843.20 | H48: 24346.50 | I48: 24065.70 | J48: 25620.70 | K48: 25901.50 | L48: 26398.20 | M48: 25404.8 | N48: 24627.3 | O48: 182850 | P48: -3.02%
A49: 39 | B49: Oil_Gas | C49: BPCL | D49: 2024-02-29 | E49: 615.40 | F49: 611.23 | G49: 597.67 | H49: 579.93 | I49: 566.37 | J49: 628.97 | K49: 642.53 | L49: 660.27 | M49: 624.8 | N49: 593.5 | O49: 34005600 | P49: -7.75%
A50: 40 | B50: FMCG | C50: BRITANNIA | D50: 2024-02-29 | E50: 4990.25 | F50: 4957.23 | G50: 4919.67 | H50: 4849.08 | I50: 4811.52 | J50: 5027.82 | K50: 5065.38 | L50: 5135.97 | M50: 4994.8 | N50: 4886.65 | O50: 2636000 | P50: -4.10%
A51: 41 | B51: Technology | C51: BSOFT | D51: 2024-02-29 | E51: 836.40 | F51: 836.68 | G51: 821.42 | H51: 806.43 | I51: 791.17 | J51: 851.67 | K51: 866.93 | L51: 881.92 | M51: 851.95 | N51: 821.7 | O51: 6115000 | P51: 4.64%
A52: 42 | B52: Banking | C52: CANBK | D52: 2024-02-29 | E52: 573.50 | F52: 567.15 | G52: 556.45 | H52: 539.40 | I52: 528.70 | J52: 584.20 | K52: 594.90 | L52: 611.95 | M52: 577.85 | N52: 550.1 | O52: 54113400 | P52: -3.14%
A53: 43 | B53: Finance | C53: CANFINHOME | D53: 2024-02-29 | E53: 811.45 | F53: 806.75 | G53: 792.95 | H53: 774.45 | I53: 760.65 | J53: 825.25 | K53: 839.05 | L53: 857.55 | M53: 820.55 | N53: 788.25 | O53: 4502550 | P53: -0.06%
A54: 44 | B54: Others | C54: CHAMBLFERT | D54: 2024-02-29 | E54: 363.40 | F54: 360.27 | G54: 354.88 | H54: 346.37 | I54: 340.98 | J54: 368.78 | K54: 374.17 | L54: 382.68 | M54: 365.65 | N54: 351.75 | O54: 9093400 | P54: -0.40%
A55: 45 | B55: Finance | C55: CHOLAFIN | D55: 2024-02-29 | E55: 1126.20 | F55: 1124.97 | G55: 1107.33 | H55: 1088.47 | I55: 1070.83 | J55: 1143.83 | K55: 1161.47 | L55: 1180.33 | M55: 1142.6 | N55: 1106.1 | O55: 12745000 | P55: 3.69%
A56: 46 | B56: Pharma | C56: CIPLA | D56: 2024-02-29 | E56: 1439.45 | F56: 1435.57 | G56: 1422.28 | H56: 1405.12 | I56: 1391.83 | J56: 1452.73 | K56: 1466.02 | L56: 1483.18 | M56: 1448.85 | N56: 1418.4 | O56: 8946600 | P56: 1.68%
A57: 47 | B57: Others | C57: COALINDIA | D57: 2024-02-29 | E57: 451.80 | F57: 447.93 | G57: 433.87 | H57: 415.93 | I57: 401.87 | J57: 465.87 | K57: 479.93 | L57: 497.87 | M57: 462 | N57: 430 | O57: 62535900 | P57: -2.86%
A58: 48 | B58: Technology | C58: COFORGE | D58: 2024-02-29 | E58: 6533.70 | F58: 6561.28 | G58: 6463.57 | H58: 6393.43 | I58: 6295.72 | J58: 6631.42 | K58: 6729.13 | L58: 6799.27 | M58: 6659 | N58: 6491.15 | O58: 1133850 | P58: 0.15%
A59: 49 | B59: FMCG | C59: COLPAL | D59: 2024-02-29 | E59: 2542.35 | F59: 2530.93 | G59: 2511.57 | H59: 2480.78 | I59: 2461.42 | J59: 2561.72 | K59: 2581.08 | L59: 2611.87 | M59: 2550.3 | N59: 2500.15 | O59: 3465700 | P59: 0.03%
A60: 50 | B60: Others | C60: CONCOR | D60: 2024-02-29 | E60: 947.85 | F60: 945.98 | G60: 915.97 | H60: 884.08 | I60: 854.07 | J60: 977.87 | K60: 1007.88 | L60: 1039.77 | M60: 976 | N60: 914.1 | O60: 16467000 | P60: 3.72%
A61: 51 | B61: Others | C61: COROMANDEL | D61: 2024-02-29 | E61: 1086.65 | F61: 1079.37 | G61: 1069.33 | H61: 1052.02 | I61: 1041.98 | J61: 1096.68 | K61: 1106.72 | L61: 1124.03 | M61: 1089.4 | N61: 1062.05 | O61: 1320200 | P61: -1.51%
A62: 52 | B62: Capital_Goods | C62: CROMPTON | D62: 2024-02-29 | E62: 287.60 | F62: 287.67 | G62: 285.38 | H62: 283.17 | I62: 280.88 | J62: 289.88 | K62: 292.17 | L62: 294.38 | M62: 289.95 | N62: 285.45 | O62: 18153000 | P62: -0.55%
A63: 53 | B63: Banking | C63: CUB | D63: 2024-02-29 | E63: 133.25 | F63: 132.67 | G63: 131.38 | H63: 129.52 | I63: 128.23 | J63: 134.53 | K63: 135.82 | L63: 137.68 | M63: 133.95 | N63: 130.8 | O63: 44115000 | P63: -0.60%
A64: 54 | B64: Capital_Goods | C64: CUMMINSIND | D64: 2024-02-29 | E64: 2598.00 | F64: 2589.75 | G64: 2547.30 | H64: 2496.60 | I64: 2454.15 | J64: 2640.45 | K64: 2682.90 | L64: 2733.60 | M64: 2632.2 | N64: 2539.05 | O64: 4050900 | P64: -7.65%
A65: 55 | B65: FMCG | C65: DABUR | D65: 2024-02-29 | E65: 540.30 | F65: 537.00 | G65: 532.95 | H65: 525.60 | I65: 521.55 | J65: 544.35 | K65: 548.40 | L65: 555.75 | M65: 541.05 | N65: 529.65 | O65: 23305000 | P65: -2.02%
A66: 56 | B66: Cement | C66: DALBHARAT | D66: 2024-02-29 | E66: 2131.10 | F66: 2118.52 | G66: 2086.58 | H66: 2042.07 | I66: 2010.13 | J66: 2163.03 | K66: 2194.97 | L66: 2239.48 | M66: 2150.45 | N66: 2074 | O66: 3342500 | P66: -0.48%
A67: 57 | B67: Chemical | C67: DEEPAKNTR | D67: 2024-02-29 | E67: 2226.10 | F67: 2214.08 | G67: 2195.87 | H67: 2165.63 | I67: 2147.42 | J67: 2244.32 | K67: 2262.53 | L67: 2292.77 | M67: 2232.3 | N67: 2183.85 | O67: 2667300 | P67: 1.67%
A68: 58 | B68: Others | C68: DELTACORP | D68: 2024-02-29 | E68: 141.40 | F68: 141.23 | G68: 137.17 | H68: 132.93 | I68: 128.87 | J68: 145.47 | K68: 149.53 | L68: 153.77 | M68: 145.3 | N68: 137 | O68: 18372000 | P68: -4.91%
A69: 59 | B69: Pharma | C69: DIVISLAB | D69: 2024-02-29 | E69: 3660.95 | F69: 3664.92 | G69: 3622.13 | H69: 3583.32 | I69: 3540.53 | J69: 3703.73 | K69: 3746.52 | L69: 3785.33 | M69: 3707.7 | N69: 3626.1 | O69: 4089400 | P69: 1.96%
A70: 60 | B70: Others | C70: DIXON | D70: 2024-02-29 | E70: 6306.10 | F70: 6258.45 | G70: 6194.05 | H70: 6082.00 | I70: 6017.60 | J70: 6370.50 | K70: 6434.90 | L70: 6546.95 | M70: 6322.85 | N70: 6146.4 | O70: 1246600 | P70: 0.64%
A71: 61 | B71: Realty | C71: DLF | D71: 2024-02-29 | E71: 836.15 | F71: 828.93 | G71: 818.67 | H71: 801.18 | I71: 790.92 | J71: 846.42 | K71: 856.68 | L71: 874.17 | M71: 839.2 | N71: 811.45 | O71: 39613200 | P71: -4.50%
A72: 62 | B72: Pharma | C72: DRREDDY | D72: 2024-02-29 | E72: 6155.80 | F72: 6156.93 | G72: 6107.87 | H72: 6059.93 | I72: 6010.87 | J72: 6204.87 | K72: 6253.93 | L72: 6301.87 | M72: 6206 | N72: 6109 | O72: 1808000 | P72: 3.05%
A73: 63 | B73: Automobile | C73: EICHERMOT | D73: 2024-02-29 | E73: 3852.25 | F73: 3830.33 | G73: 3803.77 | H73: 3755.28 | I73: 3728.72 | J73: 3878.82 | K73: 3905.38 | L73: 3953.87 | M73: 3856.9 | N73: 3781.85 | O73: 3664325 | P73: 0.23%
A74: 64 | B74: Automobile | C74: ESCORTS | D74: 2024-02-29 | E74: 2812.05 | F74: 2793.67 | G74: 2672.38 | H74: 2532.72 | I74: 2411.43 | J74: 2933.33 | K74: 3054.62 | L74: 3194.28 | M74: 2914.95 | N74: 2654 | O74: 3081650 | P74: -1.75%
A75: 65 | B75: Automobile | C75: EXIDEIND | D75: 2024-02-29 | E75: 340.05 | F75: 340.43 | G75: 333.02 | H75: 325.98 | I75: 318.57 | J75: 347.47 | K75: 354.88 | L75: 361.92 | M75: 347.85 | N75: 333.4 | O75: 18147600 | P75: -4.49%
A76: 66 | B76: Banking | C76: FEDERALBNK | D76: 2024-02-29 | E76: 147.95 | F76: 146.72 | G76: 145.23 | H76: 142.52 | I76: 141.03 | J76: 149.43 | K76: 150.92 | L76: 153.63 | M76: 148.2 | N76: 144 | O76: 94245000 | P76: -0.59%
A77: 67 | B77: Oil_Gas | C77: GAIL | D77: 2024-02-29 | E77: 173.90 | F77: 174.50 | G77: 168.25 | H77: 162.60 | I77: 156.35 | J77: 180.15 | K77: 186.40 | L77: 192.05 | M77: 180.75 | N77: 168.85 | O77: 139798275 | P77: 0.36%
A78: 68 | B78: Pharma | C78: GLENMARK | D78: 2024-02-29 | E78: 846.75 | F78: 848.10 | G78: 832.25 | H78: 817.75 | I78: 801.90 | J78: 862.60 | K78: 878.45 | L78: 892.95 | M78: 863.95 | N78: 833.6 | O78: 12111125 | P78: 0.11%
A79: 69 | B79: Infrastructure | C79: GMRINFRA | D79: 2024-02-29 | E79: 89.30 | F79: 88.27 | G79: 85.68 | H79: 82.07 | I79: 79.48 | J79: 91.88 | K79: 94.47 | L79: 98.08 | M79: 90.85 | N79: 84.65 | O79: 231243750 | P79: 1.01%
A80: 70 | B80: Others | C80: GNFC | D80: 2024-02-29 | E80: 675.35 | F80: 678.30 | G80: 663.05 | H80: 650.75 | I80: 635.50 | J80: 690.60 | K80: 705.85 | L80: 718.15 | M80: 693.55 | N80: 666 | O80: 8170500 | P80: 1.16%
A81: 71 | B81: FMCG | C81: GODREJCP | D81: 2024-02-29 | E81: 1222.90 | F81: 1216.93 | G81: 1208.47 | H81: 1194.03 | I81: 1185.57 | J81: 1231.37 | K81: 1239.83 | L81: 1254.27 | M81: 1225.4 | N81: 1202.5 | O81: 7191000 | P81: 0.12%
A82: 72 | B82: Realty | C82: GODREJPROP | D82: 2024-02-29 | E82: 2267.80 | F82: 2243.18 | G82: 2212.37 | H82: 2156.93 | I82: 2126.12 | J82: 2298.62 | K82: 2329.43 | L82: 2384.87 | M82: 2274 | N82: 2187.75 | O82: 4739075 | P82: -0.34%
A83: 73 | B83: Pharma | C83: GRANULES | D83: 2024-02-29 | E83: 421.30 | F83: 421.42 | G83: 412.88 | H83: 404.47 | I83: 395.93 | J83: 429.83 | K83: 438.37 | L83: 446.78 | M83: 429.95 | N83: 413 | O83: 12022000 | P83: -0.25%
A84: 74 | B84: Cement | C84: GRASIM | D84: 2024-02-29 | E84: 2176.25 | F84: 2137.67 | G84: 2093.58 | H84: 2010.92 | I84: 1966.83 | J84: 2220.33 | K84: 2264.42 | L84: 2347.08 | M84: 2181.75 | N84: 2055 | O84: 8730054 | P84: 1.39%
A85: 75 | B85: Oil_Gas | C85: GUJGASLTD | D85: 2024-02-29 | E85: 583.55 | F85: 582.75 | G85: 567.70 | H85: 551.85 | I85: 536.80 | J85: 598.60 | K85: 613.65 | L85: 629.50 | M85: 597.8 | N85: 566.9 | O85: 6910000 | P85: -3.44%
A86: 76 | B86: Others | C86: HAL | D86: 2024-02-29 | E86: 2955.95 | F86: 3000.57 | G86: 2861.38 | H86: 2766.82 | I86: 2627.63 | J86: 3095.13 | K86: 3234.32 | L86: 3328.88 | M86: 3139.75 | N86: 2906 | O86: 8778900 | P86: -2.25%
A87: 77 | B87: Capital_Goods | C87: HAVELLS | D87: 2024-02-29 | E87: 1349.75 | F87: 1346.85 | G87: 1331.70 | H87: 1313.65 | I87: 1298.50 | J87: 1364.90 | K87: 1380.05 | L87: 1398.10 | M87: 1362 | N87: 1328.8 | O87: 4593500 | P87: 0.09%
A88: 78 | B88: Technology | C88: HCLTECH | D88: 2024-02-29 | E88: 1631.45 | F88: 1631.33 | G88: 1615.87 | H88: 1600.28 | I88: 1584.82 | J88: 1646.92 | K88: 1662.38 | L88: 1677.97 | M88: 1646.8 | N88: 1615.75 | O88: 12194700 | P88: -1.97%
A89: 79 | B89: Finance | C89: HDFCAMC | D89: 2024-02-29 | E89: 3637.10 | F89: 3635.22 | G89: 3577.43 | H89: 3517.77 | I89: 3459.98 | J89: 3694.88 | K89: 3752.67 | L89: 3812.33 | M89: 3693 | N89: 3575.55 | O89: 2544000 | P89: -1.85%
A90: 80 | B90: Banking | C90: HDFCBANK | D90: 2024-02-29 | E90: 1413.75 | F90: 1411.03 | G90: 1398.82 | H90: 1383.88 | I90: 1371.67 | J90: 1425.97 | K90: 1438.18 | L90: 1453.12 | M90: 1423.25 | N90: 1396.1 | O90: 209609400 | P90: 5.23%
A91: 81 | B91: Finance | C91: HDFCLIFE | D91: 2024-02-29 | E91: 586.55 | F91: 589.13 | G91: 581.32 | H91: 576.08 | I91: 568.27 | J91: 594.37 | K91: 602.18 | L91: 607.42 | M91: 596.95 | N91: 583.9 | O91: 28179800 | P91: 1.53%
A92: 82 | B92: Automobile | C92: HEROMOTOCO | D92: 2024-02-29 | E92: 4841.60 | F92: 4809.77 | G92: 4756.83 | H92: 4672.07 | I92: 4619.13 | J92: 4894.53 | K92: 4947.47 | L92: 5032.23 | M92: 4862.7 | N92: 4725 | O92: 3431400 | P92: 6.25%
A93: 83 | B93: Metals | C93: HINDALCO | D93: 2024-02-29 | E93: 592.65 | F93: 591.32 | G93: 579.73 | H93: 566.82 | I93: 555.23 | J93: 604.23 | K93: 615.82 | L93: 628.73 | M93: 602.9 | N93: 578.4 | O93: 29397200 | P93: -5.02%
A94: 84 | B94: Metals | C94: HINDCOPPER | D94: 2024-02-29 | E94: 270.60 | F94: 274.67 | G94: 260.98 | H94: 251.37 | I94: 237.68 | J94: 284.28 | K94: 297.97 | L94: 307.58 | M94: 288.35 | N94: 265.05 | O94: 36384500 | P94: -9.90%
A95: 85 | B95: Oil_Gas | C95: HINDPETRO | D95: 2024-02-29 | E95: 511.95 | F95: 510.77 | G95: 492.38 | H95: 472.82 | I95: 454.43 | J95: 530.33 | K95: 548.72 | L95: 568.28 | M95: 529.15 | N95: 491.2 | O95: 32567400 | P95: -1.32%
A96: 86 | B96: FMCG | C96: HINDUNILVR | D96: 2024-02-29 | E96: 2428.50 | F96: 2427.02 | G96: 2416.48 | H96: 2404.47 | I96: 2393.93 | J96: 2439.03 | K96: 2449.57 | L96: 2461.58 | M96: 2437.55 | N96: 2415 | O96: 11308200 | P96: -0.52%
A97: 87 | B97: Banking | C97: ICICIBANK | D97: 2024-02-29 | E97: 1012.05 | F97: 1005.47 | G97: 995.13 | H97: 978.22 | I97: 967.88 | J97: 1022.38 | K97: 1032.72 | L97: 1049.63 | M97: 1015.8 | N97: 988.55 | O97: 89081300 | P97: -0.60%
A98: 88 | B98: Finance | C98: ICICIGI | D98: 2024-02-29 | E98: 1642.75 | F98: 1633.95 | G98: 1607.95 | H98: 1573.15 | I98: 1547.15 | J98: 1668.75 | K98: 1694.75 | L98: 1729.55 | M98: 1659.95 | N98: 1599.15 | O98: 2952000 | P98: 2.71%
A99: 89 | B99: Finance | C99: ICICIPRULI | D99: 2024-02-29 | E99: 523.20 | F99: 520.23 | G99: 515.77 | H99: 508.33 | I99: 503.87 | J99: 527.67 | K99: 532.13 | L99: 539.57 | M99: 524.7 | N99: 512.8 | O99: 11779500 | P99: 1.07%
A100: 90 | B100: Telecom | C100: IDEA | D100: 2024-02-29 | E100: 15.60 | F100: 15.25 | G100: 14.75 | H100: 13.90 | I100: 13.40 | J100: 16.10 | K100: 16.60 | L100: 17.45 | M100: 15.75 | N100: 14.4 | O100: 2089120000 | P100: 2.67%
A101: 91 | B101: Finance | C101: IDFC | D101: 2024-02-29 | E101: 117.10 | F101: 116.25 | G101: 115.15 | H101: 113.20 | I101: 112.10 | J101: 118.20 | K101: 119.30 | L101: 121.25 | M101: 117.35 | N101: 114.3 | O101: 70845000 | P101: 1.85%
A102: 92 | B102: Banking | C102: IDFCFIRSTB | D102: 2024-02-29 | E102: 81.65 | F102: 80.97 | G102: 80.08 | H102: 78.52 | I102: 77.63 | J102: 82.53 | K102: 83.42 | L102: 84.98 | M102: 81.85 | N102: 79.4 | O102: 356835000 | P102: -1.11%
A103: 93 | B103: Others | C103: IEX | D103: 2024-02-29 | E103: 144.40 | F103: 143.55 | G103: 141.20 | H103: 138.00 | I103: 135.65 | J103: 146.75 | K103: 149.10 | L103: 152.30 | M103: 145.9 | N103: 140.35 | O103: 68336250 | P103: 0.34%
A104: 94 | B104: Oil_Gas | C104: IGL | D104: 2024-02-29 | E104: 440.70 | F104: 436.67 | G104: 431.33 | H104: 421.97 | I104: 416.63 | J104: 446.03 | K104: 451.37 | L104: 460.73 | M104: 442 | N104: 427.3 | O104: 14367375 | P104: -1.71%
A105: 95 | B105: Infrastructure | C105: INDHOTEL | D105: 2024-02-29 | E105: 535.55 | F105: 533.18 | G105: 527.52 | H105: 519.48 | I105: 513.82 | J105: 541.22 | K105: 546.88 | L105: 554.92 | M105: 538.85 | N105: 525.15 | O105: 14332000 | P105: 3.00%
A106: 96 | B106: Cement | C106: INDIACEM | D106: 2024-02-29 | E106: 247.70 | F106: 242.15 | G106: 234.35 | H106: 221.00 | I106: 213.20 | J106: 255.50 | K106: 263.30 | L106: 276.65 | M106: 249.95 | N106: 228.8 | O106: 23168100 | P106: -8.57%
A107: 97 | B107: Others | C107: INDIAMART | D107: 2024-02-29 | E107: 2688.75 | F107: 2682.48 | G107: 2650.32 | H107: 2611.88 | I107: 2579.72 | J107: 2720.92 | K107: 2753.08 | L107: 2791.52 | M107: 2714.65 | N107: 2644.05 | O107: 884100 | P107: -1.21%
A108: 98 | B108: Others | C108: INDIGO | D108: 2024-02-29 | E108: 3123.25 | F108: 3093.07 | G108: 3022.68 | H108: 2922.12 | I108: 2851.73 | J108: 3193.63 | K108: 3264.02 | L108: 3364.58 | M108: 3163.45 | N108: 2992.5 | O108: 6080400 | P108: 6.02%
A109: 99 | B109: Banking | C109: INDUSINDBK | D109: 2024-02-29 | E109: 1493.10 | F109: 1486.92 | G109: 1475.73 | H109: 1458.37 | I109: 1447.18 | J109: 1504.28 | K109: 1515.47 | L109: 1532.83 | M109: 1498.1 | N109: 1469.55 | O109: 25368000 | P109: 2.56%
A110: 100 | B110: Telecom | C110: INDUSTOWER | D110: 2024-02-29 | E110: 226.75 | F110: 224.63 | G110: 219.62 | H110: 212.48 | I110: 207.47 | J110: 231.77 | K110: 236.78 | L110: 243.92 | M110: 229.65 | N110: 217.5 | O110: 127340200 | P110: -2.38%
A111: 101 | B111: Technology | C111: INFY | D111: 2024-02-29 | E111: 1674.40 | F111: 1681.17 | G111: 1660.88 | H111: 1647.37 | I111: 1627.08 | J111: 1694.68 | K111: 1714.97 | L111: 1728.48 | M111: 1701.45 | N111: 1667.65 | O111: 22903200 | P111: 0.69%
A112: 102 | B112: Oil_Gas | C112: IOC | D112: 2024-02-29 | E112: 183.45 | F112: 185.33 | G112: 176.42 | H112: 169.38 | I112: 160.47 | J112: 192.37 | K112: 201.28 | L112: 208.32 | M112: 194.25 | N112: 178.3 | O112: 154050000 | P112: 6.56%
A113: 103 | B113: Pharma | C113: IPCALAB | D113: 2024-02-29 | E113: 1188.45 | F113: 1199.68 | G113: 1172.22 | H113: 1155.98 | I113: 1128.52 | J113: 1215.92 | K113: 1243.38 | L113: 1259.62 | M113: 1227.15 | N113: 1183.45 | O113: 3114800 | P113: 5.50%
A114: 104 | B114: Others | C114: IRCTC | D114: 2024-02-29 | E114: 942.65 | F114: 939.40 | G114: 921.80 | H114: 900.95 | I114: 883.35 | J114: 960.25 | K114: 977.85 | L114: 998.70 | M114: 957 | N114: 918.55 | O114: 17637375 | P114: 0.49%
A115: 105 | B115: FMCG | C115: ITC | D115: 2024-02-29 | E115: 417.30 | F115: 417.70 | G115: 410.40 | H115: 403.50 | I115: 396.20 | J115: 424.60 | K115: 431.90 | L115: 438.80 | M115: 425 | N115: 410.8 | O115: 105827200 | P115: 0.97%
A116: 106 | B116: Metals | C116: JINDALSTEL | D116: 2024-02-29 | E116: 763.15 | F116: 762.72 | G116: 744.43 | H116: 725.72 | I116: 707.43 | J116: 781.43 | K116: 799.72 | L116: 818.43 | M116: 781 | N116: 744 | O116: 27087500 | P116: -0.76%
A117: 107 | B117: Cement | C117: JKCEMENT | D117: 2024-02-29 | E117: 4243.25 | F117: 4217.42 | G117: 4169.83 | H117: 4096.42 | I117: 4048.83 | J117: 4290.83 | K117: 4338.42 | L117: 4411.83 | M117: 4265 | N117: 4144 | O117: 708000 | P117: -2.65%
A118: 108 | B118: Metals | C118: JSWSTEEL | D118: 2024-02-29 | E118: 813.45 | F118: 814.23 | G118: 801.62 | H118: 789.78 | I118: 777.17 | J118: 826.07 | K118: 838.68 | L118: 850.52 | M118: 826.85 | N118: 802.4 | O118: 17318475 | P118: -0.15%
A119: 109 | B119: Others | C119: JUBLFOOD | D119: 2024-02-29 | E119: 483.35 | F119: 482.27 | G119: 478.33 | H119: 473.32 | I119: 469.38 | J119: 487.28 | K119: 491.22 | L119: 496.23 | M119: 486.2 | N119: 477.25 | O119: 19353750 | P119: 2.50%
A120: 110 | B120: Banking | C120: KOTAKBANK | D120: 2024-02-29 | E120: 1750.30 | F120: 1744.97 | G120: 1734.03 | H120: 1717.77 | I120: 1706.83 | J120: 1761.23 | K120: 1772.17 | L120: 1788.43 | M120: 1755.9 | N120: 1728.7 | O120: 30342800 | P120: 2.71%
A121: 111 | B121: Finance | C121: L&TFH | D121: 2024-02-29 | E121: 171.70 | F121: 170.17 | G121: 167.48 | H121: 163.27 | I121: 160.58 | J121: 174.38 | K121: 177.07 | L121: 181.28 | M121: 172.85 | N121: 165.95 | O121: 41202108 | P121: 0.54%
A122: 112 | B122: Others | C122: LALPATHLAB | D122: 2024-02-29 | E122: 2451.40 | F122: 2437.53 | G122: 2419.07 | H122: 2386.73 | I122: 2368.27 | J122: 2469.87 | K122: 2488.33 | L122: 2520.67 | M122: 2456 | N122: 2405.2 | O122: 1104000 | P122: -1.00%
A123: 113 | B123: Pharma | C123: LAURUSLABS | D123: 2024-02-29 | E123: 394.10 | F123: 393.07 | G123: 388.78 | H123: 383.47 | I123: 379.18 | J123: 398.38 | K123: 402.67 | L123: 407.98 | M123: 397.35 | N123: 387.75 | O123: 12658200 | P123: 0.32%
A124: 114 | B124: Finance | C124: LICHSGFIN | D124: 2024-02-29 | E124: 653.65 | F124: 648.45 | G124: 638.55 | H124: 623.45 | I124: 613.55 | J124: 663.55 | K124: 673.45 | L124: 688.55 | M124: 658.35 | N124: 633.35 | O124: 14468000 | P124: -0.41%
A125: 115 | B125: Capital_Goods | C125: LT | D125: 2024-02-29 | E125: 3338.45 | F125: 3344.72 | G125: 3318.78 | H125: 3299.12 | I125: 3273.18 | J125: 3364.38 | K125: 3390.32 | L125: 3409.98 | M125: 3370.65 | N125: 3325.05 | O125: 14787900 | P125: 4.47%
A126: 116 | B126: Technology | C126: LTIM | D126: 2024-02-29 | E126: 5470.00 | F126: 5443.00 | G126: 5399.90 | H126: 5329.80 | I126: 5286.70 | J126: 5513.10 | K126: 5556.20 | L126: 5626.30 | M126: 5486.1 | N126: 5372.9 | O126: 2232600 | P126: -0.68%
A127: 117 | B127: Technology | C127: LTTS | D127: 2024-02-29 | E127: 5596.25 | F127: 5575.62 | G127: 5503.48 | H127: 5410.72 | I127: 5338.58 | J127: 5668.38 | K127: 5740.52 | L127: 5833.28 | M127: 5647.75 | N127: 5482.85 | O127: 605800 | P127: 0.36%
A128: 118 | B128: Pharma | C128: LUPIN | D128: 2024-02-29 | E128: 1629.35 | F128: 1635.15 | G128: 1612.20 | H128: 1595.05 | I128: 1572.10 | J128: 1652.30 | K128: 1675.25 | L128: 1692.40 | M128: 1658.1 | N128: 1618 | O128: 6669100 | P128: -6.70%
A129: 119 | B129: Automobile | C129: M&M | D129: 2024-02-29 | E129: 1648.95 | F129: 1656.90 | G129: 1621.80 | H129: 1594.65 | I129: 1559.55 | J129: 1684.05 | K129: 1719.15 | L129: 1746.30 | M129: 1692 | N129: 1629.75 | O129: 13242600 | P129: 6.56%
A130: 120 | B130: Finance | C130: M&MFIN | D130: 2024-02-29 | E130: 289.20 | F130: 287.67 | G130: 283.13 | H130: 277.07 | I130: 272.53 | J130: 293.73 | K130: 298.27 | L130: 304.33 | M130: 292.2 | N130: 281.6 | O130: 25446000 | P130: -0.27%
A131: 121 | B131: Finance | C131: MANAPPURAM | D131: 2024-02-29 | E131: 183.45 | F131: 182.80 | G131: 179.40 | H131: 175.35 | I131: 171.95 | J131: 186.85 | K131: 190.25 | L131: 194.30 | M131: 186.2 | N131: 178.75 | O131: 57516000 | P131: 1.32%
A132: 122 | B132: FMCG | C132: MARICO | D132: 2024-02-29 | E132: 521.55 | F132: 521.48 | G132: 517.17 | H132: 512.78 | I132: 508.47 | J132: 525.87 | K132: 530.18 | L132: 534.57 | M132: 525.8 | N132: 517.1 | O132: 10843200 | P132: 2.12%
A133: 123 | B133: Automobile | C133: MARUTI | D133: 2024-02-29 | E133: 10751.30 | F133: 10732.33 | G133: 10670.67 | H133: 10590.03 | I133: 10528.37 | J133: 10812.97 | K133: 10874.63 | L133: 10955.27 | M133: 10794 | N133: 10651.7 | O133: 2614800 | P133: -1.67%
A134: 124 | B134: FMCG | C134: MCDOWELL-N | D134: 2024-02-29 | E134: 1114.20 | F134: 1101.10 | G134: 1085.30 | H134: 1056.40 | I134: 1040.60 | J134: 1130.00 | K134: 1145.80 | L134: 1174.70 | M134: 1116.9 | N134: 1072.2 | O134: 8015000 | P134: -2.06%
A135: 125 | B135: Others | C135: MCX | D135: 2024-02-29 | E135: 3846.70 | F135: 3871.77 | G135: 3737.98 | H135: 3629.27 | I135: 3495.48 | J135: 3980.48 | K135: 4114.27 | L135: 4222.98 | M135: 4005.55 | N135: 3763.05 | O135: 2050000 | P135: -8.53%
A136: 126 | B136: Pharma | C136: METROPOLIS | D136: 2024-02-29 | E136: 1647.00 | F136: 1656.10 | G136: 1627.90 | H136: 1608.80 | I136: 1580.60 | J136: 1675.20 | K136: 1703.40 | L136: 1722.50 | M136: 1684.3 | N136: 1637 | O136: 1036000 | P136: 0.23%
A137: 127 | B137: Finance | C137: MFSL | D137: 2024-02-29 | E137: 990.30 | F137: 993.62 | G137: 976.68 | H137: 963.07 | I137: 946.13 | J137: 1007.23 | K137: 1024.17 | L137: 1037.78 | M137: 1010.55 | N137: 980 | O137: 8768800 | P137: 0.27%
A138: 128 | B138: Oil_Gas | C138: MGL | D138: 2024-02-29 | E138: 1478.15 | F138: 1474.00 | G138: 1450.25 | H138: 1422.35 | I138: 1398.60 | J138: 1501.90 | K138: 1525.65 | L138: 1553.55 | M138: 1497.75 | N138: 1446.1 | O138: 2330400 | P138: -4.65%
A139: 129 | B139: Automobile | C139: MOTHERSON | D139: 2024-02-29 | E139: 121.90 | F139: 120.92 | G139: 118.83 | H139: 115.77 | I139: 113.68 | J139: 123.98 | K139: 126.07 | L139: 129.13 | M139: 123 | N139: 117.85 | O139: 102538200 | P139: 4.36%
A140: 130 | B140: Technology | C140: MPHASIS | D140: 2024-02-29 | E140: 2598.05 | F140: 2606.53 | G140: 2554.57 | H140: 2511.08 | I140: 2459.12 | J140: 2650.02 | K140: 2701.98 | L140: 2745.47 | M140: 2658.5 | N140: 2563.05 | O140: 3002725 | P140: 2.94%
A141: 131 | B141: Automobile | C141: MRF | D141: 2024-02-29 | E141: 137354.35 | F141: 139309.95 | G141: 134545.40 | H141: 131736.45 | I141: 126971.90 | J141: 142118.90 | K141: 146883.45 | L141: 149692.40 | M141: 144074.5 | N141: 136501 | O141: 42185 | P141: 18.21%
A142: 132 | B142: Finance | C142: MUTHOOTFIN | D142: 2024-02-29 | E142: 1383.80 | F142: 1378.25 | G142: 1367.60 | H142: 1351.40 | I142: 1340.75 | J142: 1394.45 | K142: 1405.10 | L142: 1421.30 | M142: 1388.9 | N142: 1362.05 | O142: 5442250 | P142: -1.89%
A143: 133 | B143: Metals | C143: NATIONALUM | D143: 2024-02-29 | E143: 157.10 | F143: 154.33 | G143: 147.77 | H143: 138.43 | I143: 131.87 | J143: 163.67 | K143: 170.23 | L143: 179.57 | M143: 160.9 | N143: 145 | O143: 79245000 | P143: -5.14%
A144: 134 | B144: Others | C144: NAUKRI | D144: 2024-02-29 | E144: 5505.95 | F144: 5493.88 | G144: 5437.77 | H144: 5369.58 | I144: 5313.47 | J144: 5562.07 | K144: 5618.18 | L144: 5686.37 | M144: 5550 | N144: 5425.7 | O144: 1123050 | P144: -3.99%
A145: 135 | B145: Chemical | C145: NAVINFLUOR | D145: 2024-02-29 | E145: 3041.10 | F145: 3049.00 | G145: 3004.30 | H145: 2967.50 | I145: 2922.80 | J145: 3085.80 | K145: 3130.50 | L145: 3167.30 | M145: 3093.7 | N145: 3012.2 | O145: 1792050 | P145: 0.45%
A146: 136 | B146: FMCG | C146: NESTLEIND | D146: 2024-02-29 | E146: 2447.60 | F146: 2443.73 | G146: 2426.47 | H146: 2405.33 | I146: 2388.07 | J146: 2464.87 | K146: 2482.13 | L146: 2503.27 | M146: 2461 | N146: 2422.6 | O146: 6207200 | P146: -1.83%
A147: 137 | B147: Metals | C147: NMDC | D147: 2024-02-29 | E147: 242.00 | F147: 240.28 | G147: 235.47 | H147: 228.93 | I147: 224.12 | J147: 246.82 | K147: 251.63 | L147: 258.17 | M147: 245.1 | N147: 233.75 | O147: 89842500 | P147: 1.28%
A148: 138 | B148: Power | C148: NTPC | D148: 2024-02-29 | E148: 325.45 | F148: 327.78 | G148: 318.12 | H148: 310.78 | I148: 301.12 | J148: 335.12 | K148: 344.78 | L148: 352.12 | M148: 337.45 | N148: 320.45 | O148: 89166000 | P148: -4.51%
A149: 139 | B149: Realty | C149: OBEROIRLTY | D149: 2024-02-29 | E149: 1346.60 | F149: 1339.90 | G149: 1317.80 | H149: 1289.00 | I149: 1266.90 | J149: 1368.70 | K149: 1390.80 | L149: 1419.60 | M149: 1362 | N149: 1311.1 | O149: 6310500 | P149: -2.00%
A150: 140 | B150: Technology | C150: OFSS | D150: 2024-02-29 | E150: 7530.00 | F150: 7414.35 | G150: 7215.70 | H150: 6901.40 | I150: 6702.75 | J150: 7728.65 | K150: 7927.30 | L150: 8241.60 | M150: 7613 | N150: 7100.05 | O150: 897800 | P150: -6.98%
A151: 141 | B151: Oil_Gas | C151: ONGC | D151: 2024-02-29 | E151: 266.40 | F151: 266.65 | G151: 258.50 | H151: 250.60 | I151: 242.45 | J151: 274.55 | K151: 282.70 | L151: 290.60 | M151: 274.8 | N151: 258.75 | O151: 95522350 | P151: -2.70%
A152: 142 | B152: Textile | C152: PAGEIND | D152: 2024-02-29 | E152: 36320.95 | F152: 36391.15 | G152: 35685.50 | H152: 35050.05 | I152: 34344.40 | J152: 37026.60 | K152: 37732.25 | L152: 38367.70 | M152: 37096.8 | N152: 35755.7 | O152: 163425 | P152: -2.10%
A153: 143 | B153: Pharma | C153: PEL | D153: 2024-02-29 | E153: 894.20 | F153: 891.60 | G153: 876.65 | H153: 859.10 | I153: 844.15 | J153: 909.15 | K153: 924.10 | L153: 941.65 | M153: 906.55 | N153: 874.05 | O153: 12494250 | P153: -0.14%
A154: 144 | B154: Technology | C154: PERSISTENT | D154: 2024-02-29 | E154: 8672.10 | F154: 8669.42 | G154: 8603.83 | H154: 8535.57 | I154: 8469.98 | J154: 8737.68 | K154: 8803.27 | L154: 8871.53 | M154: 8735 | N154: 8601.15 | O154: 1528800 | P154: 1.33%
A155: 145 | B155: Oil_Gas | C155: PETRONET | D155: 2024-02-29 | E155: 271.30 | F155: 273.38 | G155: 263.97 | H155: 256.63 | I155: 247.22 | J155: 280.72 | K155: 290.13 | L155: 297.47 | M155: 282.8 | N155: 266.05 | O155: 38565000 | P155: 3.77%
A156: 146 | B156: Finance | C156: PFC | D156: 2024-02-29 | E156: 426.95 | F156: 432.85 | G156: 403.60 | H156: 380.25 | I156: 351.00 | J156: 456.20 | K156: 485.45 | L156: 508.80 | M156: 462.1 | N156: 409.5 | O156: 74896000 | P156: 18.24%
A157: 147 | B157: FMCG | C157: PIDILITIND | D157: 2024-02-29 | E157: 2662.55 | F157: 2649.18 | G157: 2630.37 | H157: 2598.18 | I157: 2579.37 | J157: 2681.37 | K157: 2700.18 | L157: 2732.37 | M157: 2668 | N157: 2617 | O157: 3547000 | P157: -0.98%
A158: 148 | B158: Chemical | C158: PIIND | D158: 2024-02-29 | E158: 3495.85 | F158: 3484.40 | G158: 3449.55 | H158: 3403.25 | I158: 3368.40 | J158: 3530.70 | K158: 3565.55 | L158: 3611.85 | M158: 3519.25 | N158: 3438.1 | O158: 3070250 | P158: 15.26%
A159: 149 | B159: Banking | C159: PNB | D159: 2024-02-29 | E159: 124.45 | F159: 122.43 | G159: 120.02 | H159: 115.58 | I159: 113.17 | J159: 126.87 | K159: 129.28 | L159: 133.72 | M159: 124.85 | N159: 118 | O159: 252328000 | P159: -7.96%
A160: 150 | B160: Others | C160: POLYCAB | D160: 2024-02-29 | E160: 4328.00 | F160: 4309.25 | G160: 4273.60 | H160: 4219.20 | I160: 4183.55 | J160: 4363.65 | K160: 4399.30 | L160: 4453.70 | M160: 4344.9 | N160: 4254.85 | O160: 2356800 | P160: -1.91%
A161: 151 | B161: Power | C161: POWERGRID | D161: 2024-02-29 | E161: 269.20 | F161: 270.03 | G161: 264.32 | H161: 259.43 | I161: 253.72 | J161: 274.92 | K161: 280.63 | L161: 285.52 | M161: 275.75 | N161: 265.15 | O161: 70300800 | P161: -3.57%
A162: 152 | B162: Media | C162: PVRINOX | D162: 2024-02-29 | E162: 1412.25 | F162: 1411.70 | G162: 1387.30 | H162: 1362.35 | I162: 1337.95 | J162: 1436.65 | K162: 1461.05 | L162: 1486.00 | M162: 1436.1 | N162: 1386.75 | O162: 6481068 | P162: 0.21%
A163: 153 | B163: Cement | C163: RAMCOCEM | D163: 2024-02-29 | E163: 902.45 | F163: 915.73 | G163: 880.52 | H163: 858.58 | I163: 823.37 | J163: 937.67 | K163: 972.88 | L163: 994.82 | M163: 950.95 | N163: 893.8 | O163: 3111850 | P163: 10.81%
A164: 154 | B164: Banking | C164: RBLBANK | D164: 2024-02-29 | E164: 261.20 | F164: 259.22 | G164: 254.73 | H164: 248.27 | I164: 243.78 | J164: 265.68 | K164: 270.17 | L164: 276.63 | M164: 263.7 | N164: 252.75 | O164: 67375000 | P164: -1.39%
A165: 155 | B165: Power | C165: RECLTD | D165: 2024-02-29 | E165: 484.40 | F165: 485.27 | G165: 462.93 | H165: 441.47 | I165: 419.13 | J165: 506.73 | K165: 529.07 | L165: 550.53 | M165: 507.6 | N165: 463.8 | O165: 39512000 | P165: 6.97%
A166: 156 | B166: Oil_Gas | C166: RELIANCE | D166: 2024-02-29 | E166: 2926.75 | F166: 2929.08 | G166: 2905.77 | H166: 2884.78 | I166: 2861.47 | J166: 2950.07 | K166: 2973.38 | L166: 2994.37 | M166: 2952.4 | N166: 2908.1 | O166: 34352750 | P166: -2.10%
A167: 157 | B167: Metals | C167: SAIL | D167: 2024-02-29 | E167: 132.55 | F167: 133.33 | G167: 127.67 | H167: 122.78 | I167: 117.12 | J167: 138.22 | K167: 143.88 | L167: 148.77 | M167: 139 | N167: 128.45 | O167: 160072000 | P167: -6.85%
A168: 158 | B168: Banking | C168: SBICARD | D168: 2024-02-29 | E168: 718.10 | F168: 715.62 | G168: 709.68 | H168: 701.27 | I168: 695.33 | J168: 724.03 | K168: 729.97 | L168: 738.38 | M168: 721.55 | N168: 707.2 | O168: 23992800 | P168: 0.15%
A169: 159 | B169: Finance | C169: SBILIFE | D169: 2024-02-29 | E169: 1447.10 | F169: 1455.57 | G169: 1434.28 | H169: 1421.47 | I169: 1400.18 | J169: 1468.38 | K169: 1489.67 | L169: 1502.48 | M169: 1476.85 | N169: 1442.75 | O169: 7269000 | P169: 2.91%
A170: 160 | B170: Banking | C170: SBIN | D170: 2024-02-29 | E170: 727.50 | F170: 718.05 | G170: 705.50 | H170: 683.50 | I170: 670.95 | J170: 740.05 | K170: 752.60 | L170: 774.60 | M170: 730.6 | N170: 696.05 | O170: 123094500 | P170: 2.63%
A171: 161 | B171: Cement | C171: SHREECEM | D171: 2024-02-29 | E171: 27678.45 | F171: 27639.18 | G171: 27342.32 | H171: 27006.18 | I171: 26709.32 | J171: 27975.32 | K171: 28272.18 | L171: 28608.32 | M171: 27936.05 | N171: 27303.05 | O171: 224150 | P171: -0.76%
A172: 162 | B172: Capital_Goods | C172: SIEMENS | D172: 2024-02-29 | E172: 4282.50 | F172: 4252.68 | G172: 4200.37 | H172: 4118.23 | I172: 4065.92 | J172: 4334.82 | K172: 4387.13 | L172: 4469.27 | M172: 4305 | N172: 4170.55 | O172: 1245900 | P172: -8.01%
A173: 163 | B173: Textile | C173: SRF | D173: 2024-02-29 | E173: 2310.05 | F173: 2299.23 | G173: 2280.87 | H173: 2251.68 | I173: 2233.32 | J173: 2328.42 | K173: 2346.78 | L173: 2375.97 | M173: 2317.6 | N173: 2270.05 | O173: 4162500 | P173: -0.39%
A174: 164 | B174: Finance | C174: SHRIRAMFIN | D174: 2024-02-29 | E174: 2344.50 | F174: 2337.23 | G174: 2309.27 | H174: 2274.03 | I174: 2246.07 | J174: 2372.47 | K174: 2400.43 | L174: 2435.67 | M174: 2365.2 | N174: 2302 | O174: 7200000 | P174: 0.98%
A175: 165 | B175: Pharma | C175: SUNPHARMA | D175: 2024-02-29 | E175: 1529.40 | F175: 1518.05 | G175: 1502.35 | H175: 1475.30 | I175: 1459.60 | J175: 1545.10 | K175: 1560.80 | L175: 1587.85 | M175: 1533.75 | N175: 1491 | O175: 18149600 | P175: 18.24%
A176: 166 | B176: Media | C176: SUNTV | D176: 2024-02-29 | E176: 620.70 | F176: 624.00 | G176: 611.85 | H176: 603.00 | I176: 590.85 | J176: 632.85 | K176: 645.00 | L176: 653.85 | M176: 636.15 | N176: 615.15 | O176: 6391500 | P176: -2.38%
A177: 167 | B177: Pharma | C177: SYNGENE | D177: 2024-02-29 | E177: 750.65 | F177: 743.25 | G177: 733.00 | H177: 715.35 | I177: 705.10 | J177: 760.90 | K177: 771.15 | L177: 788.80 | M177: 753.5 | N177: 725.6 | O177: 5520000 | P177: -0.23%
A178: 168 | B178: Chemical | C178: TATACHEM | D178: 2024-02-29 | E178: 961.30 | F178: 961.33 | G178: 950.27 | H178: 939.23 | I178: 928.17 | J178: 972.37 | K178: 983.43 | L178: 994.47 | M178: 972.4 | N178: 950.3 | O178: 14390200 | P178: 0.15%
A179: 169 | B179: Telecom | C179: TATACOMM | D179: 2024-02-29 | E179: 1767.50 | F179: 1756.27 | G179: 1732.93 | H179: 1698.37 | I179: 1675.03 | J179: 1790.83 | K179: 1814.17 | L179: 1848.73 | M179: 1779.6 | N179: 1721.7 | O179: 6666500 | P179: -2.62%
A180: 170 | B180: FMCG | C180: TATACONSUM | D180: 2024-02-29 | E180: 1134.55 | F180: 1137.67 | G180: 1122.38 | H180: 1110.22 | I180: 1094.93 | J180: 1149.83 | K180: 1165.12 | L180: 1177.28 | M180: 1152.95 | N180: 1125.5 | O180: 13219200 | P180: -3.43%
A181: 171 | B181: Automobile | C181: TATAMOTORS | D181: 2024-02-29 | E181: 919.00 | F181: 919.57 | G181: 908.73 | H181: 898.47 | I181: 887.63 | J181: 929.83 | K181: 940.67 | L181: 950.93 | M181: 930.4 | N181: 909.3 | O181: 67297050 | P181: 1.53%
A182: 172 | B182: Power | C182: TATAPOWER | D182: 2024-02-29 | E182: 392.85 | F182: 397.33 | G182: 380.67 | H182: 368.48 | I182: 351.82 | J182: 409.52 | K182: 426.18 | L182: 438.37 | M182: 414 | N182: 385.15 | O182: 93048750 | P182: -2.37%
A183: 173 | B183: Metals | C183: TATASTEEL | D183: 2024-02-29 | E183: 142.00 | F183: 142.13 | G183: 139.27 | H183: 136.53 | I183: 133.67 | J183: 144.87 | K183: 147.73 | L183: 150.47 | M183: 145 | N183: 139.4 | O183: 208582000 | P183: 0.25%
A184: 174 | B184: Technology | C184: TCS | D184: 2024-02-29 | E184: 4141.40 | F184: 4149.58 | G184: 4104.82 | H184: 4068.23 | I184: 4023.47 | J184: 4186.17 | K184: 4230.93 | L184: 4267.52 | M184: 4194.35 | N184: 4113 | O184: 11683700 | P184: -1.12%
A185: 175 | B185: Technology | C185: TECHM | D185: 2024-02-29 | E185: 1313.55 | F185: 1315.90 | G185: 1307.00 | H185: 1300.45 | I185: 1291.55 | J185: 1322.45 | K185: 1331.35 | L185: 1337.90 | M185: 1324.8 | N185: 1309.35 | O185: 12343200 | P185: -0.75%
A186: 176 | B186: FMCG | C186: TITAN | D186: 2024-02-29 | E186: 3602.70 | F186: 3585.97 | G186: 3561.73 | H186: 3520.77 | I186: 3496.53 | J186: 3626.93 | K186: 3651.17 | L186: 3692.13 | M186: 3610.2 | N186: 3545 | O186: 5539450 | P186: -3.15%
A187: 177 | B187: Pharma | C187: TORNTPHARM | D187: 2024-02-29 | E187: 2642.90 | F187: 2634.98 | G187: 2609.97 | H187: 2577.03 | I187: 2552.02 | J187: 2667.92 | K187: 2692.93 | L187: 2725.87 | M187: 2660 | N187: 2602.05 | O187: 1609000 | P187: 0.31%
A188: 178 | B188: Others | C188: TRENT | D188: 2024-02-29 | E188: 3777.10 | F188: 3780.25 | G188: 3684.05 | H188: 3591.00 | I188: 3494.80 | J188: 3873.30 | K188: 3969.50 | L188: 4062.55 | M188: 3876.45 | N188: 3687.2 | O188: 3157200 | P188: -6.04%
A189: 179 | B189: Automobile | C189: TVSMOTOR | D189: 2024-02-29 | E189: 2042.70 | F189: 2033.87 | G189: 2018.83 | H189: 1994.97 | I189: 1979.93 | J189: 2057.73 | K189: 2072.77 | L189: 2096.63 | M189: 2048.9 | N189: 2010 | O189: 4707850 | P189: 0.16%
A190: 180 | B190: FMCG | C190: UBL | D190: 2024-02-29 | E190: 1780.45 | F190: 1787.72 | G190: 1745.63 | H190: 1710.82 | I190: 1668.73 | J190: 1822.53 | K190: 1864.62 | L190: 1899.43 | M190: 1829.8 | N190: 1752.9 | O190: 2460800 | P190: -9.89%
A191: 181 | B191: Cement | C191: ULTRACEMCO | D191: 2024-02-29 | E191: 9993.10 | F191: 9993.02 | G191: 9886.18 | H191: 9779.27 | I191: 9672.43 | J191: 10099.93 | K191: 10206.77 | L191: 10313.68 | M191: 10099.85 | N191: 9886.1 | O191: 1907000 | P191: -0.02%
A192: 182 | B192: Chemical | C192: UPL | D192: 2024-02-29 | E192: 460.10 | F192: 457.13 | G192: 449.27 | H192: 438.43 | I192: 430.57 | J192: 467.97 | K192: 475.83 | L192: 486.67 | M192: 465 | N192: 446.3 | O192: 43122300 | P192: -2.72%
A193: 183 | B193: Metals | C193: VEDL | D193: 2024-02-29 | E193: 275.15 | F193: 275.25 | G193: 268.80 | H193: 262.45 | I193: 256.00 | J193: 281.60 | K193: 288.05 | L193: 294.40 | M193: 281.7 | N193: 268.9 | O193: 99272600 | P193: -0.54%
A194: 184 | B194: Capital_Goods | C194: VOLTAS | D194: 2024-02-29 | E194: 1060.90 | F194: 1059.90 | G194: 1041.40 | H194: 1021.90 | I194: 1003.40 | J194: 1079.40 | K194: 1097.90 | L194: 1117.40 | M194: 1078.4 | N194: 1040.4 | O194: 6572400 | P194: 0.85%
A195: 185 | B195: Technology | C195: WIPRO | D195: 2024-02-29 | E195: 492.75 | F195: 491.47 | G195: 486.48 | H195: 480.22 | I195: 475.23 | J195: 497.73 | K195: 502.72 | L195: 508.98 | M195: 496.45 | N195: 485.2 | O195: 49840500 | P195: 0.24%
A196: 186 | B196: Media | C196: ZEEL | D196: 2024-02-29 | E196: 204.30 | F196: 199.30 | G196: 191.20 | H196: 178.10 | I196: 170.00 | J196: 212.40 | K196: 220.50 | L196: 233.60 | M196: 207.4 | N196: 186.2 | O196: 128775000 | P196: 25.99%
A197: 187 | B197: Pharma | C197: ZYDUSLIFE | D197: 2024-02-29 | E197: 806.75 | F197: 800.42 | G197: 776.33 | H197: 745.92 | I197: 721.83 | J197: 830.83 | K197: 854.92 | L197: 885.33 | M197: 824.5 | N197: 770 | O197: 7835400 | P197: 3.67%
A221: Pivot Point: This is trigger point for intra day buy/sell based on the price range of the previous day
A222: As per the tool,the trader should take BUY position just above Pivot and keep the stop loss of pivot point and the first target would be Resistance 1(R1)
A223: If R1 is crossed then R2 becomes the next target with stop loss of at R1
A224: Similarly if price goes below pivot point then the trader should sell and keep a stop loss of pivot point and the first target would be S1
A225: If S1 is crossed then S2 becomes the next target with stop loss of at S1
A227: Disclaimer:
A228: This document has been prepared by the Retail Research Desk of Asit C Mehta
A229: Investment Intermediates Ltd. and is meant for use of the recipient only
A230: and is not for circulation. This document is not to be reported or
... 6 more rows

Sheet Cash Intra
M5: Back to Main Page
A6: FOR INTRA DAY TRADING | K6: =Main!B10 -> 2024-02-12
A8: Sr.no | C8: CLOSE RATE | D8: Pivot Point | E8: Supports | H8: Resistances
E9: S1 | F9: S2 | G9: S3 | H9: R1 | I9: R2 | J9: R3 | K9: HIGH | L9: LOW | M9: Total Trade Quanity in Lakhs
A10: 1 | B10: Nifty 50 | C10: 21782.50 | D10: 21738.95 | E10: 21673.45 | F10: 21564.40 | G10: 21498.90 | H10: 21848.00 | I10: 21913.50 | J10: 22022.55 | K10: 21804.45 | L10: 21629.90
A11: 2 | B11: Nifty Bank | C11: 45634.55 | D11: 45403.95 | E11: 45089.75 | F11: 44544.95 | G11: 44230.75 | H11: 45948.75 | I11: 46262.95 | J11: 46807.75 | K11: 45718.15 | L11: 44859.15
A12: 3 | B12: Nifty CPSE | C12: 5711.50 | D12: 5714.17 | E12: 5563.08 | F12: 5414.67 | G12: 5263.58 | H12: 5862.58 | I12: 6013.67 | J12: 6162.08 | K12: 5865.25 | L12: 5565.75
A13: 4 | B13: Nifty Infra | C13: 7977.05 | D13: 7970.98 | E13: 7890.22 | F13: 7803.38 | G13: 7722.62 | H13: 8057.82 | I13: 8138.58 | J13: 8225.42 | K13: 8051.75 | L13: 7884.15
A14: 5 | B14: Nifty IT | C14: 37699.25 | D14: 37741.68 | E14: 37401.32 | F14: 37103.38 | G14: 36763.02 | H14: 38039.62 | I14: 38379.98 | J14: 38677.92 | K14: 38082.05 | L14: 37443.75
A15: 6 | B15: Nifty PSE | C15: 9170.05 | D15: 9194.88 | E15: 8911.62 | F15: 8653.18 | G15: 8369.92 | H15: 9453.32 | I15: 9736.58 | J15: 9995.02 | K15: 9478.15 | L15: 8936.45
A16: 7 | B16: Nifty Midcap 50 | C16: 13840.90 | D16: 13801.42 | E16: 13623.83 | F16: 13406.77 | G16: 13229.18 | H16: 14018.48 | I16: 14196.07 | J16: 14413.13 | K16: 13979.00 | L16: 13584.35
A17: 8 | B17: ABB | C17: 4489.45 | D17: 4467.87 | E17: 4434.28 | F17: 4379.12 | G17: 4345.53 | H17: 4523.03 | I17: 4556.62 | J17: 4611.78 | K17: 4501.45 | L17: 4412.7 | M17: 2.03496
A18: 9 | B18: ABBOTINDIA | C18: 28083.7 | D18: 28184.40 | E18: 27919.95 | F18: 27756.20 | G18: 27491.75 | H18: 28348.15 | I18: 28612.60 | J18: 28776.35 | K18: 28448.85 | L18: 28020.65 | M18: 0.13645
A19: 10 | B19: ABCAPITAL | C19: 187.9 | D19: 186.32 | E19: 183.53 | F19: 179.17 | G19: 176.38 | H19: 190.68 | I19: 193.47 | J19: 197.83 | K19: 189.1 | L19: 181.95 | M19: 52.82306
A20: 11 | B20: ABFRL | C20: 252.85 | D20: 253.60 | E20: 245.80 | F20: 238.75 | G20: 230.95 | H20: 260.65 | I20: 268.45 | J20: 275.50 | K20: 261.4 | L20: 246.55 | M20: 64.84466
A21: 12 | B21: ACC | C21: 2628.05 | D21: 2593.28 | E21: 2541.57 | F21: 2455.08 | G21: 2403.37 | H21: 2679.77 | I21: 2731.48 | J21: 2817.97 | K21: 2645 | L21: 2506.8 | M21: 18.28299
A22: 13 | B22: ADANIENT | C22: 3215.2 | D22: 3187.12 | E22: 3149.28 | F22: 3083.37 | G22: 3045.53 | H22: 3253.03 | I22: 3290.87 | J22: 3356.78 | K22: 3224.95 | L22: 3121.2 | M22: 15.72789
A23: 14 | B23: ADANIGREEN | C23: 1880.7 | D23: 1868.08 | E23: 1818.17 | F23: 1755.63 | G23: 1705.72 | H23: 1930.62 | I23: 1980.53 | J23: 2043.07 | K23: 1918 | L23: 1805.55 | M23: 31.59808
A24: 15 | B24: ADANIPORTS | C24: 1271.5 | D24: 1259.70 | E24: 1243.90 | F24: 1216.30 | G24: 1200.50 | H24: 1287.30 | I24: 1303.10 | J24: 1330.70 | K24: 1275.5 | L24: 1232.1 | M24: 35.38164
A25: 16 | B25: ADANIPOWER | C25: 569.5 | D25: 566.98 | E25: 556.52 | F25: 543.53 | G25: 533.07 | H25: 579.97 | I25: 590.43 | J25: 603.42 | K25: 577.45 | L25: 554 | M25: 13.27795
A26: 17 | B26: ALKEM | C26: 5327.9 | D26: 5324.88 | E26: 5229.77 | F26: 5131.63 | G26: 5036.52 | H26: 5423.02 | I26: 5518.13 | J26: 5616.27 | K26: 5420 | L26: 5226.75 | M26: 5.7072
A27: 18 | B27: AMBUJACEM | C27: 576.2 | D27: 570.33 | E27: 558.42 | F27: 540.63 | G27: 528.72 | H27: 588.12 | I27: 600.03 | J27: 617.82 | K27: 582.25 | L27: 552.55 | M27: 69.56624
A28: 19 | B28: APOLLOHOSP | C28: 6437.35 | D28: 6374.97 | E28: 6275.98 | F28: 6114.62 | G28: 6015.63 | H28: 6536.33 | I28: 6635.32 | J28: 6796.68 | K28: 6473.95 | L28: 6213.6 | M28: 9.33104
A29: 20 | B29: APOLLOTYRE | C29: 509.9 | D29: 513.92 | E29: 495.83 | F29: 481.77 | G29: 463.68 | H29: 527.98 | I29: 546.07 | J29: 560.13 | K29: 532 | L29: 499.85 | M29: 40.08573
A30: 21 | B30: ASHOKLEY | C30: 173.45 | D30: 173.23 | E30: 170.07 | F30: 166.68 | G30: 163.52 | H30: 176.62 | I30: 179.78 | J30: 183.17 | K30: 176.4 | L30: 169.85 | M30: 156.47861
A31: 22 | B31: ASIANPAINT | C31: 2951.65 | D31: 2940.40 | E31: 2921.80 | F31: 2891.95 | G31: 2873.35 | H31: 2970.25 | I31: 2988.85 | J31: 3018.70 | K31: 2959 | L31: 2910.55 | M31: 11.44765
A32: 23 | B32: ASTRAL | C32: 1852.45 | D32: 1856.32 | E32: 1831.68 | F32: 1810.92 | G32: 1786.28 | H32: 1877.08 | I32: 1901.72 | J32: 1922.48 | K32: 1880.95 | L32: 1835.55 | M32: 3.58812
A33: 24 | B33: ATGL | C33: 1023.75 | D33: 1025.52 | E33: 1001.43 | F33: 979.12 | G33: 955.03 | H33: 1047.83 | I33: 1071.92 | J33: 1094.23 | K33: 1049.6 | L33: 1003.2 | M33: 37.10884
A34: 25 | B34: AUBANK | C34: 603.9 | D34: 600.63 | E34: 595.52 | F34: 587.13 | G34: 582.02 | H34: 609.02 | I34: 614.13 | J34: 622.52 | K34: 605.75 | L34: 592.25 | M34: 23.43195
A35: 26 | B35: AUROPHARMA | C35: 1003.15 | D35: 1000.38 | E35: 979.77 | F35: 956.38 | G35: 935.77 | H35: 1023.77 | I35: 1044.38 | J35: 1067.77 | K35: 1021 | L35: 977 | M35: 30.18985
A36: 27 | B36: AWL | C36: 344.95 | D36: 347.23 | E36: 340.07 | F36: 335.18 | G36: 328.02 | H36: 352.12 | I36: 359.28 | J36: 364.17 | K36: 354.4 | L36: 342.35 | M36: 11.99105
A37: 28 | B37: AXISBANK | C37: 1051.4 | D37: 1046.95 | E37: 1039.00 | F37: 1026.60 | G37: 1018.65 | H37: 1059.35 | I37: 1067.30 | J37: 1079.70 | K37: 1054.9 | L37: 1034.55 | M37: 82.33454
A38: 29 | B38: BAJAJ-AUTO | C38: 7784.85 | D38: 7748.12 | E38: 7705.73 | F38: 7626.62 | G38: 7584.23 | H38: 7827.23 | I38: 7869.62 | J38: 7948.73 | K38: 7790.5 | L38: 7669 | M38: 1.73555
A39: 30 | B39: BAJAJFINSV | C39: 1570.95 | D39: 1573.65 | E39: 1560.00 | F39: 1549.05 | G39: 1535.40 | H39: 1584.60 | I39: 1598.25 | J39: 1609.20 | K39: 1587.3 | L39: 1562.7 | M39: 10.49368
A40: 31 | B40: BAJAJHLDNG | C40: 8634.05 | D40: 8642.72 | E40: 8501.33 | F40: 8368.62 | G40: 8227.23 | H40: 8775.43 | I40: 8916.82 | J40: 9049.53 | K40: 8784.1 | L40: 8510 | M40: 0.27292
A41: 32 | B41: BAJFINANCE | C41: 6654.5 | D41: 6634.73 | E41: 6591.77 | F41: 6529.03 | G41: 6486.07 | H41: 6697.47 | I41: 6740.43 | J41: 6803.17 | K41: 6677.7 | L41: 6572 | M41: 12.09874
A42: 33 | B42: BALKRISIND | C42: 2297.5 | D42: 2302.28 | E42: 2274.57 | F42: 2251.63 | G42: 2223.92 | H42: 2325.22 | I42: 2352.93 | J42: 2375.87 | K42: 2330 | L42: 2279.35 | M42: 2.6827
A43: 34 | B43: BANDHANBNK | C43: 216.2 | D43: 214.78 | E43: 212.72 | F43: 209.23 | G43: 207.17 | H43: 218.27 | I43: 220.33 | J43: 223.82 | K43: 216.85 | L43: 211.3 | M43: 102.5308
A44: 35 | B44: BANKBARODA | C44: 263.5 | D44: 259.17 | E44: 251.83 | F44: 240.17 | G44: 232.83 | H44: 270.83 | I44: 278.17 | J44: 289.83 | K44: 266.5 | L44: 247.5 | M44: 462.01039
A45: 36 | B45: BANKINDIA | C45: 137.25 | D45: 138.13 | E45: 133.17 | F45: 129.08 | G45: 124.12 | H45: 142.22 | I45: 147.18 | J45: 151.27 | K45: 143.1 | L45: 134.05 | M45: 219.5485
A46: 37 | B46: BATAINDIA | C46: 1421.3 | D46: 1418.35 | E46: 1409.35 | F46: 1397.40 | G46: 1388.40 | H46: 1430.30 | I46: 1439.30 | J46: 1451.25 | K46: 1427.35 | L46: 1406.4 | M46: 2.74905
A47: 38 | B47: BEL | C47: 180.65 | D47: 180.95 | E47: 176.20 | F47: 171.75 | G47: 167.00 | H47: 185.40 | I47: 190.15 | J47: 194.60 | K47: 185.7 | L47: 176.5 | M47: 210.81134
A48: 39 | B48: BERGEPAINT | C48: 554 | D48: 551.40 | E48: 546.05 | F48: 538.10 | G48: 532.75 | H48: 559.35 | I48: 564.70 | J48: 572.65 | K48: 556.75 | L48: 543.45 | M48: 10.75063
A49: 40 | B49: BHARATFORG | C49: 1314.05 | D49: 1302.70 | E49: 1284.15 | F49: 1254.25 | G49: 1235.70 | H49: 1332.60 | I49: 1351.15 | J49: 1381.05 | K49: 1321.25 | L49: 1272.8 | M49: 19.36968
A50: 41 | B50: BHARTIARTL | C50: 1120.25 | D50: 1127.48 | E50: 1109.02 | F50: 1097.78 | G50: 1079.32 | H50: 1138.72 | I50: 1157.18 | J50: 1168.42 | K50: 1145.95 | L50: 1116.25 | M50: 42.03171
A51: 42 | B51: BHEL | C51: 227.55 | D51: 227.17 | E51: 217.73 | F51: 207.92 | G51: 198.48 | H51: 236.98 | I51: 246.42 | J51: 256.23 | K51: 236.6 | L51: 217.35 | M51: 495.0087
A52: 43 | B52: BIOCON | C52: 273.4 | D52: 278.65 | E52: 266.25 | F52: 259.10 | G52: 246.70 | H52: 285.80 | I52: 298.20 | J52: 305.35 | K52: 291.05 | L52: 271.5 | M52: 169.61839
A53: 44 | B53: BOSCHLTD | C53: 25457.15 | D53: 25242.05 | E53: 24965.10 | F53: 24473.05 | G53: 24196.10 | H53: 25734.10 | I53: 26011.05 | J53: 26503.10 | K53: 25519 | L53: 24750 | M53: 0.23943
A54: 45 | B54: BPCL | C54: 614.3 | D54: 610.10 | E54: 596.50 | F54: 578.70 | G54: 565.10 | H54: 627.90 | I54: 641.50 | J54: 659.30 | K54: 623.7 | L54: 592.3 | M54: 147.62133
A55: 46 | B55: BRITANNIA | C55: 4971.5 | D55: 4936.53 | E55: 4895.02 | F55: 4818.53 | G55: 4777.02 | H55: 5013.02 | I55: 5054.53 | J55: 5131.02 | K55: 4978.05 | L55: 4860.05 | M55: 4.11953
A56: 47 | B56: CANBK | C56: 571 | D56: 565.08 | E56: 554.17 | F56: 537.33 | G56: 526.42 | H56: 581.92 | I56: 592.83 | J56: 609.67 | K56: 576 | L56: 548.25 | M56: 152.6913
A57: 48 | B57: CGPOWER | C57: 432.45 | D57: 430.90 | E57: 421.80 | F57: 411.15 | G57: 402.05 | H57: 441.55 | I57: 450.65 | J57: 461.30 | K57: 440 | L57: 420.25 | M57: 31.7812
A58: 49 | B58: CHOLAFIN | C58: 1122.3 | D58: 1120.90 | E58: 1101.60 | F58: 1080.90 | G58: 1061.60 | H58: 1141.60 | I58: 1160.90 | J58: 1181.60 | K58: 1140.2 | L58: 1100.2 | M58: 23.63941
A59: 50 | B59: CIPLA | C59: 1439.75 | D59: 1434.78 | E59: 1422.02 | F59: 1404.28 | G59: 1391.52 | H59: 1452.52 | I59: 1465.28 | J59: 1483.02 | K59: 1447.55 | L59: 1417.05 | M59: 12.15784
A60: 51 | B60: COALINDIA | C60: 456.2 | D60: 451.88 | E60: 439.97 | F60: 423.73 | G60: 411.82 | H60: 468.12 | I60: 480.03 | J60: 496.27 | K60: 463.8 | L60: 435.65 | M60: 174.72069
A61: 52 | B61: COFORGE | C61: 6500.75 | D61: 6537.92 | E61: 6433.83 | F61: 6366.92 | G61: 6262.83 | H61: 6604.83 | I61: 6708.92 | J61: 6775.83 | K61: 6642 | L61: 6471 | M61: 1.82879
A62: 53 | B62: COLPAL | C62: 2534.15 | D62: 2521.35 | E62: 2500.80 | F62: 2467.45 | G62: 2446.90 | H62: 2554.70 | I62: 2575.25 | J62: 2608.60 | K62: 2541.9 | L62: 2488 | M62: 1.14787
A63: 54 | B63: CONCOR | C63: 943.35 | D63: 941.67 | E63: 911.78 | F63: 880.22 | G63: 850.33 | H63: 973.23 | I63: 1003.12 | J63: 1034.68 | K63: 971.55 | L63: 910.1 | M63: 27.99376
A64: 55 | B64: COROMANDEL | C64: 1087.5 | D64: 1081.65 | E64: 1071.30 | F64: 1055.10 | G64: 1044.75 | H64: 1097.85 | I64: 1108.20 | J64: 1124.40 | K64: 1092 | L64: 1065.45 | M64: 2.66059
A65: 56 | B65: CROMPTON | C65: 286.95 | D65: 286.90 | E65: 284.65 | F65: 282.35 | G65: 280.10 | H65: 289.20 | I65: 291.45 | J65: 293.75 | K65: 289.15 | L65: 284.6 | M65: 26.41404
A66: 57 | B66: CUMMINSIND | C66: 2602.95 | D66: 2596.05 | E66: 2553.55 | F66: 2504.15 | G66: 2461.65 | H66: 2645.45 | I66: 2687.95 | J66: 2737.35 | K66: 2638.55 | L66: 2546.65 | M66: 15.43145
A67: 58 | B67: DABUR | C67: 539.2 | D67: 535.95 | E67: 531.90 | F67: 524.60 | G67: 520.55 | H67: 543.25 | I67: 547.30 | J67: 554.60 | K67: 540 | L67: 528.65 | M67: 17.86915
A68: 59 | B68: DALBHARAT | C68: 2127.2 | D68: 2110.70 | E68: 2084.70 | F68: 2042.20 | G68: 2016.20 | H68: 2153.20 | I68: 2179.20 | J68: 2221.70 | K68: 2136.7 | L68: 2068.2 | M68: 3.11415
A69: 60 | B69: DEEPAKNTR | C69: 2215.15 | D69: 2205.18 | E69: 2187.97 | F69: 2160.78 | G69: 2143.57 | H69: 2232.37 | I69: 2249.58 | J69: 2276.77 | K69: 2222.4 | L69: 2178 | M69: 1.45845
A70: 61 | B70: DELHIVERY | C70: 440.5 | D70: 445.30 | E70: 430.25 | F70: 420.00 | G70: 404.95 | H70: 455.55 | I70: 470.60 | J70: 480.85 | K70: 460.35 | L70: 435.05 | M70: 19.60175
A71: 62 | B71: DEVYANI | C71: 154.25 | D71: 152.67 | E71: 149.73 | F71: 145.22 | G71: 142.28 | H71: 157.18 | I71: 160.12 | J71: 164.63 | K71: 155.6 | L71: 148.15 | M71: 38.36808
A72: 63 | B72: DIVISLAB | C72: 3652.3 | D72: 3654.43 | E72: 3611.37 | F72: 3570.43 | G72: 3527.37 | H72: 3695.37 | I72: 3738.43 | J72: 3779.37 | K72: 3697.5 | L72: 3613.5 | M72: 4.15749
A73: 64 | B73: DIXON | C73: 6277.9 | D73: 6231.17 | E73: 6172.13 | F73: 6066.37 | G73: 6007.33 | H73: 6336.93 | I73: 6395.97 | J73: 6501.73 | K73: 6290.2 | L73: 6125.4 | M73: 1.54552
A74: 65 | B74: DLF | C74: 834.4 | D74: 827.13 | E74: 817.27 | F74: 800.13 | G74: 790.27 | H74: 844.27 | I74: 854.13 | J74: 871.27 | K74: 837 | L74: 810 | M74: 43.51187
A75: 66 | B75: DMART | C75: 3719.2 | D75: 3725.40 | E75: 3692.80 | F75: 3666.40 | G75: 3633.80 | H75: 3751.80 | I75: 3784.40 | J75: 3810.80 | K75: 3758 | L75: 3699 | M75: 3.06425
A76: 67 | B76: DRREDDY | C76: 6155.85 | D76: 6155.08 | E76: 6104.97 | F76: 6054.08 | G76: 6003.97 | H76: 6205.97 | I76: 6256.08 | J76: 6306.97 | K76: 6205.2 | L76: 6104.2 | M76: 2.47794
A77: 68 | B77: EICHERMOT | C77: 3840.95 | D77: 3816.83 | E77: 3785.72 | F77: 3730.48 | G77: 3699.37 | H77: 3872.07 | I77: 3903.18 | J77: 3958.42 | K77: 3847.95 | L77: 3761.6 | M77: 3.96729
A78: 69 | B78: ESCORTS | C78: 2807.25 | D78: 2786.88 | E78: 2668.77 | F78: 2530.28 | G78: 2412.17 | H78: 2925.37 | I78: 3043.48 | J78: 3181.97 | K78: 2905 | L78: 2648.4 | M78: 20.56922
A79: 70 | B79: FEDERALBNK | C79: 147.3 | D79: 146.10 | E79: 144.55 | F79: 141.80 | G79: 140.25 | H79: 148.85 | I79: 150.40 | J79: 153.15 | K79: 147.65 | L79: 143.35 | M79: 108.58532
A80: 71 | B80: FLUOROCHEM | C80: 3520.45 | D80: 3468.17 | E80: 3402.33 | F80: 3284.22 | G80: 3218.38 | H80: 3586.28 | I80: 3652.12 | J80: 3770.23 | K80: 3534 | L80: 3350.05 | M80: 1.07223
A81: 72 | B81: FORTIS | C81: 434.95 | D81: 435.72 | E81: 427.43 | F81: 419.92 | G81: 411.63 | H81: 443.23 | I81: 451.52 | J81: 459.03 | K81: 444 | L81: 428.2 | M81: 10.362
A82: 73 | B82: GAIL | C82: 173.1 | D82: 173.78 | E82: 167.47 | F82: 161.83 | G82: 155.52 | H82: 179.42 | I82: 185.73 | J82: 191.37 | K82: 180.1 | L82: 168.15 | M82: 361.93339
A83: 74 | B83: GLAND | C83: 2007.25 | D83: 1997.85 | E83: 1973.40 | F83: 1939.55 | G83: 1915.10 | H83: 2031.70 | I83: 2056.15 | J83: 2090.00 | K83: 2022.3 | L83: 1964 | M83: 1.40161
A84: 75 | B84: GODREJCP | C84: 1218.65 | D84: 1213.42 | E84: 1203.78 | F84: 1188.92 | G84: 1179.28 | H84: 1228.28 | I84: 1237.92 | J84: 1252.78 | K84: 1223.05 | L84: 1198.55 | M84: 7.01591
A85: 76 | B85: GODREJPROP | C85: 2256.8 | D85: 2232.53 | E85: 2199.62 | F85: 2142.43 | G85: 2109.52 | H85: 2289.72 | I85: 2322.63 | J85: 2379.82 | K85: 2265.45 | L85: 2175.35 | M85: 5.99951
A86: 77 | B86: GRASIM | C86: 2168.5 | D86: 2132.47 | E86: 2082.93 | F86: 1997.37 | G86: 1947.83 | H86: 2218.03 | I86: 2267.57 | J86: 2353.13 | K86: 2182 | L86: 2046.9 | M86: 20.10089
A87: 78 | B87: GUJGASLTD | C87: 582.9 | D87: 581.68 | E87: 567.27 | F87: 551.63 | G87: 537.22 | H87: 597.32 | I87: 611.73 | J87: 627.37 | K87: 596.1 | L87: 566.05 | M87: 12.40706
A88: 79 | B88: HAL | C88: 2965.35 | D88: 3004.12 | E88: 2881.23 | F88: 2797.12 | G88: 2674.23 | H88: 3088.23 | I88: 3211.12 | J88: 3295.23 | K88: 3127 | L88: 2920 | M88: 31.76427
A89: 80 | B89: HAVELLS | C89: 1346.9 | D89: 1342.82 | E89: 1330.73 | F89: 1314.57 | G89: 1302.48 | H89: 1358.98 | I89: 1371.07 | J89: 1387.23 | K89: 1354.9 | L89: 1326.65 | M89: 9.41809
A90: 81 | B90: HCLTECH | C90: 1630.6 | D90: 1630.67 | E90: 1614.58 | F90: 1598.57 | G90: 1582.48 | H90: 1646.68 | I90: 1662.77 | J90: 1678.78 | K90: 1646.75 | L90: 1614.65 | M90: 33.41297
A91: 82 | B91: HDFCAMC | C91: 3636.65 | D91: 3634.78 | E91: 3579.57 | F91: 3522.48 | G91: 3467.27 | H91: 3691.87 | I91: 3747.08 | J91: 3804.17 | K91: 3690 | L91: 3577.7 | M91: 2.55781
A92: 83 | B92: HDFCBANK | C92: 1403.6 | D92: 1401.60 | E92: 1389.00 | F92: 1374.40 | G92: 1361.80 | H92: 1416.20 | I92: 1428.80 | J92: 1443.40 | K92: 1414.2 | L92: 1387 | M92: 283.21062
A93: 84 | B93: HDFCLIFE | C93: 584 | D93: 586.80 | E93: 579.45 | F93: 574.90 | G93: 567.55 | H93: 591.35 | I93: 598.70 | J93: 603.25 | K93: 594.15 | L93: 582.25 | M93: 24.53771
A94: 85 | B94: HEROMOTOCO | C94: 4908.85 | D94: 4874.98 | E94: 4825.97 | F94: 4743.08 | G94: 4694.07 | H94: 4957.87 | I94: 5006.88 | J94: 5089.77 | K94: 4924 | L94: 4792.1 | M94: 7.18094
A95: 86 | B95: HINDALCO | C95: 591.3 | D95: 589.87 | E95: 577.73 | F95: 564.17 | G95: 552.03 | H95: 603.43 | I95: 615.57 | J95: 629.13 | K95: 602 | L95: 576.3 | M95: 51.05348
A96: 87 | B96: HINDPETRO | C96: 510.2 | D96: 508.65 | E96: 490.85 | F96: 471.50 | G96: 453.70 | H96: 528.00 | I96: 545.80 | J96: 565.15 | K96: 526.45 | L96: 489.3 | M96: 97.89517
A97: 88 | B97: HINDUNILVR | C97: 2424.15 | D97: 2419.57 | E97: 2410.68 | F97: 2397.22 | G97: 2388.33 | H97: 2433.03 | I97: 2441.92 | J97: 2455.38 | K97: 2428.45 | L97: 2406.1 | M97: 8.86474
A98: 89 | B98: HINDZINC | C98: 312.6 | D98: 312.62 | E98: 310.48 | F98: 308.37 | G98: 306.23 | H98: 314.73 | I98: 316.87 | J98: 318.98 | K98: 314.75 | L98: 310.5 | M98: 2.90538
A99: 90 | B99: HONAUT | C99: 38535.45 | D99: 39002.12 | E99: 37838.33 | F99: 37141.22 | G99: 35977.43 | H99: 39699.23 | I99: 40863.02 | J99: 41560.13 | K99: 40165.9 | L99: 38305 | M99: 0.18832
A100: 91 | B100: ICICIBANK | C100: 1010.7 | D100: 1003.32 | E100: 992.88 | F100: 975.07 | G100: 964.63 | H100: 1021.13 | I100: 1031.57 | J100: 1049.38 | K100: 1013.75 | L100: 985.5 | M100: 127.99837
A101: 92 | B101: ICICIGI | C101: 1638.4 | D101: 1629.90 | E101: 1615.60 | F101: 1592.80 | G101: 1578.50 | H101: 1652.70 | I101: 1667.00 | J101: 1689.80 | K101: 1644.2 | L101: 1607.1 | M101: 6.26195
A102: 93 | B102: ICICIPRULI | C102: 521.45 | D102: 518.30 | E102: 513.65 | F102: 505.85 | G102: 501.20 | H102: 526.10 | I102: 530.75 | J102: 538.55 | K102: 522.95 | L102: 510.5 | M102: 10.22445
A103: 94 | B103: IDEA | C103: 15.5 | D103: 15.18 | E103: 14.72 | F103: 13.93 | G103: 13.47 | H103: 15.97 | I103: 16.43 | J103: 17.22 | K103: 15.65 | L103: 14.4 | M103: 5479.88511
A104: 95 | B104: IDFCFIRSTB | C104: 81.25 | D104: 80.78 | E104: 79.97 | F104: 78.68 | G104: 77.87 | H104: 82.07 | I104: 82.88 | J104: 84.17 | K104: 81.6 | L104: 79.5 | M104: 381.53683
A105: 96 | B105: IGL | C105: 439.95 | D105: 436.38 | E105: 429.97 | F105: 419.98 | G105: 413.57 | H105: 446.37 | I105: 452.78 | J105: 462.77 | K105: 442.8 | L105: 426.4 | M105: 14.17071
A106: 97 | B106: INDHOTEL | C106: 532.95 | D106: 531.13 | E106: 525.27 | F106: 517.58 | G106: 511.72 | H106: 538.82 | I106: 544.68 | J106: 552.37 | K106: 537 | L106: 523.45 | M106: 50.10458
A107: 98 | B107: INDIANB | C107: 531.65 | D107: 536.35 | E107: 516.55 | F107: 501.45 | G107: 481.65 | H107: 551.45 | I107: 571.25 | J107: 586.35 | K107: 556.15 | L107: 521.25 | M107: 26.26837
A108: 99 | B108: INDIGO | C108: 3105.95 | D108: 3082.55 | E108: 3007.60 | F108: 2909.25 | G108: 2834.30 | H108: 3180.90 | I108: 3255.85 | J108: 3354.20 | K108: 3157.5 | L108: 2984.2 | M108: 16.6721
A109: 100 | B109: INDUSINDBK | C109: 1486.25 | D109: 1480.10 | E109: 1468.80 | F109: 1451.35 | G109: 1440.05 | H109: 1497.55 | I109: 1508.85 | J109: 1526.30 | K109: 1491.4 | L109: 1462.65 | M109: 23.88841
A110: 101 | B110: INDUSTOWER | C110: 226.15 | D110: 224.38 | E110: 219.72 | F110: 213.28 | G110: 208.62 | H110: 230.82 | I110: 235.48 | J110: 241.92 | K110: 229.05 | L110: 217.95 | M110: 195.74909
A111: 102 | B111: INFY | C111: 1669.35 | D111: 1674.02 | E111: 1655.13 | F111: 1640.92 | G111: 1622.03 | H111: 1688.23 | I111: 1707.12 | J111: 1721.33 | K111: 1692.9 | L111: 1659.8 | M111: 46.00004
A112: 103 | B112: IOC | C112: 182.5 | D112: 184.70 | E112: 175.55 | F112: 168.60 | G112: 159.45 | H112: 191.65 | I112: 200.80 | J112: 207.75 | K112: 193.85 | L112: 177.75 | M112: 841.37345
A113: 104 | B113: IPCALAB | C113: 1195.6 | D113: 1203.20 | E113: 1182.40 | F113: 1169.20 | G113: 1148.40 | H113: 1216.40 | I113: 1237.20 | J113: 1250.40 | K113: 1224 | L113: 1190 | M113: 2.5684
A114: 105 | B114: IRCTC | C114: 939.15 | D114: 936.52 | E114: 918.63 | F114: 898.12 | G114: 880.23 | H114: 957.03 | I114: 974.92 | J114: 995.43 | K114: 954.4 | L114: 916 | M114: 24.82688
A115: 106 | B115: IRFC | C115: 153.7 | D115: 154.95 | E115: 147.90 | F115: 142.10 | G115: 135.05 | H115: 160.75 | I115: 167.80 | J115: 173.60 | K115: 162 | L115: 149.15 | M115: 648.01528
A116: 107 | B116: ITC | C116: 415.5 | D116: 416.10 | E116: 408.00 | F116: 400.50 | G116: 392.40 | H116: 423.60 | I116: 431.70 | J116: 439.20 | K116: 424.2 | L116: 408.6 | M116: 322.83965
A117: 108 | B117: JINDALSTEL | C117: 761.45 | D117: 760.08 | E117: 743.22 | F117: 724.98 | G117: 708.12 | H117: 778.32 | I117: 795.18 | J117: 813.42 | K117: 776.95 | L117: 741.85 | M117: 18.78921
A118: 109 | B118: JSWENERGY | C118: 500.2 | D118: 498.73 | E118: 485.57 | F118: 470.93 | G118: 457.77 | H118: 513.37 | I118: 526.53 | J118: 541.17 | K118: 511.9 | L118: 484.1 | M118: 31.88552
A119: 110 | B119: JSWSTEEL | C119: 811.75 | D119: 812.40 | E119: 799.80 | F119: 787.85 | G119: 775.25 | H119: 824.35 | I119: 836.95 | J119: 848.90 | K119: 825 | L119: 800.45 | M119: 13.96058
A120: 111 | B120: JUBLFOOD | C120: 482.05 | D120: 480.37 | E120: 476.73 | F120: 471.42 | G120: 467.78 | H120: 485.68 | I120: 489.32 | J120: 494.63 | K120: 484 | L120: 475.05 | M120: 17.99879
A121: 112 | B121: KOTAKBANK | C121: 1742.45 | D121: 1736.82 | E121: 1724.63 | F121: 1706.82 | G121: 1694.63 | H121: 1754.63 | I121: 1766.82 | J121: 1784.63 | K121: 1749 | L121: 1719 | M121: 40.63976
A122: 113 | B122: L&TFH | C122: 171.5 | D122: 170.13 | E122: 167.12 | F122: 162.73 | G122: 159.72 | H122: 174.52 | I122: 177.53 | J122: 181.92 | K122: 173.15 | L122: 165.75 | M122: 50.2679
A123: 114 | B123: LALPATHLAB | C123: 2451.9 | D123: 2439.95 | E123: 2417.85 | F123: 2383.80 | G123: 2361.70 | H123: 2474.00 | I123: 2496.10 | J123: 2530.15 | K123: 2462.05 | L123: 2405.9 | M123: 1.18344
A124: 115 | B124: LAURUSLABS | C124: 392.5 | D124: 391.50 | E124: 387.00 | F124: 381.50 | G124: 377.00 | H124: 397.00 | I124: 401.50 | J124: 407.00 | K124: 396 | L124: 386 | M124: 8.53538
A125: 116 | B125: LICHSGFIN | C125: 650.2 | D125: 646.42 | E125: 635.93 | F125: 621.67 | G125: 611.18 | H125: 660.68 | I125: 671.17 | J125: 685.43 | K125: 656.9 | L125: 632.15 | M125: 20.17131
A126: 117 | B126: LICI | C126: 1080.85 | D126: 1107.62 | E126: 1040.23 | F126: 999.62 | G126: 932.23 | H126: 1148.23 | I126: 1215.62 | J126: 1256.23 | K126: 1175 | L126: 1067 | M126: 215.51992
A127: 118 | B127: LT | C127: 3324.55 | D127: 3341.17 | E127: 3292.33 | F127: 3260.12 | G127: 3211.28 | H127: 3373.38 | I127: 3422.22 | J127: 3454.43 | K127: 3390 | L127: 3308.95 | M127: 31.21873
A128: 119 | B128: LTIM | C128: 5453.3 | D128: 5428.43 | E128: 5386.87 | F128: 5320.43 | G128: 5278.87 | H128: 5494.87 | I128: 5536.43 | J128: 5602.87 | K128: 5470 | L128: 5362 | M128: 1.96922
A129: 120 | B129: LTTS | C129: 5565.8 | D129: 5549.45 | E129: 5481.45 | F129: 5397.10 | G129: 5329.10 | H129: 5633.80 | I129: 5701.80 | J129: 5786.15 | K129: 5617.45 | L129: 5465.1 | M129: 0.66043
A130: 121 | B130: LUPIN | C130: 1622.1 | D130: 1630.67 | E130: 1606.48 | F130: 1590.87 | G130: 1566.68 | H130: 1646.28 | I130: 1670.47 | J130: 1686.08 | K130: 1654.85 | L130: 1615.05 | M130: 30.21386
A131: 122 | B131: M&M | C131: 1646.4 | D131: 1654.72 | E131: 1619.68 | F131: 1592.97 | G131: 1557.93 | H131: 1681.43 | I131: 1716.47 | J131: 1743.18 | K131: 1689.75 | L131: 1628 | M131: 20.3395
A132: 123 | B132: M&MFIN | C132: 288.85 | D132: 288.08 | E132: 282.87 | F132: 276.88 | G132: 271.67 | H132: 294.07 | I132: 299.28 | J132: 305.27 | K132: 293.3 | L132: 282.1 | M132: 32.20669
A133: 124 | B133: MANKIND | C133: 2241.85 | D133: 2240.33 | E133: 2192.52 | F133: 2143.18 | G133: 2095.37 | H133: 2289.67 | I133: 2337.48 | J133: 2386.82 | K133: 2288.15 | L133: 2191 | M133: 7.65123
A134: 125 | B134: MARICO | C134: 520.65 | D134: 520.42 | E134: 516.88 | F134: 513.12 | G134: 509.58 | H134: 524.18 | I134: 527.72 | J134: 531.48 | K134: 523.95 | L134: 516.65 | M134: 5.83337
A135: 126 | B135: MARUTI | C135: 10732.85 | D135: 10704.65 | E135: 10639.30 | F135: 10545.75 | G135: 10480.40 | H135: 10798.20 | I135: 10863.55 | J135: 10957.10 | K135: 10770 | L135: 10611.1 | M135: 6.45489
A136: 127 | B136: MAXHEALTH | C136: 874.4 | D136: 872.77 | E136: 861.63 | F136: 848.87 | G136: 837.73 | H136: 885.53 | I136: 896.67 | J136: 909.43 | K136: 883.9 | L136: 860 | M136: 79.95614
A137: 128 | B137: MCDOWELL-N | C137: 1111.5 | D137: 1098.52 | E137: 1084.03 | F137: 1056.57 | G137: 1042.08 | H137: 1125.98 | I137: 1140.47 | J137: 1167.93 | K137: 1113 | L137: 1071.05 | M137: 14.38336
A138: 129 | B138: MFSL | C138: 987.35 | D138: 988.73 | E138: 972.27 | F138: 957.18 | G138: 940.72 | H138: 1003.82 | I138: 1020.28 | J138: 1035.37 | K138: 1005.2 | L138: 973.65 | M138: 9.89168
A139: 130 | B139: MOTHERSON | C139: 121.25 | D139: 120.28 | E139: 118.17 | F139: 115.08 | G139: 112.97 | H139: 123.37 | I139: 125.48 | J139: 128.57 | K139: 122.4 | L139: 117.2 | M139: 138.59592
A140: 131 | B140: MPHASIS | C140: 2589.3 | D140: 2595.95 | E140: 2543.90 | F140: 2498.50 | G140: 2446.45 | H140: 2641.35 | I140: 2693.40 | J140: 2738.80 | K140: 2648 | L140: 2550.55 | M140: 4.13772
A141: 132 | B141: MRF | C141: 137083.35 | D141: 139044.45 | E141: 134338.90 | F141: 131594.45 | G141: 126888.90 | H141: 141788.90 | I141: 146494.45 | J141: 149238.90 | K141: 143750 | L141: 136300 | M141: 0.26614
A142: 133 | B142: MSUMI | C142: 68.95 | D142: 69.63 | E142: 67.17 | F142: 65.38 | G142: 62.92 | H142: 71.42 | I142: 73.88 | J142: 75.67 | K142: 72.1 | L142: 67.85 | M142: 126.01579
A143: 134 | B143: MUTHOOTFIN | C143: 1377.7 | D143: 1373.32 | E143: 1362.63 | F143: 1347.57 | G143: 1336.88 | H143: 1388.38 | I143: 1399.07 | J143: 1414.13 | K143: 1384 | L143: 1358.25 | M143: 3.09793
A144: 135 | B144: NAUKRI | C144: 5492.6 | D144: 5483.78 | E144: 5428.72 | F144: 5364.83 | G144: 5309.77 | H144: 5547.67 | I144: 5602.73 | J144: 5666.62 | K144: 5538.85 | L144: 5419.9 | M144: 3.58435
A145: 136 | B145: NAVINFLUOR | C145: 3028.4 | D145: 3039.83 | E145: 2989.67 | F145: 2950.93 | G145: 2900.77 | H145: 3078.57 | I145: 3128.73 | J145: 3167.47 | K145: 3090 | L145: 3001.1 | M145: 3.28102
A146: 137 | B146: NESTLEIND | C146: 2450.1 | D146: 2445.35 | E146: 2424.80 | F146: 2399.50 | G146: 2378.95 | H146: 2470.65 | I146: 2491.20 | J146: 2516.50 | K146: 2465.9 | L146: 2420.05 | M146: 8.38819
A147: 138 | B147: NHPC | C147: 96.25 | D147: 96.98 | E147: 91.77 | F147: 87.28 | G147: 82.07 | H147: 101.47 | I147: 106.68 | J147: 111.17 | K147: 102.2 | L147: 92.5 | M147: 2201.90578
A148: 139 | B148: NMDC | C148: 241.5 | D148: 240.12 | E148: 235.13 | F148: 228.77 | G148: 223.78 | H148: 246.48 | I148: 251.47 | J148: 257.83 | K148: 245.1 | L148: 233.75 | M148: 128.29576
A149: 140 | B149: NTPC | C149: 324.9 | D149: 326.50 | E149: 318.00 | F149: 311.10 | G149: 302.60 | H149: 333.40 | I149: 341.90 | J149: 348.80 | K149: 335 | L149: 319.6 | M149: 183.04439
A150: 141 | B150: NYKAA | C150: 150.15 | D150: 150.12 | E150: 146.78 | F150: 143.42 | G150: 140.08 | H150: 153.48 | I150: 156.82 | J150: 160.18 | K150: 153.45 | L150: 146.75 | M150: 108.85189
A151: 142 | B151: OBEROIRLTY | C151: 1341.95 | D151: 1334.55 | E151: 1316.60 | F151: 1291.25 | G151: 1273.30 | H151: 1359.90 | I151: 1377.85 | J151: 1403.20 | K151: 1352.5 | L151: 1309.2 | M151: 4.63883
A152: 143 | B152: OFSS | C152: 7525.75 | D152: 7396.92 | E152: 7203.83 | F152: 6881.92 | G152: 6688.83 | H152: 7718.83 | I152: 7911.92 | J152: 8233.83 | K152: 7590 | L152: 7075 | M152: 4.16579
A153: 144 | B153: OIL | C153: 516.15 | D153: 514.20 | E153: 504.00 | F153: 491.85 | G153: 481.65 | H153: 526.35 | I153: 536.55 | J153: 548.70 | K153: 524.4 | L153: 502.05 | M153: 62.52556
A154: 145 | B154: ONGC | C154: 267.55 | D154: 267.45 | E154: 259.25 | F154: 250.95 | G154: 242.75 | H154: 275.75 | I154: 283.95 | J154: 292.25 | K154: 275.65 | L154: 259.15 | M154: 267.43792
A155: 146 | B155: PAGEIND | C155: 36304.15 | D155: 36371.62 | E155: 35793.23 | F155: 35282.32 | G155: 34703.93 | H155: 36882.53 | I155: 37460.92 | J155: 37971.83 | K155: 36950 | L155: 35860.7 | M155: 0.29638
A156: 147 | B156: PATANJALI | C156: 1603.8 | D156: 1594.17 | E156: 1574.33 | F156: 1544.87 | G156: 1525.03 | H156: 1623.63 | I156: 1643.47 | J156: 1672.93 | K156: 1614 | L156: 1564.7 | M156: 11.72465
A157: 148 | B157: PAYTM | C157: 419.85 | D157: 422.62 | E157: 407.23 | F157: 394.62 | G157: 379.23 | H157: 435.23 | I157: 450.62 | J157: 463.23 | K157: 438 | L157: 410 | M157: 149.18098
A158: 149 | B158: PEL | C158: 892.15 | D158: 889.72 | E158: 874.43 | F158: 856.72 | G158: 841.43 | H158: 907.43 | I158: 922.72 | J158: 940.43 | K158: 905 | L158: 872 | M158: 6.91655
A159: 150 | B159: PERSISTENT | C159: 8638.75 | D159: 8636.13 | E159: 8572.77 | F159: 8506.78 | G159: 8443.42 | H159: 8702.12 | I159: 8765.48 | J159: 8831.47 | K159: 8699.5 | L159: 8570.15 | M159: 1.59345
A160: 151 | B160: PETRONET | C160: 270.15 | D160: 271.97 | E160: 262.93 | F160: 255.72 | G160: 246.68 | H160: 279.18 | I160: 288.22 | J160: 295.43 | K160: 281 | L160: 264.75 | M160: 97.01673
A161: 152 | B161: PFC | C161: 428.85 | D161: 432.87 | E161: 402.73 | F161: 376.62 | G161: 346.48 | H161: 458.98 | I161: 489.12 | J161: 515.23 | K161: 463 | L161: 406.75 | M161: 565.89108
A162: 153 | B162: PGHH | C162: 16552.45 | D162: 16542.12 | E162: 16309.33 | F162: 16066.22 | G162: 15833.43 | H162: 16785.23 | I162: 17018.02 | J162: 17261.13 | K162: 16774.9 | L162: 16299 | M162: 0.0392
A163: 154 | B163: PIDILITIND | C163: 2657.95 | D163: 2645.02 | E163: 2623.03 | F163: 2588.12 | G163: 2566.13 | H163: 2679.93 | I163: 2701.92 | J163: 2736.83 | K163: 2667 | L163: 2610.1 | M163: 2.77561
A164: 155 | B164: PIIND | C164: 3484.35 | D164: 3473.45 | E164: 3436.90 | F164: 3389.45 | G164: 3352.90 | H164: 3520.90 | I164: 3557.45 | J164: 3604.90 | K164: 3510 | L164: 3426 | M164: 7.37224
A165: 156 | B165: PNB | C165: 123.9 | D165: 122.10 | E165: 119.60 | F165: 115.30 | G165: 112.80 | H165: 126.40 | I165: 128.90 | J165: 133.20 | K165: 124.6 | L165: 117.8 | M165: 691.28606
A166: 157 | B166: POLICYBZR | C166: 933.6 | D166: 926.43 | E166: 909.87 | F166: 886.13 | G166: 869.57 | H166: 950.17 | I166: 966.73 | J166: 990.47 | K166: 943 | L166: 902.7 | M166: 9.08009
A167: 158 | B167: POLYCAB | C167: 4307.35 | D167: 4295.67 | E167: 4261.68 | F167: 4216.02 | G167: 4182.03 | H167: 4341.33 | I167: 4375.32 | J167: 4420.98 | K167: 4329.65 | L167: 4250 | M167: 2.72191
A168: 159 | B168: POONAWALLA | C168: 480.85 | D168: 482.80 | E168: 471.75 | F168: 462.65 | G168: 451.60 | H168: 491.90 | I168: 502.95 | J168: 512.05 | K168: 493.85 | L168: 473.7 | M168: 10.59212
A169: 160 | B169: POWERGRID | C169: 273 | D169: 273.85 | E169: 268.25 | F169: 263.50 | G169: 257.90 | H169: 278.60 | I169: 284.20 | J169: 288.95 | K169: 279.45 | L169: 269.1 | M169: 244.96638
A170: 161 | B170: PRESTIGE | C170: 1202.5 | D170: 1193.28 | E170: 1166.72 | F170: 1130.93 | G170: 1104.37 | H170: 1229.07 | I170: 1255.63 | J170: 1291.42 | K170: 1219.85 | L170: 1157.5 | M170: 5.58738
A171: 162 | B171: RAMCOCEM | C171: 901.75 | D171: 911.13 | E171: 884.17 | F171: 866.58 | G171: 839.62 | H171: 928.72 | I171: 955.68 | J171: 973.27 | K171: 938.1 | L171: 893.55 | M171: 30.78842
A172: 163 | B172: RECLTD | C172: 482.4 | D172: 483.85 | E172: 461.85 | F172: 441.30 | G172: 419.30 | H172: 504.40 | I172: 526.40 | J172: 546.95 | K172: 505.85 | L172: 463.3 | M172: 245.72692
A173: 164 | B173: RELIANCE | C173: 2921.5 | D173: 2922.45 | E173: 2900.95 | F173: 2880.40 | G173: 2858.90 | H173: 2943.00 | I173: 2964.50 | J173: 2985.05 | K173: 2943.95 | L173: 2901.9 | M173: 62.78399
A174: 165 | B174: SAIL | C174: 133.65 | D174: 134.23 | E174: 128.87 | F174: 124.08 | G174: 118.72 | H174: 139.02 | I174: 144.38 | J174: 149.17 | K174: 139.6 | L174: 129.45 | M174: 531.10476
A175: 166 | B175: SBICARD | C175: 718.4 | D175: 717.83 | E175: 710.67 | F175: 702.93 | G175: 695.77 | H175: 725.57 | I175: 732.73 | J175: 740.47 | K175: 725 | L175: 710.1 | M175: 9.58307
A176: 167 | B176: SBILIFE | C176: 1439.7 | D176: 1448.07 | E176: 1428.13 | F176: 1416.57 | G176: 1396.63 | H176: 1459.63 | I176: 1479.57 | J176: 1491.13 | K176: 1468 | L176: 1436.5 | M176: 5.96482
A177: 168 | B177: SBIN | C177: 725.25 | D177: 715.93 | E177: 703.52 | F177: 681.78 | G177: 669.37 | H177: 737.67 | I177: 750.08 | J177: 771.82 | K177: 728.35 | L177: 694.2 | M177: 432.35061
A178: 169 | B178: SHREECEM | C178: 27630.1 | D178: 27551.70 | E178: 27278.40 | F178: 26926.70 | G178: 26653.40 | H178: 27903.40 | I178: 28176.70 | J178: 28528.40 | K178: 27825 | L178: 27200 | M178: 0.25267
A179: 170 | B179: SHRIRAMFIN | C179: 2334.1 | D179: 2326.55 | E179: 2299.05 | F179: 2264.00 | G179: 2236.50 | H179: 2361.60 | I179: 2389.10 | J179: 2424.15 | K179: 2354.05 | L179: 2291.5 | M179: 5.8061
A180: 171 | B180: SIEMENS | C180: 4275.8 | D180: 4244.30 | E180: 4187.40 | F180: 4099.00 | G180: 4042.10 | H180: 4332.70 | I180: 4389.60 | J180: 4478.00 | K180: 4301.2 | L180: 4155.9 | M180: 2.31257
A181: 172 | B181: SONACOMS | C181: 619.35 | D181: 610.63 | E181: 599.42 | F181: 579.48 | G181: 568.27 | H181: 630.57 | I181: 641.78 | J181: 661.72 | K181: 621.85 | L181: 590.7 | M181: 7.9447
A182: 173 | B182: SRF | C182: 2298.55 | D182: 2289.82 | E182: 2272.63 | F182: 2246.72 | G182: 2229.53 | H182: 2315.73 | I182: 2332.92 | J182: 2358.83 | K182: 2307 | L182: 2263.9 | M182: 2.09506
A183: 174 | B183: SUNPHARMA | C183: 1534.8 | D183: 1522.02 | E183: 1505.03 | F183: 1475.27 | G183: 1458.28 | H183: 1551.78 | I183: 1568.77 | J183: 1598.53 | K183: 1539 | L183: 1492.25 | M183: 63.43881
A184: 175 | B184: SUNTV | C184: 622.75 | D184: 626.25 | E184: 614.55 | F184: 606.35 | G184: 594.65 | H184: 634.45 | I184: 646.15 | J184: 654.35 | K184: 637.95 | L184: 618.05 | M184: 4.4754
A185: 176 | B185: SYNGENE | C185: 748.3 | D185: 740.90 | E185: 729.85 | F185: 711.40 | G185: 700.35 | H185: 759.35 | I185: 770.40 | J185: 788.85 | K185: 751.95 | L185: 722.45 | M185: 10.34372
A186: 177 | B186: TATACHEM | C186: 957.05 | D186: 962.42 | E186: 944.73 | F186: 932.42 | G186: 914.73 | H186: 974.73 | I186: 992.42 | J186: 1004.73 | K186: 980.1 | L186: 950.1 | M186: 12.77795
A187: 178 | B187: TATACOMM | C187: 1760.85 | D187: 1751.30 | E187: 1727.55 | F187: 1694.25 | G187: 1670.50 | H187: 1784.60 | I187: 1808.35 | J187: 1841.65 | K187: 1775.05 | L187: 1718 | M187: 8.08998
A188: 179 | B188: TATACONSUM | C188: 1129.25 | D188: 1132.83 | E188: 1116.27 | F188: 1103.28 | G188: 1086.72 | H188: 1145.82 | I188: 1162.38 | J188: 1175.37 | K188: 1149.4 | L188: 1119.85 | M188: 9.17196
A189: 180 | B189: TATAELXSI | C189: 7629.35 | D189: 7636.43 | E189: 7513.92 | F189: 7398.48 | G189: 7275.97 | H189: 7751.87 | I189: 7874.38 | J189: 7989.82 | K189: 7758.95 | L189: 7521 | M189: 1.11039
A190: 181 | B190: TATAMOTORS | C190: 915 | D190: 916.15 | E190: 904.90 | F190: 894.80 | G190: 883.55 | H190: 926.25 | I190: 937.50 | J190: 947.60 | K190: 927.4 | L190: 906.05 | M190: 79.04881
A191: 182 | B191: TATAPOWER | C191: 392.1 | D191: 396.35 | E191: 379.80 | F191: 367.50 | G191: 350.95 | H191: 408.65 | I191: 425.20 | J191: 437.50 | K191: 412.9 | L191: 384.05 | M191: 382.95877
A192: 183 | B192: TATASTEEL | C192: 141.3 | D192: 141.63 | E192: 138.82 | F192: 136.33 | G192: 133.52 | H192: 144.12 | I192: 146.93 | J192: 149.42 | K192: 144.45 | L192: 139.15 | M192: 359.61925
A193: 184 | B193: TCS | C193: 4133.7 | D193: 4139.48 | E193: 4094.22 | F193: 4054.73 | G193: 4009.47 | H193: 4178.97 | I193: 4224.23 | J193: 4263.72 | K193: 4184.75 | L193: 4100 | M193: 21.00596
A194: 185 | B194: TECHM | C194: 1311.05 | D194: 1312.82 | E194: 1304.18 | F194: 1297.32 | G194: 1288.68 | H194: 1319.68 | I194: 1328.32 | J194: 1335.18 | K194: 1321.45 | L194: 1305.95 | M194: 10.85349
A195: 186 | B195: TIINDIA | C195: 3459.2 | D195: 3508.45 | E195: 3391.90 | F195: 3324.60 | G195: 3208.05 | H195: 3575.75 | I195: 3692.30 | J195: 3759.60 | K195: 3625 | L195: 3441.15 | M195: 1.9119
A196: 187 | B196: TITAN | C196: 3591.6 | D196: 3574.12 | E196: 3550.33 | F196: 3509.07 | G196: 3485.28 | H196: 3615.38 | I196: 3639.17 | J196: 3680.43 | K196: 3597.9 | L196: 3532.85 | M196: 8.38509
A197: 188 | B197: TORNTPHARM | C197: 2657.35 | D197: 2648.67 | E197: 2624.33 | F197: 2591.32 | G197: 2566.98 | H197: 2681.68 | I197: 2706.02 | J197: 2739.03 | K197: 2673 | L197: 2615.65 | M197: 0.95974
A198: 189 | B198: TORNTPOWER | C198: 1173.45 | D198: 1160.13 | E198: 1128.57 | F198: 1083.68 | G198: 1052.12 | H198: 1205.02 | I198: 1236.58 | J198: 1281.47 | K198: 1191.7 | L198: 1115.25 | M198: 12.23641
A199: 190 | B199: TRENT | C199: 3759.55 | D199: 3761.55 | E199: 3665.10 | F199: 3570.65 | G199: 3474.20 | H199: 3856.00 | I199: 3952.45 | J199: 4046.90 | K199: 3858 | L199: 3667.1 | M199: 20.01715
A200: 191 | B200: TRIDENT | C200: 44.3 | D200: 44.25 | E200: 43.30 | F200: 42.30 | G200: 41.35 | H200: 45.25 | I200: 46.20 | J200: 47.20 | K200: 45.2 | L200: 43.25 | M200: 173.77966
A201: 192 | B201: TTML | C201: 98.25 | D201: 99.52 | E201: 92.43 | F201: 86.62 | G201: 79.53 | H201: 105.33 | I201: 112.42 | J201: 118.23 | K201: 106.6 | L201: 93.7 | M201: 346.28454
A202: 193 | B202: TVSMOTOR | C202: 2037.6 | D202: 2029.77 | E202: 2013.53 | F202: 1989.47 | G202: 1973.23 | H202: 2053.83 | I202: 2070.07 | J202: 2094.13 | K202: 2046 | L202: 2005.7 | M202: 2.35265
A203: 194 | B203: UBL | C203: 1776.75 | D203: 1782.52 | E203: 1739.88 | F203: 1703.02 | G203: 1660.38 | H203: 1819.38 | I203: 1862.02 | J203: 1898.88 | K203: 1825.15 | L203: 1745.65 | M203: 6.91104
A204: 195 | B204: ULTRACEMCO | C204: 9945.75 | D204: 9957.52 | E204: 9840.23 | F204: 9734.72 | G204: 9617.43 | H204: 10063.03 | I204: 10180.32 | J204: 10285.83 | K204: 10074.8 | L204: 9852 | M204: 4.00823
A205: 196 | B205: UNIONBANK | C205: 148.85 | D205: 147.00 | E205: 143.00 | F205: 137.15 | G205: 133.15 | H205: 152.85 | I205: 156.85 | J205: 162.70 | K205: 151 | L205: 141.15 | M205: 291.23961
... 28 more rows

Sheet MidCap Intra
L5: Back To Main Page
A6: FOR INTRA DAY TRADING | K6: =Main!B10 -> 2024-02-12
A9: Sr.no | B9: Scrip | C9: CLOSE RATE | D9: Pivot Point | E9: Supports | H9: Resistances
E10: S1 | F10: S2 | G10: S3 | H10: R1 | I10: R2 | J10: R3 | K10: HIGH | L10: LOW | M10: Total Trade Quanity in Lakhs
A11: 1 | B11: 360ONE | C11: 654.3 | D11: 652.62 | E11: 645.68 | F11: 637.07 | G11: 630.13 | H11: 661.23 | I11: 668.17 | J11: 676.78 | K11: 659.55 | L11: 644 | M11: 4.10126
A12: 2 | B12: 3MINDIA | C12: 32642.65 | D12: 32851.20 | E12: 31816.40 | F12: 30990.15 | G12: 29955.35 | H12: 33677.45 | I12: 34712.25 | J12: 35538.50 | K12: 33886 | L12: 32024.95 | M12: 0.07037
A13: 3 | B13: AARTIDRUGS | C13: 532.45 | D13: 536.88 | E13: 525.77 | F13: 519.08 | G13: 507.97 | H13: 543.57 | I13: 554.68 | J13: 561.37 | K13: 548 | L13: 530.2 | M13: 4.982
A14: 4 | B14: AARTIIND | C14: 663.35 | D14: 650.78 | E14: 635.57 | F14: 607.78 | G14: 592.57 | H14: 678.57 | I14: 693.78 | J14: 721.57 | K14: 666 | L14: 623 | M14: 61.26957
A15: 5 | B15: AAVAS | C15: 1408.5 | D15: 1413.85 | E15: 1398.75 | F15: 1389.00 | G15: 1373.90 | H15: 1423.60 | I15: 1438.70 | J15: 1448.45 | K15: 1428.95 | L15: 1404.1 | M15: 1.16109
A16: 6 | B16: ABB | C16: 4489.45 | D16: 4467.87 | E16: 4434.28 | F16: 4379.12 | G16: 4345.53 | H16: 4523.03 | I16: 4556.62 | J16: 4611.78 | K16: 4501.45 | L16: 4412.7 | M16: 2.03496
A17: 7 | B17: ABBOTINDIA | C17: 28083.7 | D17: 28184.40 | E17: 27919.95 | F17: 27756.20 | G17: 27491.75 | H17: 28348.15 | I17: 28612.60 | J17: 28776.35 | K17: 28448.85 | L17: 28020.65 | M17: 0.13645
A18: 8 | B18: ACC | C18: 2628.05 | D18: 2593.28 | E18: 2541.57 | F18: 2455.08 | G18: 2403.37 | H18: 2679.77 | I18: 2731.48 | J18: 2817.97 | K18: 2645 | L18: 2506.8 | M18: 18.28299
A19: 9 | B19: ADANIENT | C19: 3215.2 | D19: 3187.12 | E19: 3149.28 | F19: 3083.37 | G19: 3045.53 | H19: 3253.03 | I19: 3290.87 | J19: 3356.78 | K19: 3224.95 | L19: 3121.2 | M19: 15.72789
A20: 10 | B20: ADANIGREEN | C20: 1880.7 | D20: 1868.08 | E20: 1818.17 | F20: 1755.63 | G20: 1705.72 | H20: 1930.62 | I20: 1980.53 | J20: 2043.07 | K20: 1918 | L20: 1805.55 | M20: 31.59808
A21: 11 | B21: ADANIPORTS | C21: 1271.5 | D21: 1259.70 | E21: 1243.90 | F21: 1216.30 | G21: 1200.50 | H21: 1287.30 | I21: 1303.10 | J21: 1330.70 | K21: 1275.5 | L21: 1232.1 | M21: 35.38164
A22: 12 | B22: ADANIPOWER | C22: 569.5 | D22: 566.98 | E22: 556.52 | F22: 543.53 | G22: 533.07 | H22: 579.97 | I22: 590.43 | J22: 603.42 | K22: 577.45 | L22: 554 | M22: 13.27795
A23: 13 | B23: ATGL | C23: 1023.75 | D23: 1025.52 | E23: 1001.43 | F23: 979.12 | G23: 955.03 | H23: 1047.83 | I23: 1071.92 | J23: 1094.23 | K23: 1049.6 | L23: 1003.2 | M23: 37.10884
A24: 14 | B24: AWL | C24: 344.95 | D24: 347.23 | E24: 340.07 | F24: 335.18 | G24: 328.02 | H24: 352.12 | I24: 359.28 | J24: 364.17 | K24: 354.4 | L24: 342.35 | M24: 11.99105
A25: 15 | B25: ABCAPITAL | C25: 187.9 | D25: 186.32 | E25: 183.53 | F25: 179.17 | G25: 176.38 | H25: 190.68 | I25: 193.47 | J25: 197.83 | K25: 189.1 | L25: 181.95 | M25: 52.82306
A26: 16 | B26: ABFRL | C26: 252.85 | D26: 253.60 | E26: 245.80 | F26: 238.75 | G26: 230.95 | H26: 260.65 | I26: 268.45 | J26: 275.50 | K26: 261.4 | L26: 246.55 | M26: 64.84466
A27: 17 | B27: AEGISCHEM | C27: 373.85 | D27: 374.00 | E27: 364.45 | F27: 355.05 | G27: 345.50 | H27: 383.40 | I27: 392.95 | J27: 402.35 | K27: 383.55 | L27: 364.6 | M27: 3.81578
A28: 18 | B28: AETHER | C28: 866.3 | D28: 865.57 | E28: 849.13 | F28: 831.97 | G28: 815.53 | H28: 882.73 | I28: 899.17 | J28: 916.33 | K28: 882 | L28: 848.4 | M28: 0.96526
A29: 19 | B29: AFFLE | C29: 1114.25 | D29: 1129.27 | E29: 1092.98 | F29: 1071.72 | G29: 1035.43 | H29: 1150.53 | I29: 1186.82 | J29: 1208.08 | K29: 1165.55 | L29: 1108 | M29: 2.51374
A30: 20 | B30: AIAENG | C30: 3936.4 | D30: 3905.13 | E30: 3845.27 | F30: 3754.13 | G30: 3694.27 | H30: 3996.27 | I30: 4056.13 | J30: 4147.27 | K30: 3965 | L30: 3814 | M30: 0.73236
A31: 21 | B31: AJANTPHARM | C31: 2166.05 | D31: 2164.75 | E31: 2136.40 | F31: 2106.75 | G31: 2078.40 | H31: 2194.40 | I31: 2222.75 | J31: 2252.40 | K31: 2193.1 | L31: 2135.1 | M31: 1.65093
A32: 22 | B32: APLLTD | C32: 967.6 | D32: 974.78 | E32: 940.82 | F32: 914.03 | G32: 880.07 | H32: 1001.57 | I32: 1035.53 | J32: 1062.32 | K32: 1008.75 | L32: 948 | M32: 2.75157
A33: 23 | B33: ALKEM | C33: 5327.9 | D33: 5324.88 | E33: 5229.77 | F33: 5131.63 | G33: 5036.52 | H33: 5423.02 | I33: 5518.13 | J33: 5616.27 | K33: 5420 | L33: 5226.75 | M33: 5.7072
A34: 24 | B34: ALKYLAMINE | C34: 2218.15 | D34: 2209.72 | E34: 2188.43 | F34: 2158.72 | G34: 2137.43 | H34: 2239.43 | I34: 2260.72 | J34: 2290.43 | K34: 2231 | L34: 2180 | M34: 0.38027
A35: 25 | B35: ARE&M | C35: 870.7 | D35: 870.18 | E35: 855.62 | F35: 840.53 | G35: 825.97 | H35: 885.27 | I35: 899.83 | J35: 914.92 | K35: 884.75 | L35: 855.1 | M35: 3.54094
A36: 26 | B36: AMBER | C36: 4157.65 | D36: 4156.58 | E36: 4032.27 | F36: 3906.88 | G36: 3782.57 | H36: 4281.97 | I36: 4406.28 | J36: 4531.67 | K36: 4280.9 | L36: 4031.2 | M36: 1.77605
A37: 27 | B37: AMBUJACEM | C37: 576.2 | D37: 570.33 | E37: 558.42 | F37: 540.63 | G37: 528.72 | H37: 588.12 | I37: 600.03 | J37: 617.82 | K37: 582.25 | L37: 552.55 | M37: 69.56624
A38: 28 | B38: ANGELONE | C38: 3394.35 | D38: 3377.65 | E38: 3317.70 | F38: 3241.05 | G38: 3181.10 | H38: 3454.30 | I38: 3514.25 | J38: 3590.90 | K38: 3437.6 | L38: 3301 | M38: 2.06713
A39: 29 | B39: ANURAS | C39: 922.5 | D39: 917.50 | E39: 905.20 | F39: 887.90 | G39: 875.60 | H39: 934.80 | I39: 947.10 | J39: 964.40 | K39: 929.8 | L39: 900.2 | M39: 1.76904
A40: 30 | B40: APARINDS | C40: 6147.9 | D40: 6147.95 | E40: 6005.05 | F40: 5862.20 | G40: 5719.30 | H40: 6290.80 | I40: 6433.70 | J40: 6576.55 | K40: 6290.85 | L40: 6005.1 | M40: 1.0394
A41: 31 | B41: APLAPOLLO | C41: 1342.6 | D41: 1352.78 | E41: 1316.57 | F41: 1290.53 | G41: 1254.32 | H41: 1378.82 | I41: 1415.03 | J41: 1441.07 | K41: 1389 | L41: 1326.75 | M41: 9.12385
A42: 32 | B42: APOLLOHOSP | C42: 6437.35 | D42: 6374.97 | E42: 6275.98 | F42: 6114.62 | G42: 6015.63 | H42: 6536.33 | I42: 6635.32 | J42: 6796.68 | K42: 6473.95 | L42: 6213.6 | M42: 9.33104
A43: 33 | B43: APOLLOTYRE | C43: 509.9 | D43: 513.92 | E43: 495.83 | F43: 481.77 | G43: 463.68 | H43: 527.98 | I43: 546.07 | J43: 560.13 | K43: 532 | L43: 499.85 | M43: 40.08573
A44: 34 | B44: APTUS | C44: 357.35 | D44: 358.83 | E44: 351.72 | F44: 346.08 | G44: 338.97 | H44: 364.47 | I44: 371.58 | J44: 377.22 | K44: 365.95 | L44: 353.2 | M44: 3.47397
A45: 35 | B45: ACI | C45: 639.1 | D45: 629.83 | E45: 617.27 | F45: 595.43 | G45: 582.87 | H45: 651.67 | I45: 664.23 | J45: 686.07 | K45: 642.4 | L45: 608 | M45: 4.67554
A46: 36 | B46: ASAHIINDIA | C46: 546.65 | D46: 543.02 | E46: 536.18 | F46: 525.72 | G46: 518.88 | H46: 553.48 | I46: 560.32 | J46: 570.78 | K46: 549.85 | L46: 532.55 | M46: 1.42445
A47: 37 | B47: ASHOKLEY | C47: 173.45 | D47: 173.23 | E47: 170.07 | F47: 166.68 | G47: 163.52 | H47: 176.62 | I47: 179.78 | J47: 183.17 | K47: 176.4 | L47: 169.85 | M47: 156.47861
A48: 38 | B48: ASIANPAINT | C48: 2951.65 | D48: 2940.40 | E48: 2921.80 | F48: 2891.95 | G48: 2873.35 | H48: 2970.25 | I48: 2988.85 | J48: 3018.70 | K48: 2959 | L48: 2910.55 | M48: 11.44765
A49: 39 | B49: ASTERDM | C49: 436.3 | D49: 439.05 | E49: 429.20 | F49: 422.10 | G49: 412.25 | H49: 446.15 | I49: 456.00 | J49: 463.10 | K49: 448.9 | L49: 431.95 | M49: 3.60092
A50: 40 | B50: ASTRAL | C50: 1852.45 | D50: 1856.32 | E50: 1831.68 | F50: 1810.92 | G50: 1786.28 | H50: 1877.08 | I50: 1901.72 | J50: 1922.48 | K50: 1880.95 | L50: 1835.55 | M50: 3.58812
A51: 41 | B51: ATUL | C51: 6374.5 | D51: 6302.10 | E51: 6206.20 | F51: 6037.90 | G51: 5942.00 | H51: 6470.40 | I51: 6566.30 | J51: 6734.60 | K51: 6398 | L51: 6133.8 | M51: 0.44981
A52: 42 | B52: AUBANK | C52: 603.9 | D52: 600.63 | E52: 595.52 | F52: 587.13 | G52: 582.02 | H52: 609.02 | I52: 614.13 | J52: 622.52 | K52: 605.75 | L52: 592.25 | M52: 23.43195
A53: 43 | B53: AUROPHARMA | C53: 1003.15 | D53: 1000.38 | E53: 979.77 | F53: 956.38 | G53: 935.77 | H53: 1023.77 | I53: 1044.38 | J53: 1067.77 | K53: 1021 | L53: 977 | M53: 30.18985
A54: 44 | B54: AVANTIFEED | C54: 532.05 | D54: 534.00 | E54: 517.20 | F54: 502.35 | G54: 485.55 | H54: 548.85 | I54: 565.65 | J54: 580.50 | K54: 550.8 | L54: 519.15 | M54: 5.6489
A55: 45 | B55: DMART | C55: 3719.2 | D55: 3725.40 | E55: 3692.80 | F55: 3666.40 | G55: 3633.80 | H55: 3751.80 | I55: 3784.40 | J55: 3810.80 | K55: 3758 | L55: 3699 | M55: 3.06425
A56: 46 | B56: AXISBANK | C56: 1051.4 | D56: 1046.95 | E56: 1039.00 | F56: 1026.60 | G56: 1018.65 | H56: 1059.35 | I56: 1067.30 | J56: 1079.70 | K56: 1054.9 | L56: 1034.55 | M56: 82.33454
A57: 47 | B57: BAJAJ-AUTO | C57: 7784.85 | D57: 7748.12 | E57: 7705.73 | F57: 7626.62 | G57: 7584.23 | H57: 7827.23 | I57: 7869.62 | J57: 7948.73 | K57: 7790.5 | L57: 7669 | M57: 1.73555
A58: 48 | B58: BAJFINANCE | C58: 6654.5 | D58: 6634.73 | E58: 6591.77 | F58: 6529.03 | G58: 6486.07 | H58: 6697.47 | I58: 6740.43 | J58: 6803.17 | K58: 6677.7 | L58: 6572 | M58: 12.09874
A59: 49 | B59: BAJAJFINSV | C59: 1570.95 | D59: 1573.65 | E59: 1560.00 | F59: 1549.05 | G59: 1535.40 | H59: 1584.60 | I59: 1598.25 | J59: 1609.20 | K59: 1587.3 | L59: 1562.7 | M59: 10.49368
A60: 50 | B60: BAJAJHLDNG | C60: 8634.05 | D60: 8642.72 | E60: 8501.33 | F60: 8368.62 | G60: 8227.23 | H60: 8775.43 | I60: 8916.82 | J60: 9049.53 | K60: 8784.1 | L60: 8510 | M60: 0.27292
A61: 51 | B61: BALAMINES | C61: 2200.8 | D61: 2217.60 | E61: 2156.20 | F61: 2111.60 | G61: 2050.20 | H61: 2262.20 | I61: 2323.60 | J61: 2368.20 | K61: 2279 | L61: 2173 | M61: 0.71685
A62: 52 | B62: BALKRISIND | C62: 2297.5 | D62: 2302.28 | E62: 2274.57 | F62: 2251.63 | G62: 2223.92 | H62: 2325.22 | I62: 2352.93 | J62: 2375.87 | K62: 2330 | L62: 2279.35 | M62: 2.6827
A63: 53 | B63: BALRAMCHIN | C63: 383.1 | D63: 386.22 | E63: 378.78 | F63: 374.47 | G63: 367.03 | H63: 390.53 | I63: 397.97 | J63: 402.28 | K63: 393.65 | L63: 381.9 | M63: 17.61935
A64: 54 | B64: BANDHANBNK | C64: 216.2 | D64: 214.78 | E64: 212.72 | F64: 209.23 | G64: 207.17 | H64: 218.27 | I64: 220.33 | J64: 223.82 | K64: 216.85 | L64: 211.3 | M64: 102.5308
A65: 55 | B65: BANKBARODA | C65: 263.5 | D65: 259.17 | E65: 251.83 | F65: 240.17 | G65: 232.83 | H65: 270.83 | I65: 278.17 | J65: 289.83 | K65: 266.5 | L65: 247.5 | M65: 462.01039
A66: 56 | B66: BANKINDIA | C66: 137.25 | D66: 138.13 | E66: 133.17 | F66: 129.08 | G66: 124.12 | H66: 142.22 | I66: 147.18 | J66: 151.27 | K66: 143.1 | L66: 134.05 | M66: 219.5485
A67: 57 | B67: MAHABANK | C67: 61.55 | D67: 61.88 | E67: 58.32 | F67: 55.08 | G67: 51.52 | H67: 65.12 | I67: 68.68 | J67: 71.92 | K67: 65.45 | L67: 58.65 | M67: 741.21067
A68: 58 | B68: BASF | C68: 3213.1 | D68: 3201.02 | E68: 3137.08 | F68: 3061.07 | G68: 2997.13 | H68: 3277.03 | I68: 3340.97 | J68: 3416.98 | K68: 3264.95 | L68: 3125 | M68: 0.41846
A69: 59 | B69: BATAINDIA | C69: 1421.3 | D69: 1418.35 | E69: 1409.35 | F69: 1397.40 | G69: 1388.40 | H69: 1430.30 | I69: 1439.30 | J69: 1451.25 | K69: 1427.35 | L69: 1406.4 | M69: 2.74905
A70: 60 | B70: BAYERCROP | C70: 5831.15 | D70: 5805.87 | E70: 5766.73 | F70: 5702.32 | G70: 5663.18 | H70: 5870.28 | I70: 5909.42 | J70: 5973.83 | K70: 5845 | L70: 5741.45 | M70: 0.0665
A71: 61 | B71: BEML | C71: 3247.15 | D71: 3301.57 | E71: 3088.13 | F71: 2929.12 | G71: 2715.68 | H71: 3460.58 | I71: 3674.02 | J71: 3833.03 | K71: 3515 | L71: 3142.55 | M71: 8.86973
A72: 62 | B72: BERGEPAINT | C72: 554 | D72: 551.40 | E72: 546.05 | F72: 538.10 | G72: 532.75 | H72: 559.35 | I72: 564.70 | J72: 572.65 | K72: 556.75 | L72: 543.45 | M72: 10.75063
A73: 63 | B73: BDL | C73: 1838.55 | D73: 1857.17 | E73: 1787.43 | F73: 1736.32 | G73: 1666.58 | H73: 1908.28 | I73: 1978.02 | J73: 2029.13 | K73: 1926.9 | L73: 1806.05 | M73: 15.22015
A74: 64 | B74: BEL | C74: 180.65 | D74: 180.95 | E74: 176.20 | F74: 171.75 | G74: 167.00 | H74: 185.40 | I74: 190.15 | J74: 194.60 | K74: 185.7 | L74: 176.5 | M74: 210.81134
A75: 65 | B75: BHARATFORG | C75: 1314.05 | D75: 1302.70 | E75: 1284.15 | F75: 1254.25 | G75: 1235.70 | H75: 1332.60 | I75: 1351.15 | J75: 1381.05 | K75: 1321.25 | L75: 1272.8 | M75: 19.36968
A76: 66 | B76: BHEL | C76: 227.55 | D76: 227.17 | E76: 217.73 | F76: 207.92 | G76: 198.48 | H76: 236.98 | I76: 246.42 | J76: 256.23 | K76: 236.6 | L76: 217.35 | M76: 495.0087
A77: 67 | B77: BPCL | C77: 614.3 | D77: 610.10 | E77: 596.50 | F77: 578.70 | G77: 565.10 | H77: 627.90 | I77: 641.50 | J77: 659.30 | K77: 623.7 | L77: 592.3 | M77: 147.62133
A78: 68 | B78: BHARTIARTL | C78: 1120.25 | D78: 1127.48 | E78: 1109.02 | F78: 1097.78 | G78: 1079.32 | H78: 1138.72 | I78: 1157.18 | J78: 1168.42 | K78: 1145.95 | L78: 1116.25 | M78: 42.03171
A79: 69 | B79: BIKAJI | C79: 551.8 | D79: 552.68 | E79: 539.37 | F79: 526.93 | G79: 513.62 | H79: 565.12 | I79: 578.43 | J79: 590.87 | K79: 566 | L79: 540.25 | M79: 1.59721
A80: 70 | B80: BIOCON | C80: 273.4 | D80: 278.65 | E80: 266.25 | F80: 259.10 | G80: 246.70 | H80: 285.80 | I80: 298.20 | J80: 305.35 | K80: 291.05 | L80: 271.5 | M80: 169.61839
A81: 71 | B81: BIRLACORPN | C81: 1696.15 | D81: 1687.07 | E81: 1604.13 | F81: 1512.12 | G81: 1429.18 | H81: 1779.08 | I81: 1862.02 | J81: 1954.03 | K81: 1770 | L81: 1595.05 | M81: 24.92897
A82: 72 | B82: BSOFT | C82: 833.4 | D82: 833.27 | E82: 817.23 | F82: 801.07 | G82: 785.03 | H82: 849.43 | I82: 865.47 | J82: 881.63 | K82: 849.3 | L82: 817.1 | M82: 16.06503
A83: 73 | B83: BLS | C83: 384.9 | D83: 387.95 | E83: 378.00 | F83: 371.10 | G83: 361.15 | H83: 394.85 | I83: 404.80 | J83: 411.70 | K83: 397.9 | L83: 381.05 | M83: 13.73901
A84: 74 | B84: BLUEDART | C84: 6054.45 | D84: 6098.30 | E84: 5998.15 | F84: 5941.85 | G84: 5841.70 | H84: 6154.60 | I84: 6254.75 | J84: 6311.05 | K84: 6198.45 | L84: 6042 | M84: 0.25624
A85: 75 | B85: BLUESTARCO | C85: 1165.95 | D85: 1160.58 | E85: 1146.52 | F85: 1127.08 | G85: 1113.02 | H85: 1180.02 | I85: 1194.08 | J85: 1213.52 | K85: 1174.65 | L85: 1141.15 | M85: 0.73003
A86: 76 | B86: BBTC | C86: 1716.3 | D86: 1703.23 | E86: 1663.27 | F86: 1610.23 | G86: 1570.27 | H86: 1756.27 | I86: 1796.23 | J86: 1849.27 | K86: 1743.2 | L86: 1650.2 | M86: 1.16544
A87: 77 | B87: BORORENEW | C87: 540 | D87: 546.15 | E87: 524.05 | F87: 508.10 | G87: 486.00 | H87: 562.10 | I87: 584.20 | J87: 600.15 | K87: 568.25 | L87: 530.2 | M87: 12.54954
A88: 78 | B88: BOSCHLTD | C88: 25457.15 | D88: 25242.05 | E88: 24965.10 | F88: 24473.05 | G88: 24196.10 | H88: 25734.10 | I88: 26011.05 | J88: 26503.10 | K88: 25519 | L88: 24750 | M88: 0.23943
A89: 79 | B89: BRIGADE | C89: 998.85 | D89: 1004.63 | E89: 976.27 | F89: 953.68 | G89: 925.32 | H89: 1027.22 | I89: 1055.58 | J89: 1078.17 | K89: 1033 | L89: 982.05 | M89: 2.13893
A90: 80 | B90: BCG | C90: 18.8 | D90: 18.83 | E90: 18.47 | F90: 18.13 | G90: 17.77 | H90: 19.17 | I90: 19.53 | J90: 19.87 | K90: 19.2 | L90: 18.5 | M90: 239.78339
A91: 81 | B91: BRITANNIA | C91: 4971.5 | D91: 4936.53 | E91: 4895.02 | F91: 4818.53 | G91: 4777.02 | H91: 5013.02 | I91: 5054.53 | J91: 5131.02 | K91: 4978.05 | L91: 4860.05 | M91: 4.11953
A92: 82 | B92: BSE | C92: 2489.6 | D92: 2489.20 | E92: 2407.40 | F92: 2325.20 | G92: 2243.40 | H92: 2571.40 | I92: 2653.20 | J92: 2735.40 | K92: 2571 | L92: 2407 | M92: 7.65639
A93: 83 | B93: MAPMYINDIA | C93: 1872 | D93: 1880.98 | E93: 1853.02 | F93: 1834.03 | G93: 1806.07 | H93: 1899.97 | I93: 1927.93 | J93: 1946.92 | K93: 1908.95 | L93: 1862 | M93: 0.56972
A94: 84 | B94: CAMPUS | C94: 256.75 | D94: 258.15 | E94: 252.80 | F94: 248.85 | G94: 243.50 | H94: 262.10 | I94: 267.45 | J94: 271.40 | K94: 263.5 | L94: 254.2 | M94: 5.07594
A95: 85 | B95: CANFINHOME | C95: 809.15 | D95: 805.47 | E95: 791.03 | F95: 772.92 | G95: 758.48 | H95: 823.58 | I95: 838.02 | J95: 856.13 | K95: 819.9 | L95: 787.35 | M95: 6.8275
A96: 86 | B96: CANBK | C96: 571 | D96: 565.08 | E96: 554.17 | F96: 537.33 | G96: 526.42 | H96: 581.92 | I96: 592.83 | J96: 609.67 | K96: 576 | L96: 548.25 | M96: 152.6913
A97: 87 | B97: CGCL | C97: 924.8 | D97: 926.68 | E97: 914.22 | F97: 903.63 | G97: 891.17 | H97: 937.27 | I97: 949.73 | J97: 960.32 | K97: 939.15 | L97: 916.1 | M97: 1.53514
A98: 88 | B98: CARBORUNIV | C98: 1133.3 | D98: 1133.63 | E98: 1117.27 | F98: 1101.23 | G98: 1084.87 | H98: 1149.67 | I98: 1166.03 | J98: 1182.07 | K98: 1150 | L98: 1117.6 | M98: 1.16005
A99: 89 | B99: CASTROLIND | C99: 201.6 | D99: 199.73 | E99: 193.47 | F99: 185.33 | G99: 179.07 | H99: 207.87 | I99: 214.13 | J99: 222.27 | K99: 206 | L99: 191.6 | M99: 117.61656
A100: 90 | B100: CCL | C100: 661.5 | D100: 655.92 | E100: 646.58 | F100: 631.67 | G100: 622.33 | H100: 670.83 | I100: 680.17 | J100: 695.08 | K100: 665.25 | L100: 641 | M100: 0.86264
A101: 91 | B101: CEATLTD | C101: 2800.35 | D101: 2785.78 | E101: 2739.57 | F101: 2678.78 | G101: 2632.57 | H101: 2846.57 | I101: 2892.78 | J101: 2953.57 | K101: 2832 | L101: 2725 | M101: 1.80088
A102: 92 | B102: CENTRALBK | C102: 68 | D102: 68.47 | E102: 64.53 | F102: 61.07 | G102: 57.13 | H102: 71.93 | I102: 75.87 | J102: 79.33 | K102: 72.4 | L102: 65 | M102: 584.4193
A103: 93 | B103: CDSL | C103: 1946.95 | D103: 1976.68 | E103: 1886.37 | F103: 1825.78 | G103: 1735.47 | H103: 2037.27 | I103: 2127.58 | J103: 2188.17 | K103: 2067 | L103: 1916.1 | M103: 27.2085
A104: 94 | B104: CENTURYPLY | C104: 732.95 | D104: 728.02 | E104: 721.03 | F104: 709.12 | G104: 702.13 | H104: 739.93 | I104: 746.92 | J104: 758.83 | K104: 735 | L104: 716.1 | M104: 2.06141
A105: 95 | B105: CENTURYTEX | C105: 1430.85 | D105: 1433.67 | E105: 1398.18 | F105: 1365.52 | G105: 1330.03 | H105: 1466.33 | I105: 1501.82 | J105: 1534.48 | K105: 1469.15 | L105: 1401 | M105: 1.46439
A106: 96 | B106: CERA | C106: 8039.2 | D106: 8102.98 | E106: 7936.17 | F106: 7833.13 | G106: 7666.32 | H106: 8206.02 | I106: 8372.83 | J106: 8475.87 | K106: 8269.8 | L106: 7999.95 | M106: 0.12274
A107: 97 | B107: CESC | C107: 134.55 | D107: 135.58 | E107: 132.22 | F107: 129.88 | G107: 126.52 | H107: 137.92 | I107: 141.28 | J107: 143.62 | K107: 138.95 | L107: 133.25 | M107: 61.4663
A108: 98 | B108: CGPOWER | C108: 432.45 | D108: 430.90 | E108: 421.80 | F108: 411.15 | G108: 402.05 | H108: 441.55 | I108: 450.65 | J108: 461.30 | K108: 440 | L108: 420.25 | M108: 31.7812
A109: 99 | B109: CHALET | C109: 819.15 | D109: 820.50 | E109: 802.00 | F109: 784.85 | G109: 766.35 | H109: 837.65 | I109: 856.15 | J109: 873.30 | K109: 839 | L109: 803.35 | M109: 5.94983
A110: 100 | B110: CHAMBLFERT | C110: 362 | D110: 358.72 | E110: 353.28 | F110: 344.57 | G110: 339.13 | H110: 367.43 | I110: 372.87 | J110: 381.58 | K110: 364.15 | L110: 350 | M110: 21.88635
A111: 101 | B111: CHEMPLASTS | C111: 469.4 | D111: 471.73 | E111: 462.02 | F111: 454.63 | G111: 444.92 | H111: 479.12 | I111: 488.83 | J111: 496.22 | K111: 481.45 | L111: 464.35 | M111: 1.32164
A112: 102 | B112: CHOLAHLDNG | C112: 1122.6 | D112: 1127.98 | E112: 1089.97 | F112: 1057.33 | G112: 1019.32 | H112: 1160.62 | I112: 1198.63 | J112: 1231.27 | K112: 1166 | L112: 1095.35 | M112: 0.71365
A113: 103 | B113: CHOLAFIN | C113: 1122.3 | D113: 1120.90 | E113: 1101.60 | F113: 1080.90 | G113: 1061.60 | H113: 1141.60 | I113: 1160.90 | J113: 1181.60 | K113: 1140.2 | L113: 1100.2 | M113: 23.63941
A114: 104 | B114: CIEINDIA | C114: 484.75 | D114: 483.08 | E114: 478.67 | F114: 472.58 | G114: 468.17 | H114: 489.17 | I114: 493.58 | J114: 499.67 | K114: 487.5 | L114: 477 | M114: 4.06133
A115: 105 | B115: CIPLA | C115: 1439.75 | D115: 1434.78 | E115: 1422.02 | F115: 1404.28 | G115: 1391.52 | H115: 1452.52 | I115: 1465.28 | J115: 1483.02 | K115: 1447.55 | L115: 1417.05 | M115: 12.15784
A116: 106 | B116: CUB | C116: 132.85 | D116: 132.47 | E116: 130.93 | F116: 129.02 | G116: 127.48 | H116: 134.38 | I116: 135.92 | J116: 137.83 | K116: 134 | L116: 130.55 | M116: 56.69684
A117: 107 | B117: CLEAN | C117: 1405.7 | D117: 1404.83 | E117: 1381.97 | F117: 1358.23 | G117: 1335.37 | H117: 1428.57 | I117: 1451.43 | J117: 1475.17 | K117: 1427.7 | L117: 1381.1 | M117: 1.96945
A118: 108 | B118: COALINDIA | C118: 456.2 | D118: 451.88 | E118: 439.97 | F118: 423.73 | G118: 411.82 | H118: 468.12 | I118: 480.03 | J118: 496.27 | K118: 463.8 | L118: 435.65 | M118: 174.72069
A119: 109 | B119: COCHINSHIP | C119: 882.65 | D119: 888.12 | E119: 860.03 | F119: 837.42 | G119: 809.33 | H119: 910.73 | I119: 938.82 | J119: 961.43 | K119: 916.2 | L119: 865.5 | M119: 21.88203
A120: 110 | B120: COFORGE | C120: 6500.75 | D120: 6537.92 | E120: 6433.83 | F120: 6366.92 | G120: 6262.83 | H120: 6604.83 | I120: 6708.92 | J120: 6775.83 | K120: 6642 | L120: 6471 | M120: 1.82879
A121: 111 | B121: COLPAL | C121: 2534.15 | D121: 2521.35 | E121: 2500.80 | F121: 2467.45 | G121: 2446.90 | H121: 2554.70 | I121: 2575.25 | J121: 2608.60 | K121: 2541.9 | L121: 2488 | M121: 1.14787
A122: 112 | B122: CAMS | C122: 2905.25 | D122: 2919.07 | E122: 2856.18 | F122: 2807.12 | G122: 2744.23 | H122: 2968.13 | I122: 3031.02 | J122: 3080.08 | K122: 2981.95 | L122: 2870 | M122: 1.81926
A123: 113 | B123: CONCOR | C123: 943.35 | D123: 941.67 | E123: 911.78 | F123: 880.22 | G123: 850.33 | H123: 973.23 | I123: 1003.12 | J123: 1034.68 | K123: 971.55 | L123: 910.1 | M123: 27.99376
A124: 114 | B124: COROMANDEL | C124: 1087.5 | D124: 1081.65 | E124: 1071.30 | F124: 1055.10 | G124: 1044.75 | H124: 1097.85 | I124: 1108.20 | J124: 1124.40 | K124: 1092 | L124: 1065.45 | M124: 2.66059
A125: 115 | B125: CRAFTSMAN | C125: 4157.05 | D125: 4124.93 | E125: 4060.17 | F125: 3963.28 | G125: 3898.52 | H125: 4221.82 | I125: 4286.58 | J125: 4383.47 | K125: 4189.7 | L125: 4028.05 | M125: 0.2671
A126: 116 | B126: CREDITACC | C126: 1596.05 | D126: 1572.02 | E126: 1544.03 | F126: 1492.02 | G126: 1464.03 | H126: 1624.03 | I126: 1652.02 | J126: 1704.03 | K126: 1600 | L126: 1520 | M126: 3.55792
A127: 117 | B127: CRISIL | C127: 4543.45 | D127: 4489.52 | E127: 4404.03 | F127: 4264.62 | G127: 4179.13 | H127: 4628.93 | I127: 4714.42 | J127: 4853.83 | K127: 4575 | L127: 4350.1 | M127: 0.26138
A128: 118 | B128: CROMPTON | C128: 286.95 | D128: 286.90 | E128: 284.65 | F128: 282.35 | G128: 280.10 | H128: 289.20 | I128: 291.45 | J128: 293.75 | K128: 289.15 | L128: 284.6 | M128: 26.41404
A129: 119 | B129: CSBBANK | C129: 383.05 | D129: 386.80 | E129: 376.70 | F129: 370.35 | G129: 360.25 | H129: 393.15 | I129: 403.25 | J129: 409.60 | K129: 396.9 | L129: 380.45 | M129: 1.99765
A130: 120 | B130: CUMMINSIND | C130: 2602.95 | D130: 2596.05 | E130: 2553.55 | F130: 2504.15 | G130: 2461.65 | H130: 2645.45 | I130: 2687.95 | J130: 2737.35 | K130: 2638.55 | L130: 2546.65 | M130: 15.43145
A131: 121 | B131: CYIENT | C131: 2192.25 | D131: 2175.08 | E131: 2150.17 | F131: 2108.08 | G131: 2083.17 | H131: 2217.17 | I131: 2242.08 | J131: 2284.17 | K131: 2200 | L131: 2133 | M131: 1.27568
A132: 122 | B132: DABUR | C132: 539.2 | D132: 535.95 | E132: 531.90 | F132: 524.60 | G132: 520.55 | H132: 543.25 | I132: 547.30 | J132: 554.60 | K132: 540 | L132: 528.65 | M132: 17.86915
A133: 123 | B133: DALBHARAT | C133: 2127.2 | D133: 2110.70 | E133: 2084.70 | F133: 2042.20 | G133: 2016.20 | H133: 2153.20 | I133: 2179.20 | J133: 2221.70 | K133: 2136.7 | L133: 2068.2 | M133: 3.11415
A134: 124 | B134: DATAPATTNS | C134: 1875.6 | D134: 1880.42 | E134: 1847.98 | F134: 1820.37 | G134: 1787.93 | H134: 1908.03 | I134: 1940.47 | J134: 1968.08 | K134: 1912.85 | L134: 1852.8 | M134: 1.03426
A135: 125 | B135: DCMSHRIRAM | C135: 998.35 | D135: 994.80 | E135: 979.65 | F135: 960.95 | G135: 945.80 | H135: 1013.50 | I135: 1028.65 | J135: 1047.35 | K135: 1009.95 | L135: 976.1 | M135: 0.30412
A136: 126 | B136: DEEPAKFERT | C136: 515.3 | D136: 519.12 | E136: 508.73 | F136: 502.17 | G136: 491.78 | H136: 525.68 | I136: 536.07 | J136: 542.63 | K136: 529.5 | L136: 512.55 | M136: 5.60987
A137: 127 | B137: DEEPAKNTR | C137: 2215.15 | D137: 2205.18 | E137: 2187.97 | F137: 2160.78 | G137: 2143.57 | H137: 2232.37 | I137: 2249.58 | J137: 2276.77 | K137: 2222.4 | L137: 2178 | M137: 1.45845
A138: 128 | B138: DELHIVERY | C138: 440.5 | D138: 445.30 | E138: 430.25 | F138: 420.00 | G138: 404.95 | H138: 455.55 | I138: 470.60 | J138: 480.85 | K138: 460.35 | L138: 435.05 | M138: 19.60175
A139: 129 | B139: DELTACORP | C139: 140.85 | D139: 142.02 | E139: 136.98 | F139: 133.12 | G139: 128.08 | H139: 145.88 | I139: 150.92 | J139: 154.78 | K139: 147.05 | L139: 138.15 | M139: 39.3203
A140: 130 | B140: DEVYANI | C140: 154.25 | D140: 152.67 | E140: 149.73 | F140: 145.22 | G140: 142.28 | H140: 157.18 | I140: 160.12 | J140: 164.63 | K140: 155.6 | L140: 148.15 | M140: 38.36808
A141: 131 | B141: DIVISLAB | C141: 3652.3 | D141: 3654.43 | E141: 3611.37 | F141: 3570.43 | G141: 3527.37 | H141: 3695.37 | I141: 3738.43 | J141: 3779.37 | K141: 3697.5 | L141: 3613.5 | M141: 4.15749
A142: 132 | B142: DIXON | C142: 6277.9 | D142: 6231.17 | E142: 6172.13 | F142: 6066.37 | G142: 6007.33 | H142: 6336.93 | I142: 6395.97 | J142: 6501.73 | K142: 6290.2 | L142: 6125.4 | M142: 1.54552
A143: 133 | B143: DLF | C143: 834.4 | D143: 827.13 | E143: 817.27 | F143: 800.13 | G143: 790.27 | H143: 844.27 | I143: 854.13 | J143: 871.27 | K143: 837 | L143: 810 | M143: 43.51187
A144: 134 | B144: LALPATHLAB | C144: 2451.9 | D144: 2439.95 | E144: 2417.85 | F144: 2383.80 | G144: 2361.70 | H144: 2474.00 | I144: 2496.10 | J144: 2530.15 | K144: 2462.05 | L144: 2405.9 | M144: 1.18344
A145: 135 | B145: DRREDDY | C145: 6155.85 | D145: 6155.08 | E145: 6104.97 | F145: 6054.08 | G145: 6003.97 | H145: 6205.97 | I145: 6256.08 | J145: 6306.97 | K145: 6205.2 | L145: 6104.2 | M145: 2.47794
A146: 136 | B146: EIDPARRY | C146: 581.75 | D146: 590.43 | E146: 570.32 | F146: 558.88 | G146: 538.77 | H146: 601.87 | I146: 621.98 | J146: 633.42 | K146: 610.55 | L146: 579 | M146: 12.7268
A147: 137 | B147: EASEMYTRIP | C147: 51.1 | D147: 51.60 | E147: 49.20 | F147: 47.30 | G147: 44.90 | H147: 53.50 | I147: 55.90 | J147: 57.80 | K147: 54 | L147: 49.7 | M147: 604.16023
A148: 138 | B148: ECLERX | C148: 2476.4 | D148: 2498.00 | E148: 2428.40 | F148: 2380.40 | G148: 2310.80 | H148: 2546.00 | I148: 2615.60 | J148: 2663.60 | K148: 2567.6 | L148: 2450 | M148: 1.64959
A149: 139 | B149: EICHERMOT | C149: 3840.95 | D149: 3816.83 | E149: 3785.72 | F149: 3730.48 | G149: 3699.37 | H149: 3872.07 | I149: 3903.18 | J149: 3958.42 | K149: 3847.95 | L149: 3761.6 | M149: 3.96729
A150: 140 | B150: EIHOTEL | C150: 407.5 | D150: 405.03 | E150: 388.77 | F150: 370.03 | G150: 353.77 | H150: 423.77 | I150: 440.03 | J150: 458.77 | K150: 421.3 | L150: 386.3 | M150: 8.89558
A151: 141 | B151: ELGIEQUIP | C151: 679.8 | D151: 675.47 | E151: 665.48 | F151: 651.17 | G151: 641.18 | H151: 689.78 | I151: 699.77 | J151: 714.08 | K151: 685.45 | L151: 661.15 | M151: 6.31645
A152: 142 | B152: EMAMILTD | C152: 484.55 | D152: 484.28 | E152: 475.77 | F152: 466.98 | G152: 458.47 | H152: 493.07 | I152: 501.58 | J152: 510.37 | K152: 492.8 | L152: 475.5 | M152: 6.85529
A153: 143 | B153: ENDURANCE | C153: 1842.45 | D153: 1877.20 | E153: 1797.40 | F153: 1752.35 | G153: 1672.55 | H153: 1922.25 | I153: 2002.05 | J153: 2047.10 | K153: 1957 | L153: 1832.15 | M153: 3.38856
A154: 144 | B154: ENGINERSIN | C154: 226.4 | D154: 230.05 | E154: 218.35 | F154: 210.30 | G154: 198.60 | H154: 238.10 | I154: 249.80 | J154: 257.85 | K154: 241.75 | L154: 222 | M154: 95.44763
A155: 145 | B155: EPL | C155: 193.9 | D155: 194.58 | E155: 191.32 | F155: 188.73 | G155: 185.47 | H155: 197.17 | I155: 200.43 | J155: 203.02 | K155: 197.85 | L155: 192 | M155: 5.87868
A156: 146 | B156: EQUITASBNK | C156: 102.7 | D156: 102.52 | E156: 100.73 | F156: 98.77 | G156: 96.98 | H156: 104.48 | I156: 106.27 | J156: 108.23 | K156: 104.3 | L156: 100.55 | M156: 40.95909
A157: 147 | B157: ERIS | C157: 910.2 | D157: 923.93 | E157: 884.97 | F157: 859.73 | G157: 820.77 | H157: 949.17 | I157: 988.13 | J157: 1013.37 | K157: 962.9 | L157: 898.7 | M157: 2.72453
A158: 148 | B158: ESCORTS | C158: 2807.25 | D158: 2786.88 | E158: 2668.77 | F158: 2530.28 | G158: 2412.17 | H158: 2925.37 | I158: 3043.48 | J158: 3181.97 | K158: 2905 | L158: 2648.4 | M158: 20.56922
A159: 149 | B159: EXIDEIND | C159: 338.4 | D159: 339.27 | E159: 331.63 | F159: 324.87 | G159: 317.23 | H159: 346.03 | I159: 353.67 | J159: 360.43 | K159: 346.9 | L159: 332.5 | M159: 26.94398
A160: 150 | B160: FDC | C160: 446.8 | D160: 446.25 | E160: 436.00 | F160: 425.20 | G160: 414.95 | H160: 457.05 | I160: 467.30 | J160: 478.10 | K160: 456.5 | L160: 435.45 | M160: 3.59444
A161: 151 | B161: FEDERALBNK | C161: 147.3 | D161: 146.10 | E161: 144.55 | F161: 141.80 | G161: 140.25 | H161: 148.85 | I161: 150.40 | J161: 153.15 | K161: 147.65 | L161: 143.35 | M161: 108.58532
A162: 152 | B162: FACT | C162: 763.15 | D162: 768.00 | E162: 747.35 | F162: 731.55 | G162: 710.90 | H162: 783.80 | I162: 804.45 | J162: 820.25 | K162: 788.65 | L162: 752.2 | M162: 2.80927
A163: 153 | B163: FINEORG | C163: 4398 | D163: 4412.53 | E163: 4335.47 | F163: 4272.93 | G163: 4195.87 | H163: 4475.07 | I163: 4552.13 | J163: 4614.67 | K163: 4489.6 | L163: 4350 | M163: 0.60084
A164: 154 | B164: FINCABLES | C164: 1058.45 | D164: 1082.55 | E164: 1027.90 | F164: 997.35 | G164: 942.70 | H164: 1113.10 | I164: 1167.75 | J164: 1198.30 | K164: 1137.2 | L164: 1052 | M164: 3.13621
A165: 155 | B165: FINPIPE | C165: 218.6 | D165: 216.42 | E165: 212.33 | F165: 206.07 | G165: 201.98 | H165: 222.68 | I165: 226.77 | J165: 233.03 | K165: 220.5 | L165: 210.15 | M165: 13.8393
A166: 156 | B166: FSL | C166: 205.85 | D166: 210.37 | E166: 200.53 | F166: 195.22 | G166: 185.38 | H166: 215.68 | I166: 225.52 | J166: 230.83 | K166: 220.2 | L166: 205.05 | M166: 60.50185
A167: 157 | B167: FIVESTAR | C167: 775.45 | D167: 773.82 | E167: 766.63 | F167: 757.82 | G167: 750.63 | H167: 782.63 | I167: 789.82 | J167: 798.63 | K167: 781 | L167: 765 | M167: 4.81404
A168: 158 | B168: FORTIS | C168: 434.95 | D168: 435.72 | E168: 427.43 | F168: 419.92 | G168: 411.63 | H168: 443.23 | I168: 451.52 | J168: 459.03 | K168: 444 | L168: 428.2 | M168: 10.362
A169: 159 | B169: NYKAA | C169: 150.15 | D169: 150.12 | E169: 146.78 | F169: 143.42 | G169: 140.08 | H169: 153.48 | I169: 156.82 | J169: 160.18 | K169: 153.45 | L169: 146.75 | M169: 108.85189
A170: 160 | B170: GRINFRA | C170: 1291.4 | D170: 1289.67 | E170: 1256.83 | F170: 1222.27 | G170: 1189.43 | H170: 1324.23 | I170: 1357.07 | J170: 1391.63 | K170: 1322.5 | L170: 1255.1 | M170: 0.72493
A171: 161 | B171: GAIL | C171: 173.1 | D171: 173.78 | E171: 167.47 | F171: 161.83 | G171: 155.52 | H171: 179.42 | I171: 185.73 | J171: 191.37 | K171: 180.1 | L171: 168.15 | M171: 361.93339
A172: 162 | B172: GALAXYSURF | C172: 2628.85 | D172: 2627.97 | E172: 2601.33 | F172: 2573.82 | G172: 2547.18 | H172: 2655.48 | I172: 2682.12 | J172: 2709.63 | K172: 2654.6 | L172: 2600.45 | M172: 0.13214
A173: 163 | B173: GARFIBRES | C173: 3410.55 | D173: 3430.92 | E173: 3379.83 | F173: 3349.12 | G173: 3298.03 | H173: 3461.63 | I173: 3512.72 | J173: 3543.43 | K173: 3482 | L173: 3400.2 | M173: 0.12589
A174: 164 | B174: GICRE | C174: 405 | D174: 419.87 | E174: 386.23 | F174: 367.47 | G174: 333.83 | H174: 438.63 | I174: 472.27 | J174: 491.03 | K174: 453.5 | L174: 401.1 | M174: 60.56893
A175: 165 | B175: GLAND | C175: 2007.25 | D175: 1997.85 | E175: 1973.40 | F175: 1939.55 | G175: 1915.10 | H175: 2031.70 | I175: 2056.15 | J175: 2090.00 | K175: 2022.3 | L175: 1964 | M175: 1.40161
A176: 166 | B176: GLAXO | C176: 2382.65 | D176: 2409.22 | E176: 2318.43 | F176: 2254.22 | G176: 2163.43 | H176: 2473.43 | I176: 2564.22 | J176: 2628.43 | K176: 2500 | L176: 2345 | M176: 1.62242
A177: 167 | B177: GLENMARK | C177: 843.1 | D177: 844.83 | E177: 827.97 | F177: 812.83 | G177: 795.97 | H177: 859.97 | I177: 876.83 | J177: 891.97 | K177: 861.7 | L177: 829.7 | M177: 9.36078
A178: 168 | B178: MEDANTA | C178: 1269.5 | D178: 1278.55 | E178: 1248.25 | F178: 1227.00 | G178: 1196.70 | H178: 1299.80 | I178: 1330.10 | J178: 1351.35 | K178: 1308.85 | L178: 1257.3 | M178: 7.8955
A179: 169 | B179: GMMPFAUDLR | C179: 1388.05 | D179: 1407.07 | E179: 1360.98 | F179: 1333.92 | G179: 1287.83 | H179: 1434.13 | I179: 1480.22 | J179: 1507.28 | K179: 1453.15 | L179: 1380 | M179: 2.05468
A180: 170 | B180: GMRINFRA | C180: 88.85 | D180: 87.87 | E180: 85.18 | F180: 81.52 | G180: 78.83 | H180: 91.53 | I180: 94.22 | J180: 97.88 | K180: 90.55 | L180: 84.2 | M180: 350.07959
A181: 171 | B181: GOCOLORS | C181: 1176.4 | D181: 1187.07 | E181: 1109.33 | F181: 1042.27 | G181: 964.53 | H181: 1254.13 | I181: 1331.87 | J181: 1398.93 | K181: 1264.8 | L181: 1120 | M181: 4.28474
A182: 172 | B182: GODFRYPHLP | C182: 2374.6 | D182: 2351.52 | E182: 2308.08 | F182: 2241.57 | G182: 2198.13 | H182: 2418.03 | I182: 2461.47 | J182: 2527.98 | K182: 2394.95 | L182: 2285 | M182: 0.64509
A183: 173 | B183: GODREJAGRO | C183: 523.45 | D183: 524.95 | E183: 514.55 | F183: 505.65 | G183: 495.25 | H183: 533.85 | I183: 544.25 | J183: 553.15 | K183: 535.35 | L183: 516.05 | M183: 1.36186
A184: 174 | B184: GODREJCP | C184: 1218.65 | D184: 1213.42 | E184: 1203.78 | F184: 1188.92 | G184: 1179.28 | H184: 1228.28 | I184: 1237.92 | J184: 1252.78 | K184: 1223.05 | L184: 1198.55 | M184: 7.01591
A185: 175 | B185: GODREJIND | C185: 831.45 | D185: 832.25 | E185: 815.70 | F185: 799.95 | G185: 783.40 | H185: 848.00 | I185: 864.55 | J185: 880.30 | K185: 848.8 | L185: 816.5 | M185: 1.90122
A186: 176 | B186: GODREJPROP | C186: 2256.8 | D186: 2232.53 | E186: 2199.62 | F186: 2142.43 | G186: 2109.52 | H186: 2289.72 | I186: 2322.63 | J186: 2379.82 | K186: 2265.45 | L186: 2175.35 | M186: 5.99951
A187: 177 | B187: GRANULES | C187: 419.2 | D187: 420.28 | E187: 410.77 | F187: 402.33 | G187: 392.82 | H187: 428.72 | I187: 438.23 | J187: 446.67 | K187: 429.8 | L187: 411.85 | M187: 10.75967
A188: 178 | B188: GRAPHITE | C188: 584.05 | D188: 590.37 | E188: 568.68 | F188: 553.32 | G188: 531.63 | H188: 605.73 | I188: 627.42 | J188: 642.78 | K188: 612.05 | L188: 575 | M188: 13.72167
A189: 179 | B189: GRASIM | C189: 2168.5 | D189: 2132.47 | E189: 2082.93 | F189: 1997.37 | G189: 1947.83 | H189: 2218.03 | I189: 2267.57 | J189: 2353.13 | K189: 2182 | L189: 2046.9 | M189: 20.10089
A190: 180 | B190: GESHIP | C190: 960.35 | D190: 965.47 | E190: 931.93 | F190: 903.52 | G190: 869.98 | H190: 993.88 | I190: 1027.42 | J190: 1055.83 | K190: 999 | L190: 937.05 | M190: 3.78539
A191: 181 | B191: GREENPANEL | C191: 383.25 | D191: 384.82 | E191: 380.23 | F191: 377.22 | G191: 372.63 | H191: 387.83 | I191: 392.42 | J191: 395.43 | K191: 389.4 | L191: 381.8 | M191: 1.34064
A192: 182 | B192: GRINDWELL | C192: 2218 | D192: 2202.73 | E192: 2180.67 | F192: 2143.33 | G192: 2121.27 | H192: 2240.07 | I192: 2262.13 | J192: 2299.47 | K192: 2224.8 | L192: 2165.4 | M192: 0.2241
A193: 183 | B193: GUJALKALI | C193: 801.7 | D193: 800.47 | E193: 778.93 | F193: 756.17 | G193: 734.63 | H193: 823.23 | I193: 844.77 | J193: 867.53 | K193: 822 | L193: 777.7 | M193: 2.92941
A194: 184 | B194: GAEL | C194: 369.7 | D194: 374.02 | E194: 362.03 | F194: 354.37 | G194: 342.38 | H194: 381.68 | I194: 393.67 | J194: 401.33 | K194: 386 | L194: 366.35 | M194: 6.33889
A195: 185 | B195: FLUOROCHEM | C195: 3520.45 | D195: 3468.17 | E195: 3402.33 | F195: 3284.22 | G195: 3218.38 | H195: 3586.28 | I195: 3652.12 | J195: 3770.23 | K195: 3534 | L195: 3350.05 | M195: 1.07223
A196: 186 | B196: GUJGASLTD | C196: 582.9 | D196: 581.68 | E196: 567.27 | F196: 551.63 | G196: 537.22 | H196: 597.32 | I196: 611.73 | J196: 627.37 | K196: 596.1 | L196: 566.05 | M196: 12.40706
A197: 187 | B197: GNFC | C197: 671.7 | D197: 675.17 | E197: 660.33 | F197: 648.97 | G197: 634.13 | H197: 686.53 | I197: 701.37 | J197: 712.73 | K197: 690 | L197: 663.8 | M197: 10.60241
A198: 188 | B198: GPPL | C198: 178.85 | D198: 176.63 | E198: 171.72 | F198: 164.58 | G198: 159.67 | H198: 183.77 | I198: 188.68 | J198: 195.82 | K198: 181.55 | L198: 169.5 | M198: 39.31073
A199: 189 | B199: GSFC | C199: 254.7 | D199: 255.28 | E199: 248.87 | F199: 243.03 | G199: 236.62 | H199: 261.12 | I199: 267.53 | J199: 273.37 | K199: 261.7 | L199: 249.45 | M199: 57.54044
A200: 190 | B200: GSPL | C200: 384 | D200: 386.32 | E200: 368.68 | F200: 353.37 | G200: 335.73 | H200: 401.63 | I200: 419.27 | J200: 434.58 | K200: 403.95 | L200: 371 | M200: 25.78151
A201: 191 | B201: HEG | C201: 1881.7 | D201: 1898.77 | E201: 1832.93 | F201: 1784.17 | G201: 1718.33 | H201: 1947.53 | I201: 2013.37 | J201: 2062.13 | K201: 1964.6 | L201: 1850 | M201: 2.78936
A202: 192 | B202: HAPPSTMNDS | C202: 841.95 | D202: 846.18 | E202: 833.77 | F202: 825.58 | G202: 813.17 | H202: 854.37 | I202: 866.78 | J202: 874.97 | K202: 858.6 | L202: 838 | M202: 2.84473
A203: 193 | B203: HAVELLS | C203: 1346.9 | D203: 1342.82 | E203: 1330.73 | F203: 1314.57 | G203: 1302.48 | H203: 1358.98 | I203: 1371.07 | J203: 1387.23 | K203: 1354.9 | L203: 1326.65 | M203: 9.41809
A204: 194 | B204: HCLTECH | C204: 1630.6 | D204: 1630.67 | E204: 1614.58 | F204: 1598.57 | G204: 1582.48 | H204: 1646.68 | I204: 1662.77 | J204: 1678.78 | K204: 1646.75 | L204: 1614.65 | M204: 33.41297
A205: 195 | B205: HDFCAMC | C205: 3636.65 | D205: 3634.78 | E205: 3579.57 | F205: 3522.48 | G205: 3467.27 | H205: 3691.87 | I205: 3747.08 | J205: 3804.17 | K205: 3690 | L205: 3577.7 | M205: 2.55781
A206: 196 | B206: HDFCBANK | C206: 1403.6 | D206: 1401.60 | E206: 1389.00 | F206: 1374.40 | G206: 1361.80 | H206: 1416.20 | I206: 1428.80 | J206: 1443.40 | K206: 1414.2 | L206: 1387 | M206: 283.21062
... 319 more rows

Sheet Bulk Deals
E6: Back To Main Page
A7: Subject : | B7: BULK DEAL | D7: =Main!B10 -> 2024-02-12
A9: Date | B9: Scrip code | C9: Scrip Name | D9: Client Name | E9: Buy / Sell | F9: Quantity Traded | G9: Trade Price / Wt.Avg.trade price | H9: Exchange
A10: 2024-02-09 | B10: 539096 | C10: AANANDALAK | D10: LAXMI PAT DUDHERIA | E10: BUY | F10: 20,000 | G10: 14.23 | H10: BSE
A11: 2024-02-09 | B11: 513119 | C11: ABCGAS | D11: SYAMALPRASAD DWARKAPRASAD SHOREWALA | E11: SELL | F11: 15,000 | G11: 55.1 | H11: BSE
A12: 2024-02-09 | B12: 531525 | C12: ACESOFT | D12: MULTIPLIER SHARE & STOCK ADVISORS PRIVATE LIMITED | E12: BUY | F12: 25,000 | G12: 75.13 | H12: BSE
A13: 2024-02-09 | B13: 543941 | C13: AHASOLAR | D13: RAUNAK DHANANIA . | E13: BUY | F13: 20,000 | G13: 467.55 | H13: BSE
A14: 2024-02-09 | B14: 531991 | C14: AMRAAGRI | D14: K S MANIAN | E14: SELL | F14: 697,456 | G14: 1.12 | H14: BSE
A15: 2024-02-09 | B15: 543443 | C15: ASCENSIVE | D15: PAWAN SHARMA | E15: SELL | F15: 36,000 | G15: 44.4 | H15: BSE
A16: 2024-02-09 | B16: 541702 | C16: ASHNI | D16: AALPS COMMODITIES LLP | E16: SELL | F16: 1,385,206 | G16: 7.78 | H16: BSE
A17: 2024-02-09 | B17: 544052 | C17: BENCHMARK | D17: SUNFLOWER BROKING PRIVATE LIMITED | E17: SELL | F17: 118,000 | G17: 66.02 | H17: BSE
A18: 2024-02-09 | B18: 544052 | C18: BENCHMARK | D18: SUNFLOWER BROKING PRIVATE LIMITED | E18: BUY | F18: 50,000 | G18: 66 | H18: BSE
A19: 2024-02-09 | B19: 544052 | C19: BENCHMARK | D19: SPREAD X SECURITIES PRIVATE LIMITED | E19: BUY | F19: 122,000 | G19: 66.02 | H19: BSE
A20: 2024-02-09 | B20: 539662 | C20: BFLAFL | D20: DREAM FINHOLD PRIVATE LIMITED | E20: SELL | F20: 92,547 | G20: 23.29 | H20: BSE
A21: 2024-02-09 | B21: 544101 | C21: BRISK | D21: VORA FINANCIAL SERVICES PVT LTD | E21: SELL | F21: 14,400 | G21: 150.72 | H21: BSE
A22: 2024-02-09 | B22: 539598 | C22: CGFL | D22: VIKAS KATARIA | E22: BUY | F22: 67,283 | G22: 140 | H22: BSE
A23: 2024-02-09 | B23: 539598 | C23: CGFL | D23: AMAYSHA TEXTILES PRIVATE LIMITED | E23: SELL | F23: 62,230 | G23: 140 | H23: BSE
A24: 2024-02-09 | B24: 540829 | C24: CHANDRIMA | D24: PINKI | E24: BUY | F24: 14,500 | G24: 9.76 | H24: BSE
A25: 2024-02-09 | B25: 522231 | C25: CONART | D25: MULTIPLIER SHARE & STOCK ADVISORS PRIVATE LIMITED | E25: BUY | F25: 19,837 | G25: 118.95 | H25: BSE
A26: 2024-02-09 | B26: 522231 | C26: CONART | D26: MULTIPLIER SHARE & STOCK ADVISORS PRIVATE LIMITED | E26: SELL | F26: 19,837 | G26: 119.88 | H26: BSE
A27: 2024-02-09 | B27: 522231 | C27: CONART | D27: LATHE DERIVATIVES TRADING PRIVATE LIMITED . | E27: SELL | F27: 24,223 | G27: 119.7 | H27: BSE
A28: 2024-02-09 | B28: 522231 | C28: CONART | D28: LATHE DERIVATIVES TRADING PRIVATE LIMITED . | E28: BUY | F28: 24,173 | G28: 119.88 | H28: BSE
A29: 2024-02-09 | B29: 504340 | C29: CONFINT | D29: PINKY SURANA | E29: SELL | F29: 94,024 | G29: 8.97 | H29: BSE
A30: 2024-02-09 | B30: 512379 | C30: CRESSAN | D30: NACIO MULTI TRADERS LLP | E30: SELL | F30: 3,597,813 | G30: 22.84 | H30: BSE
A31: 2024-02-09 | B31: 512379 | C31: CRESSAN | D31: NACIO MULTI TRADERS LLP | E31: BUY | F31: 3,167,748 | G31: 22.87 | H31: BSE
A32: 2024-02-09 | B32: 512379 | C32: CRESSAN | D32: MISHTI TRADERS LLP | E32: BUY | F32: 2,200,000 | G32: 22.83 | H32: BSE
A33: 2024-02-09 | B33: 539884 | C33: DARSHANORNA | D33: PRITHVI FINMART PRIVATE LIMITED | E33: BUY | F33: 265,891 | G33: 5.65 | H33: BSE
A34: 2024-02-09 | B34: 539884 | C34: DARSHANORNA | D34: PRITHVI FINMART PRIVATE LIMITED | E34: SELL | F34: 218,197 | G34: 5.63 | H34: BSE
A35: 2024-02-09 | B35: 539884 | C35: DARSHANORNA | D35: SECURE SHANTI ADVISORY LLP | E35: BUY | F35: 309,000 | G35: 5.77 | H35: BSE
A36: 2024-02-09 | B36: 543594 | C36: DPL | D36: KOOKMIN SECURITIES PRIVATE LIMITED | E36: BUY | F36: 66,000 | G36: 15.49 | H36: BSE
A37: 2024-02-09 | B37: 543594 | C37: DPL | D37: KOOKMIN SECURITIES PRIVATE LIMITED | E37: SELL | F37: 66,000 | G37: 15.4 | H37: BSE
A38: 2024-02-09 | B38: 516003 | C38: DUROPLY | D38: SWATI AGARWAL | E38: BUY | F38: 66,300 | G38: 267.72 | H38: BSE
A39: 2024-02-09 | B39: 516003 | C39: DUROPLY | D39: EVERDELIVER LOGISTICS PRIVATE LIMITED | E39: BUY | F39: 50,000 | G39: 276.08 | H39: BSE
A40: 2024-02-09 | B40: 504351 | C40: EMPOWER | D40: MULTIPLIER SHARE & STOCK ADVISORS PRIVATE LIMITED | E40: SELL | F40: 7,500,000 | G40: 2.63 | H40: BSE
A41: 2024-02-09 | B41: 530733 | C41: ENCODE | D41: DEEP PATEL | E41: BUY | F41: 25,204 | G41: 12.23 | H41: BSE
A42: 2024-02-09 | B42: 530733 | C42: ENCODE | D42: CHINTAN CHANDRESHBHAI SHAH | E42: SELL | F42: 17,132 | G42: 12.23 | H42: BSE
A43: 2024-02-09 | B43: 526574 | C43: ENTRINT | D43: ANEES THENARI | E43: BUY | F43: 16,414 | G43: 31.6 | H43: BSE
A44: 2024-02-09 | B44: 543500 | C44: EVOQ | D44: SUBASRI MANOOJKUMAR | E44: SELL | F44: 80,000 | G44: 14.33 | H44: BSE
A45: 2024-02-09 | B45: 543444 | C45: FABINO | D45: ARYAMAN BROKING LIMITED | E45: SELL | F45: 21,000 | G45: 33.93 | H45: BSE
A46: 2024-02-09 | B46: 543444 | C46: FABINO | D46: ARYAMAN BROKING LIMITED | E46: BUY | F46: 6,000 | G46: 34.8 | H46: BSE
A47: 2024-02-09 | B47: 543444 | C47: FABINO | D47: SAROJ GUPTA | E47: BUY | F47: 36,000 | G47: 33.45 | H47: BSE
A48: 2024-02-09 | B48: 504397 | C48: GANHOLD | D48: HAL CLYDE DENISON LIMITED | E48: BUY | F48: 2,158 | G48: 76.16 | H48: BSE
A49: 2024-02-09 | B49: 539041 | C49: GANVERSE | D49: ANCHAL BANSAL | E49: BUY | F49: 65,000 | G49: 91.59 | H49: BSE
A50: 2024-02-09 | B50: 539041 | C50: GANVERSE | D50: ANCHAL BANSAL | E50: SELL | F50: 65,000 | G50: 93.12 | H50: BSE
A51: 2024-02-09 | B51: 530663 | C51: GOYALASS | D51: SUMANCHEPURI | E51: BUY | F51: 256,587 | G51: 2.23 | H51: BSE
A52: 2024-02-09 | B52: 544108 | C52: GPSL | D52: GREEN PEAKS ENTERPRISES LLP | E52: BUY | F52: 30,000 | G52: 131.91 | H52: BSE
A53: 2024-02-09 | B53: 544108 | C53: GPSL | D53: GREEN PEAKS ENTERPRISES LLP | E53: SELL | F53: 48,000 | G53: 133.05 | H53: BSE
A54: 2024-02-09 | B54: 544108 | C54: GPSL | D54: YUGA STOCKS AND COMMODITIES PRIVATE LIMITED . | E54: SELL | F54: 22,800 | G54: 133.05 | H54: BSE
A55: 2024-02-09 | B55: 544108 | C55: GPSL | D55: ASHWIN STOCKS AND INVESTMENT PRIVATE LIMITED | E55: SELL | F55: 24,000 | G55: 133.05 | H55: BSE
A56: 2024-02-09 | B56: 544108 | C56: GPSL | D56: CHIRAG L GANDHI | E56: BUY | F56: 60,000 | G56: 133.05 | H56: BSE
A57: 2024-02-09 | B57: 544108 | C57: GPSL | D57: MULTIPLIER SHARE & STOCK ADVISORS PRIVATE LIMITED | E57: BUY | F57: 33,600 | G57: 133.05 | H57: BSE
A58: 2024-02-09 | B58: 526859 | C58: ISFL | D58: VINOD KUMAR KILA | E58: SELL | F58: 552,000 | G58: 2.3 | H58: BSE
A59: 2024-02-09 | B59: 538539 | C59: JTAPARIA | D59: SAURABH TRIPATHI | E59: BUY | F59: 160,000 | G59: 34.98 | H59: BSE
A60: 2024-02-09 | B60: 531784 | C60: KCLINFRA | D60: MULTIPLIER SHARE & STOCK ADVISORS PRIVATE LIMITED | E60: SELL | F60: 5,000,000 | G60: 2.09 | H60: BSE
A61: 2024-02-09 | B61: 531784 | C61: KCLINFRA | D61: SETU SECURITIES PVT. LTD. | E61: SELL | F61: 2,250,000 | G61: 2.09 | H61: BSE
A62: 2024-02-09 | B62: 531784 | C62: KCLINFRA | D62: MULTIPLIER SHARE & STOCK ADVISORS PRIVATE LIMITED | E62: BUY | F62: 5,035,126 | G62: 2.09 | H62: BSE
A63: 2024-02-09 | B63: 531784 | C63: KCLINFRA | D63: SETU SECURITIES PVT. LTD. | E63: BUY | F63: 1 | G63: 2.09 | H63: BSE
A64: 2024-02-09 | B64: 531784 | C64: KCLINFRA | D64: SHIVAAY TRADING COMPANY | E64: SELL | F64: 1,584,906 | G64: 2.09 | H64: BSE
A65: 2024-02-09 | B65: 531784 | C65: KCLINFRA | D65: AUTONOMY HOMES PRIVATE LIMITED | E65: SELL | F65: 4,048,548 | G65: 2.09 | H65: BSE
A66: 2024-02-09 | B66: 531784 | C66: KCLINFRA | D66: AUTONOMY HOMES PRIVATE LIMITED | E66: BUY | F66: 2,024,274 | G66: 2.09 | H66: BSE
A67: 2024-02-09 | B67: 531784 | C67: KCLINFRA | D67: VIRAL KHIMJI NORIYA | E67: BUY | F67: 1,015,584 | G67: 2.09 | H67: BSE
A68: 2024-02-09 | B68: 531784 | C68: KCLINFRA | D68: TOPGAIN FINANCE PRIVATE LIMITED | E68: BUY | F68: 5,556,641 | G68: 2.1 | H68: BSE
A69: 2024-02-09 | B69: 531784 | C69: KCLINFRA | D69: TOPGAIN FINANCE PRIVATE LIMITED | E69: SELL | F69: 5,228,436 | G69: 2.09 | H69: BSE
A70: 2024-02-09 | B70: 531784 | C70: KCLINFRA | D70: ASODARIYA SAMIR RAMJIBHAI | E70: SELL | F70: 2,504,700 | G70: 2.12 | H70: BSE
A71: 2024-02-09 | B71: 531784 | C71: KCLINFRA | D71: ASODARIYA SAMIR RAMJIBHAI | E71: BUY | F71: 2,500,000 | G71: 2.09 | H71: BSE
A72: 2024-02-09 | B72: 531784 | C72: KCLINFRA | D72: SAHASTRAA ADVISORS PRIVATE LIMITED | E72: BUY | F72: 3,000,390 | G72: 2.09 | H72: BSE
A73: 2024-02-09 | B73: 531784 | C73: KCLINFRA | D73: SAHASTRAA ADVISORS PRIVATE LIMITED | E73: SELL | F73: 3,000,390 | G73: 2.12 | H73: BSE
A74: 2024-02-09 | B74: 531784 | C74: KCLINFRA | D74: JR SEAMLESS PRIVATE LIMITED | E74: BUY | F74: 2,050,000 | G74: 2.11 | H74: BSE
A75: 2024-02-09 | B75: 531784 | C75: KCLINFRA | D75: SRESTHA FINVEST LIMITED | E75: SELL | F75: 3,400,000 | G75: 2.09 | H75: BSE
A76: 2024-02-09 | B76: 531784 | C76: KCLINFRA | D76: SRESTHA FINVEST LIMITED | E76: BUY | F76: 3,400,000 | G76: 2.11 | H76: BSE
A77: 2024-02-09 | B77: 531784 | C77: KCLINFRA | D77: BHAVIN INDRAJIT PARIKH | E77: SELL | F77: 1,000,000 | G77: 2.13 | H77: BSE
A78: 2024-02-09 | B78: 531784 | C78: KCLINFRA | D78: SPARK FINANCE | E78: BUY | F78: 1,300,000 | G78: 2.09 | H78: BSE
A79: 2024-02-09 | B79: 531784 | C79: KCLINFRA | D79: SPARK FINANCE | E79: SELL | F79: 1,300,000 | G79: 2.1 | H79: BSE
A80: 2024-02-09 | B80: 511000 | C80: MADHUSE | D80: MANSI SHARE & STOCK ADVISORS PRIVATE LIMITED | E80: BUY | F80: 80,000 | G80: 25.96 | H80: BSE
A81: 2024-02-09 | B81: 544106 | C81: MCFL | D81: BLACKBERRY SAREES PRIVATE LIMITED | E81: BUY | F81: 43,200 | G81: 114.74 | H81: BSE
A82: 2024-02-09 | B82: 535910 | C82: MMLF | D82: SAHIL BIPIN MEHTA | E82: SELL | F82: 150,000 | G82: 91.99 | H82: BSE
A83: 2024-02-09 | B83: 535910 | C83: MMLF | D83: ASODARIYA SAMIR RAMJIBHAI | E83: BUY | F83: 137,500 | G83: 90.5 | H83: BSE
A84: 2024-02-09 | B84: 530167 | C84: MONGIPA | D84: SHYAMSUNDER RAMBILAS MITTAL | E84: BUY | F84: 15,590 | G84: 35.35 | H84: BSE
A85: 2024-02-09 | B85: 530557 | C85: NCLRESE | D85: VIBRANT SECURITIES PRIVATE LIMITED | E85: BUY | F85: 6,860,248 | G85: 0.71 | H85: BSE
A86: 2024-02-09 | B86: 530557 | C86: NCLRESE | D86: VIBRANT SECURITIES PRIVATE LIMITED | E86: SELL | F86: 5,868,736 | G86: 0.71 | H86: BSE
A87: 2024-02-09 | B87: 543814 | C87: PCL | D87: RUPESH VAIKUNTHRAI MEHTA HUF | E87: SELL | F87: 30,000 | G87: 60.67 | H87: BSE
A88: 2024-02-09 | B88: 541601 | C88: RAJNISH | D88: SARVAGAY TEXTILE LLP | E88: SELL | F88: 4,389,833 | G88: 10.96 | H88: BSE
A89: 2024-02-09 | B89: 517447 | C89: RSSOFTWARE | D89: SUNIL KUMAR CHHAJER | E89: SELL | F89: 150,000 | G89: 106.43 | H89: BSE
A90: 2024-02-09 | B90: 517447 | C90: RSSOFTWARE | D90: GUNJAN CHHAJER | E90: SELL | F90: 175,000 | G90: 106.43 | H90: BSE
A91: 2024-02-09 | B91: 517447 | C91: RSSOFTWARE | D91: YUGA STOCKS AND COMMODITIES PRIVATE LIMITED . | E91: SELL | F91: 150,000 | G91: 106.43 | H91: BSE
A92: 2024-02-09 | B92: 527005 | C92: SHREEPAC | D92: KIFS ENTERPRISE | E92: BUY | F92: 47,357 | G92: 150.45 | H92: BSE
A93: 2024-02-09 | B93: 527005 | C93: SHREEPAC | D93: MATHEW SAMUEL KALARICKAL | E93: SELL | F93: 50,000 | G93: 150.45 | H93: BSE
A94: 2024-02-09 | B94: 543536 | C94: SILVERPRL | D94: INDRAWATI ENTERPRISES PRIVATE LIMITED | E94: BUY | F94: 80,000 | G94: 10.5 | H94: BSE
A95: 2024-02-09 | B95: 543536 | C95: SILVERPRL | D95: SVCM SECURITIES PRIVATE LIMITED | E95: SELL | F95: 72,000 | G95: 10.5 | H95: BSE
A96: 2024-02-09 | B96: 508905 | C96: SMIFS | D96: MINAL BHARAT PATEL | E96: SELL | F96: 35,000 | G96: 65.02 | H96: BSE
A97: 2024-02-09 | B97: 508905 | C97: SMIFS | D97: MANJU GAGGAR | E97: BUY | F97: 51,149 | G97: 64.78 | H97: BSE
A98: 2024-02-09 | B98: 538923 | C98: SOFCOM | D98: ANKITGERA | E98: BUY | F98: 60,000 | G98: 44.1 | H98: BSE
A99: 2024-02-09 | B99: 538923 | C99: SOFCOM | D99: KULDIP MAHAVIRCHAND JAIN | E99: SELL | F99: 30,598 | G99: 44.1 | H99: BSE
A100: 2024-02-09 | B100: 531370 | C100: SPAR | D100: RAVIRAJ GANESH PALIWAL | E100: BUY | F100: 40,476 | G100: 29.48 | H100: BSE
A101: 2024-02-09 | B101: 532531 | C101: STAR | D101: BAJAJ FINANCE LIMITED | E101: SELL | F101: 804,629 | G101: 713 | H101: BSE
A102: 2024-02-09 | B102: 532531 | C102: STAR | D102: AMANSA HOLDING PRIVATE LTD. | E102: BUY | F102: 1,140,301 | G102: 713 | H102: BSE
A103: 2024-02-09 | B103: 543274 | C103: SUUMAYA | D103: GLOBALWORTH SECURITIES LIMITED | E103: SELL | F103: 135,450 | G103: 8.65 | H103: BSE
A104: 2024-02-09 | B104: 543274 | C104: SUUMAYA | D104: GLOBALWORTH SECURITIES LIMITED | E104: BUY | F104: 153,450 | G104: 9.59 | H104: BSE
A105: 2024-02-09 | B105: 539310 | C105: THINKINK | D105: YASHWANTBHAI A THAKKER | E105: BUY | F105: 350,000 | G105: 88.27 | H105: BSE
A106: 2024-02-09 | B106: 541358 | C106: UCIL | D106: VIKAS GOYAL | E106: SELL | F106: 6 | G106: 62.95 | H106: BSE
A107: 2024-02-09 | B107: 541358 | C107: UCIL | D107: VIKAS GOYAL | E107: BUY | F107: 19,709 | G107: 57.04 | H107: BSE
A108: 2024-02-09 | B108: 531444 | C108: VARDHMAN | D108: SHAH JYOTI ARVIND KUMAR | E108: SELL | F108: 185,000 | G108: 12.5 | H108: BSE
A109: 2024-02-09 | B109: 531444 | C109: VARDHMAN | D109: ARVIND BABULAL SHAH | E109: SELL | F109: 100,000 | G109: 12.5 | H109: BSE
A110: 2024-02-09 | B110: 531444 | C110: VARDHMAN | D110: VEDANT SURESH HARAN | E110: BUY | F110: 145,000 | G110: 12.5 | H110: BSE
A111: 2024-02-09 | B111: 531444 | C111: VARDHMAN | D111: MADHU SURESH HARAN | E111: BUY | F111: 140,000 | G111: 12.5 | H111: BSE
A112: 2024-02-09 | B112: 514378 | C112: YARNSYN | D112: ANKITGOYAL | E112: BUY | F112: 28,900 | G112: 32.22 | H112: BSE
A113: 2024-02-09 | B113: ADRO-RE | C113: Adroit Infotech Limited | D113: MULTIPLIER SHARE & STOCK ADVISORS PRIVATE LIMITED | E113: BUY | F113: 650,000 | G113: 2.27 | H113: BSE
A114: 2024-02-09 | B114: ANDHRAPAP | C114: ANDHRA PAPER LIMITED | D114: GRAVITON RESEARCH CAPITAL LLP | E114: BUY | F114: 229,783 | G114: 566.82 | H114: NSE
A115: 2024-02-09 | B115: APOLLOPIPE | C115: Apollo Pipes Limited | D115: SOCIETE GENERALE | E115: BUY | F115: 258,071 | G115: 766.13 | H115: NSE
A116: 2024-02-09 | B116: ASAL | C116: Automotive Stampings and | D116: GRAVITON RESEARCH CAPITAL LLP | E116: BUY | F116: 95,967 | G116: 676.21 | H116: NSE
A117: 2024-02-09 | B117: ASAL | C117: Automotive Stampings and | D117: HRTI PRIVATE LIMITED | E117: BUY | F117: 115,472 | G117: 667.51 | H117: NSE
A118: 2024-02-09 | B118: ASAL | C118: Automotive Stampings and | D118: AAKRAYA RESEARCH LLP | E118: BUY | F118: 80,352 | G118: 671.19 | H118: NSE
A119: 2024-02-09 | B119: ASAL | C119: Automotive Stampings and | D119: MBPL SECURITIES PRIVATE LIMITED | E119: BUY | F119: 84,149 | G119: 663.12 | H119: NSE
A120: 2024-02-09 | B120: ATALREAL | C120: Atal Realtech Limited | D120: KAUSHIK MAHESH WAGHELA | E120: BUY | F120: 900,000 | G120: 15.03 | H120: NSE
A121: 2024-02-09 | B121: BAJAJHIND | C121: Bajaj Hindustan Sugar Ltd | D121: GRAVITON RESEARCH CAPITAL LLP | E121: BUY | F121: 8,266,285 | G121: 36.65 | H121: NSE
A122: 2024-02-09 | B122: BALAJITELE | C122: Balaji Telefilms Limited | D122: GRAVITON RESEARCH CAPITAL LLP | E122: BUY | F122: 534,771 | G122: 126.14 | H122: NSE
A123: 2024-02-09 | B123: DISHTV | C123: Dish TV India Limited | D123: GRAVITON RESEARCH CAPITAL LLP | E123: BUY | F123: 12,964,563 | G123: 21.51 | H123: NSE
A124: 2024-02-09 | B124: DISHTV | C124: Dish TV India Limited | D124: HRTI PRIVATE LIMITED | E124: BUY | F124: 16,455,892 | G124: 21.47 | H124: NSE
A125: 2024-02-09 | B125: EKC | C125: Everest Kanto Cylinder Li | D125: HRTI PRIVATE LIMITED | E125: BUY | F125: 521,897 | G125: 171.39 | H125: NSE
A126: 2024-02-09 | B126: EKC | C126: Everest Kanto Cylinder Li | D126: GRAVITON RESEARCH CAPITAL LLP | E126: BUY | F126: 610,781 | G126: 172.58 | H126: NSE
A127: 2024-02-09 | B127: FCSSOFT | C127: FCS Software Solutions Li | D127: HI GROWTH CORPORATE SERVICES PVT LTD | E127: BUY | F127: 9,782,634 | G127: 5.97 | H127: NSE
A128: 2024-02-09 | B128: GLOBUSSPR | C128: Globus Spirits Limited | D128: GRAVITON RESEARCH CAPITAL LLP | E128: BUY | F128: 167,806 | G128: 855.36 | H128: NSE
A129: 2024-02-09 | B129: GTLINFRA | C129: GTL Infrastructure Limite | D129: MANSI SHARE AND STOCK ADVISORS PVT LTD | E129: BUY | F129: 70,000,020 | G129: 2.39 | H129: NSE
A130: 2024-02-09 | B130: IBREALEST | C130: Indiabulls Real Estate Li | D130: HRTI PRIVATE LIMITED | E130: BUY | F130: 6,019,521 | G130: 118.99 | H130: NSE
A131: 2024-02-09 | B131: IBREALEST | C131: Indiabulls Real Estate Li | D131: GRAVITON RESEARCH CAPITAL LLP | E131: BUY | F131: 4,093,434 | G131: 120.05 | H131: NSE
A132: 2024-02-09 | B132: INTLCONV | C132: Intl Conveyors Limited | D132: GRAVITON RESEARCH CAPITAL LLP | E132: BUY | F132: 378,812 | G132: 117.63 | H132: NSE
A133: 2024-02-09 | B133: IPL | C133: India Pesticides Limited | D133: YASHWI SECURITIES PVT. LTD. | E133: BUY | F133: 668,494 | G133: 397.94 | H133: NSE
A134: 2024-02-09 | B134: KAMOPAINTS | C134: Kamdhenu Ventures Limited | D134: JAINAM BROKING LIMITED | E134: BUY | F134: 389,888 | G134: 231.4 | H134: NSE
A135: 2024-02-09 | B135: KANDARP | C135: Kandarp Dg Smart Bpo Ltd | D135: HEMENDRA RATILAL MEHTA | E135: BUY | F135: 100,000 | G135: 27.19 | H135: NSE
A136: 2024-02-09 | B136: KCP | C136: KCP Ltd | D136: GRAVITON RESEARCH CAPITAL LLP | E136: BUY | F136: 734,250 | G136: 201.53 | H136: NSE
A137: 2024-02-09 | B137: KELLTONTEC | C137: Kellton Tech Sol Ltd | D137: GRAVITON RESEARCH CAPITAL LLP | E137: BUY | F137: 563,584 | G137: 106.34 | H137: NSE
A138: 2024-02-09 | B138: KSHITIJPOL | C138: Kshitij Polyline Limited | D138: JR SEAMLESS PRIVATE LIMITED | E138: BUY | F138: 442,579 | G138: 6.3 | H138: NSE
A139: 2024-02-09 | B139: LATTEYS | C139: Latteys Industries Ltd | D139: RAJ RATAN COMMODITIES PRIVATE LIMITED | E139: BUY | F139: 416,164 | G139: 20.21 | H139: NSE
A140: 2024-02-09 | B140: MEP | C140: MEP Infra. Developers Ltd | D140: JAGAT NAVRATNA LODHA | E140: BUY | F140: 942,000 | G140: 20.73 | H140: NSE
A141: 2024-02-09 | B141: MITTAL | C141: Mittal Life Style Limited | D141: TRANSGLOBAL SECURITIES LTD | E141: BUY | F141: 2,453,845 | G141: 2.64 | H141: NSE
A142: 2024-02-09 | B142: MITTAL | C142: Mittal Life Style Limited | D142: SAKSHI | E142: BUY | F142: 2,655,225 | G142: 2.63 | H142: NSE
A143: 2024-02-09 | B143: MPTODAY | C143: M P Today Media Limited | D143: MARK CORPORATE ADVISORS PRIVATE LIMITED. | E143: BUY | F143: 56,000 | G143: 34.75 | H143: NSE
A144: 2024-02-09 | B144: MTNL | C144: Maha Tel Nigam Ltd. | D144: HRTI PRIVATE LIMITED | E144: BUY | F144: 1,567,567 | G144: 49.78 | H144: NSE
A145: 2024-02-09 | B145: NRL | C145: Nupur Recyclers Limited | D145: GRAVITON RESEARCH CAPITAL LLP | E145: BUY | F145: 284,114 | G145: 143.69 | H145: NSE
A146: 2024-02-09 | B146: OLIL | C146: Oneclick Logistics Ind L | D146: KETAN BALKRISHNA MEHTA | E146: BUY | F146: 32,400 | G146: 86.09 | H146: NSE
A147: 2024-02-09 | B147: PARAGMILK | C147: Parag Milk Foods Ltd. | D147: GRAVITON RESEARCH CAPITAL LLP | E147: BUY | F147: 761,133 | G147: 262.56 | H147: NSE
A148: 2024-02-09 | B148: PATINTLOG | C148: Patel Integrated Logistic | D148: CITADEL SECURITIES INDIA MARKETS PRIVATE LIMITED | E148: BUY | F148: 377,132 | G148: 24.01 | H148: NSE
A149: 2024-02-09 | B149: PEARLPOLY | C149: Pearl Polymers Ltd | D149: CHHIMPA NARAYAN | E149: BUY | F149: 86,346 | G149: 37.95 | H149: NSE
A150: 2024-02-09 | B150: PRSMJOHNSN | C150: Prism Johnson LTD | D150: GRAVITON RESEARCH CAPITAL LLP | E150: BUY | F150: 2,589,070 | G150: 189.87 | H150: NSE
A151: 2024-02-09 | B151: RSSOFTWARE | C151: R. S. Software (I) Ltd. | D151: ARUN KUMAR MUKHERJEE | E151: BUY | F151: 144,750 | G151: 106.1 | H151: NSE
A152: 2024-02-09 | B152: RSSOFTWARE | C152: R. S. Software (I) Ltd. | D152: CINCO STOCK VISION LLP | E152: BUY | F152: 102,397 | G152: 106.1 | H152: NSE
A153: 2024-02-09 | B153: SADBHAV | C153: Sadbhav Engineering Limit | D153: ANKITA VISHAL SHAH | E153: BUY | F153: 1,184,236 | G153: 29.51 | H153: NSE
A154: 2024-02-09 | B154: SAKUMA | C154: Sakuma Exports Limited | D154: CHANDAN CHAURASIYA | E154: BUY | F154: 1,291,891 | G154: 25.95 | H154: NSE
A155: 2024-02-09 | B155: SANGANI | C155: Sangani Hospitals Limited | D155: RIKHAV SECURITIES LIMITED | E155: BUY | F155: 3,000 | G155: 48.3 | H155: NSE
A156: 2024-02-09 | B156: SMSPHARMA | C156: SMS Pharmaceuticals Limit | D156: GRAVITON RESEARCH CAPITAL LLP | E156: BUY | F156: 689,158 | G156: 143.24 | H156: NSE
A157: 2024-02-09 | B157: SSFL | C157: Srivari Spices N Foods L | D157: AVNEESH KUMAR RANA | E157: BUY | F157: 108,000 | G157: 285.13 | H157: NSE
A158: 2024-02-09 | B158: SUBEXLTD | C158: Subex Ltd | D158: HRTI PRIVATE LIMITED | E158: BUY | F158: 4,846,018 | G158: 40.05 | H158: NSE
A159: 2024-02-09 | B159: SUBEXLTD | C159: Subex Ltd | D159: GRAVITON RESEARCH CAPITAL LLP | E159: BUY | F159: 3,298,328 | G159: 40.11 | H159: NSE
A160: 2024-02-09 | B160: TIJARIA | C160: Tijaria Polypipes Ltd | D160: CRONY VYAPAR PVT LTD | E160: BUY | F160: 152,207 | G160: 6.08 | H160: NSE
A161: 2024-02-09 | B161: UNIVASTU | C161: Univastu India Limited | D161: VEENA RAJESH SHAH | E161: BUY | F161: 95,412 | G161: 132.49 | H161: NSE
A162: 2024-02-09 | B162: VIKASECO | C162: Vikas EcoTech Limited | D162: VISHWAS FINCAP SERVICES PRIVATE LIMITED | E162: BUY | F162: 9,709,170 | G162: 5.06 | H162: NSE
A163: 2024-02-09 | B163: VIKASECO | C163: Vikas EcoTech Limited | D163: ACHINTYA SECURITIES PRIVATE LIMITED | E163: BUY | F163: 14,871,519 | G163: 4.98 | H163: NSE
A164: 2024-02-09 | B164: VIKASECO | C164: Vikas EcoTech Limited | D164: HI GROWTH CORPORATE SERVICES PVT LTD | E164: BUY | F164: 16,205,539 | G164: 4.91 | H164: NSE
A165: 2024-02-09 | B165: YESBANK | C165: Yes Bank Limited | D165: HRTI PRIVATE LIMITED | E165: BUY | F165: 146,036,341 | G165: 31.21 | H165: NSE
A166: 2024-02-09 | B166: ZEEL | C166: Zee Entertain. Enterp.Ltd | D166: GRAVITON RESEARCH CAPITAL LLP | E166: BUY | F166: 5,522,935 | G166: 194.48 | H166: NSE
A167: 2024-02-09 | B167: ZEEL | C167: Zee Entertain. Enterp.Ltd | D167: HRTI PRIVATE LIMITED | E167: BUY | F167: 4,716,881 | G167: 194.97 | H167: NSE
A168: 2024-02-09 | B168: ZEEMEDIA | C168: Zee News Limited | D168: GRAVITON RESEARCH CAPITAL LLP | E168: BUY | F168: 3,186,755 | G168: 15.84 | H168: NSE
A169: 2024-02-09 | B169: ZEEMEDIA | C169: Zee News Limited | D169: HRTI PRIVATE LIMITED | E169: BUY | F169: 5,577,567 | G169: 15.48 | H169: NSE
A170: 2024-02-09 | B170: ZEEMEDIA | C170: Zee News Limited | D170: QE SECURITIES LLP | E170: BUY | F170: 2,965,150 | G170: 15.75 | H170: NSE
A171: 2024-02-09 | B171: ADRO-RE | C171: Adroit Infotech Limited | D171: MANISH KANAIYALAL SHAH | E171: SELL | F171: 300,000 | G171: 2.38 | H171: NSE
A172: 2024-02-09 | B172: ADRO-RE | C172: Adroit Infotech Limited | D172: SOFTPOINT TECHNOLOGIES PRIVATE LIMITED | E172: SELL | F172: 1,099,623 | G172: 2.44 | H172: NSE
A173: 2024-02-09 | B173: ANDHRAPAP | C173: ANDHRA PAPER LIMITED | D173: GRAVITON RESEARCH CAPITAL LLP | E173: SELL | F173: 229,783 | G173: 566.73 | H173: NSE
A174: 2024-02-09 | B174: ANDHRAPAP | C174: ANDHRA PAPER LIMITED | D174: INFINITY ASSET ADVISORS PRIVATE LIMITED | E174: SELL | F174: 391,588 | G174: 532 | H174: NSE
A175: 2024-02-09 | B175: ASAL | C175: Automotive Stampings and | D175: AAKRAYA RESEARCH LLP | E175: SELL | F175: 80,352 | G175: 672.11 | H175: NSE
A176: 2024-02-09 | B176: ASAL | C176: Automotive Stampings and | D176: HRTI PRIVATE LIMITED | E176: SELL | F176: 116,157 | G176: 669.77 | H176: NSE
A177: 2024-02-09 | B177: ASAL | C177: Automotive Stampings and | D177: GRAVITON RESEARCH CAPITAL LLP | E177: SELL | F177: 95,967 | G177: 677.32 | H177: NSE
A178: 2024-02-09 | B178: ASAL | C178: Automotive Stampings and | D178: MBPL SECURITIES PRIVATE LIMITED | E178: SELL | F178: 84,149 | G178: 663.82 | H178: NSE
A179: 2024-02-09 | B179: ATALREAL | C179: Atal Realtech Limited | D179: MULTIPLIER SHARE & STOCK ADVISORS PRIVATE LIMITED | E179: SELL | F179: 375,000 | G179: 14 | H179: NSE
A180: 2024-02-09 | B180: ATALREAL | C180: Atal Realtech Limited | D180: KAUSHIK MAHESH WAGHELA | E180: SELL | F180: 96,271 | G180: 15.09 | H180: NSE
A181: 2024-02-09 | B181: BAJAJHIND | C181: Bajaj Hindustan Sugar Ltd | D181: GRAVITON RESEARCH CAPITAL LLP | E181: SELL | F181: 8,266,285 | G181: 36.66 | H181: NSE
A182: 2024-02-09 | B182: BALAJITELE | C182: Balaji Telefilms Limited | D182: GRAVITON RESEARCH CAPITAL LLP | E182: SELL | F182: 534,771 | G182: 125.94 | H182: NSE
A183: 2024-02-09 | B183: DISHTV | C183: Dish TV India Limited | D183: GRAVITON RESEARCH CAPITAL LLP | E183: SELL | F183: 12,964,563 | G183: 21.53 | H183: NSE
A184: 2024-02-09 | B184: DISHTV | C184: Dish TV India Limited | D184: HRTI PRIVATE LIMITED | E184: SELL | F184: 16,147,060 | G184: 21.65 | H184: NSE
A185: 2024-02-09 | B185: EKC | C185: Everest Kanto Cylinder Li | D185: GRAVITON RESEARCH CAPITAL LLP | E185: SELL | F185: 610,781 | G185: 173.33 | H185: NSE
A186: 2024-02-09 | B186: EKC | C186: Everest Kanto Cylinder Li | D186: HRTI PRIVATE LIMITED | E186: SELL | F186: 580,002 | G186: 172.62 | H186: NSE
A187: 2024-02-09 | B187: FCSSOFT | C187: FCS Software Solutions Li | D187: HI GROWTH CORPORATE SERVICES PVT LTD | E187: SELL | F187: 11,766,702 | G187: 5.97 | H187: NSE
A188: 2024-02-09 | B188: GATECHDVR | C188: GACM Technologies Limited | D188: SATHI RAMESH REDDY | E188: SELL | F188: 335,000 | G188: 5.38 | H188: NSE
A189: 2024-02-09 | B189: GLOBUSSPR | C189: Globus Spirits Limited | D189: GRAVITON RESEARCH CAPITAL LLP | E189: SELL | F189: 167,806 | G189: 856.39 | H189: NSE
A190: 2024-02-09 | B190: GTLINFRA | C190: GTL Infrastructure Limite | D190: MANSI SHARE AND STOCK ADVISORS PVT LTD | E190: SELL | F190: 40,797,780 | G190: 2.37 | H190: NSE
A191: 2024-02-09 | B191: HEADSUP | C191: Heads UP Ventures Limited | D191: ARISTON CAPITAL SERVICES PRIVATE LIMITED | E191: SELL | F191: 186,836 | G191: 18.68 | H191: NSE
A192: 2024-02-09 | B192: IBREALEST | C192: Indiabulls Real Estate Li | D192: HRTI PRIVATE LIMITED | E192: SELL | F192: 6,038,657 | G192: 119.17 | H192: NSE
A193: 2024-02-09 | B193: IBREALEST | C193: Indiabulls Real Estate Li | D193: GRAVITON RESEARCH CAPITAL LLP | E193: SELL | F193: 4,093,434 | G193: 120.14 | H193: NSE
A194: 2024-02-09 | B194: IKIO | C194: Ikio Lighting Limited | D194: SARAVANA STOCKS INVT. P LTD. | E194: SELL | F194: 461,174 | G194: 301.39 | H194: NSE
A195: 2024-02-09 | B195: INTLCONV | C195: Intl Conveyors Limited | D195: GRAVITON RESEARCH CAPITAL LLP | E195: SELL | F195: 378,812 | G195: 117.92 | H195: NSE
A196: 2024-02-09 | B196: IPL | C196: India Pesticides Limited | D196: YASHWI SECURITIES PVT. LTD. | E196: SELL | F196: 668,494 | G196: 396.58 | H196: NSE
A197: 2024-02-09 | B197: ISHAN | C197: Ishan International Ltd | D197: JAVEDBEG BABUBEG MIRZA | E197: SELL | F197: 384,000 | G197: 5.85 | H197: NSE
A198: 2024-02-09 | B198: KAMOPAINTS | C198: Kamdhenu Ventures Limited | D198: JAINAM BROKING LIMITED | E198: SELL | F198: 229,939 | G198: 229.93 | H198: NSE
A199: 2024-02-09 | B199: KCP | C199: KCP Ltd | D199: GRAVITON RESEARCH CAPITAL LLP | E199: SELL | F199: 734,250 | G199: 201.41 | H199: NSE
A200: 2024-02-09 | B200: KELLTONTEC | C200: Kellton Tech Sol Ltd | D200: GRAVITON RESEARCH CAPITAL LLP | E200: SELL | F200: 563,584 | G200: 106.61 | H200: NSE
A201: 2024-02-09 | B201: KSHITIJPOL | C201: Kshitij Polyline Limited | D201: ZENAB AIYUB YACOOBALI | E201: SELL | F201: 600,000 | G201: 6.3 | H201: NSE
A202: 2024-02-09 | B202: LATTEYS | C202: Latteys Industries Ltd | D202: RAJ RATAN COMMODITIES PRIVATE LIMITED | E202: SELL | F202: 416,164 | G202: 20.19 | H202: NSE
A203: 2024-02-09 | B203: MITTAL | C203: Mittal Life Style Limited | D203: TRANSGLOBAL SECURITIES LTD | E203: SELL | F203: 2,407,676 | G203: 2.65 | H203: NSE
A204: 2024-02-09 | B204: MITTAL | C204: Mittal Life Style Limited | D204: SAKSHI | E204: SELL | F204: 2,655,225 | G204: 2.66 | H204: NSE
A205: 2024-02-09 | B205: MPTODAY | C205: M P Today Media Limited | D205: COMFORT CAPITAL PRIVATE LIMITED | E205: SELL | F205: 56,000 | G205: 34.75 | H205: NSE
A206: 2024-02-09 | B206: MTNL | C206: Maha Tel Nigam Ltd. | D206: HRTI PRIVATE LIMITED | E206: SELL | F206: 1,864,533 | G206: 49.63 | H206: NSE
... 29 more rows

Sheet Call Tracker (Equity & F&O)
M5: Back To Main Page
A6: Retail Research Technical Calls & Fundamental Performance Report for the month of February-2024
M7: =Main!B10 -> 2024-02-12
B8: Positional Call
A9: Sr.no | B9: Date | D9: Company | E9: Rec | F9: Rec Price | G9: Stop Loss*** | H9: Call Closed At | I9: Target | J9: Remark | K9: Profit / Loss per Share | L9: All charges | M9: Net Gain / Loss % | N9: Status | O9: Closed Date | P9: Market Closing Price | Q9: Second Buying Date
A10: 1 | B10: 2023-12-18 | D10: SBIN | E10: Accu | F10: 632 | G10: 593 | H10: 670 | I10: 680-720 | J10: Profit of Rs.38/- | K10: =H10-F10 -> 38 | L10: =(F10*-0.3)/100 -> -1.90 | M10: =(K10+L10)/F10 -> 5.71% | N10: Successful | O10: 2024-02-07 | Q10: 2024-01-10 | S10: H
A11: 2 | B11: 2023-12-28 | D11: VINATIORGA | E11: Accu | F11: 1725 | G11: 1645 | H11: 1645 | I11: 1860-1960 | J11: Loss of Rs.80/- | K11: =H11-F11 -> -80 | L11: =(F11*-0.3)/100 -> -5.18 | M11: -4.94% | N11: Unsuccessful | O11: 2024-02-09 | Q11: 2024-01-10 | S11: H
A12: 3 | B12: 2024-01-03 | D12: MARUTI | E12: Accu | F12: 9937.5 | G12: 9340 | H12: 10410 | I12: 10700-11200 | J12: Profit of Rs.472.5/- | K12: =H12-F12 -> 472.5 | L12: =(F12*-0.3)/100 -> -29.81 | M12: =(K12+L12)/F12 -> 4.45% | N12: Successful | O12: 2024-02-01 | S12: H
A13: 4 | B13: 2024-01-12 | D13: JUBLFOOD | E13: Accu | F13: 521.5 | G13: 490 | H13: 487 | I13: 555-575 | J13: Loss of Rs.34.5/- | K13: =H13-F13 -> -34.5 | L13: =(F13*-0.3)/100 -> -1.56 | M13: =(K13+L13)/F13 -> -6.92% | N13: Unsuccessful | O13: 2024-02-05 | Q13: 2024-01-18 | S13: K
A14: 5 | B14: 2024-01-16 | D14: CAPACITE | E14: Accu | F14: 267.5 | G14: 237 | H14: 282.5 | I14: 300-330 | J14: Profit of Rs.15/- | K14: =H14-F14 -> 15 | L14: =(F14*-0.3)/100 -> -0.80 | M14: 5.31% | N14: Successful | O14: 2024-02-08 | S14: H
A15: 6 | B15: 2024-01-25 | D15: FLUOROCHEM | E15: Accu | F15: 3395-3575 | G15: 3280 | I15: 3900-4200 | J15: Open | P15: =VLOOKUP(D15,'MidCap Intra'!$B$11:$C$568,2,0) -> 3520.45 | S15: H
A16: 7 | B16: 2024-01-25 | D16: VGUARD | E16: Accu | F16: 288 | G16: 267 | H16: 305 | I16: 305-325 | J16: Profit of Rs.17/- | K16: =H16-F16 -> 17 | L16: =(F16*-0.3)/100 -> -0.86 | M16: =(K16+L16)/F16 -> 5.60% | N16: Successful | O16: 2024-02-01 | S16: H
A17: 8 | B17: 2024-01-29 | D17: GMMPFAUDLR | E17: Accu | F17: 1502.5 | G17: 1415 | H17: 1400 | I17: 1650-1750 | J17: Loss of Rs.102.5/- | K17: =H17-F17 -> -102.5 | L17: =(F17*-0.3)/100 -> -4.51 | M17: -7.12% | N17: Unsuccessful | O17: 2024-02-09 | S17: H
A18: 9 | B18: 2024-01-30 | D18: RELIANCE | E18: Accu | F18: 2870-2790 | G18: 2640 | I18: 3100-3200 | J18: Open | P18: =VLOOKUP(D18,'MidCap Intra'!$B$11:$C$568,2,0) -> 2921.50 | S18: H
A19: 10 | B19: 2024-01-30 | D19: JAMNAAUTO | E19: Accu | F19: 115.5 | G19: 106 | H19: 123 | I19: 124-130 | J19: Profit of Rs.7.5/- | K19: =H19-F19 -> 7.5 | L19: =(F19*-0.3)/100 -> -0.35 | M19: =(K19+L19)/F19 -> 6.19% | N19: Successful | O19: 2024-02-05 | S19: H
A20: 11 | B20: 2024-02-02 | D20: DATAPATTNS | E20: Accu | F20: 1850-1910 | G20: 1790 | I20: 2040-2140 | J20: Open | P20: =VLOOKUP(D20,'MidCap Intra'!$B$11:$C$568,2,0) -> 1875.60 | S20: H
A21: 12 | B21: 2024-02-05 | D21: UBL | E21: Accu | F21: 1740-1800 | G21: 1660 | I21: 2000-2100 | J21: Open | P21: =VLOOKUP(D21,'MidCap Intra'!$B$11:$C$568,2,0) -> 1776.75 | S21: H
A22: 13 | B22: 2024-02-06 | D22: CARBORUNIV | E22: Accu | F22: 1065-1105 | G22: 1030 | I22: 1200-1280 | J22: Open | P22: =VLOOKUP(D22,'MidCap Intra'!$B$11:$C$568,2,0) -> 1133.30 | S22: H
A23: 14 | B23: 2024-02-08 | D23: LTIM | E23: Accu | F23: 5200-5400 | G23: 4990 | I23: 5750-6050 | J23: Open | P23: =VLOOKUP(D23,'MidCap Intra'!$B$11:$C$568,2,0) -> 5453.30 | S23: H
A24: 15 | B24: 2024-02-09 | D24: CAPACITE | E24: Accu | F24: 260.5-271.5 | G24: 248 | I24: 295-320 | J24: Open | S24: H
A25: 16 | B25: 2024-02-09 | D25: HDFCBANK | E25: Accu | F25: 1350-1400 | G25: 1290 | I25: 1500-1600 | J25: Open | P25: =VLOOKUP(D25,'MidCap Intra'!$B$11:$C$568,2,0) -> 1403.60 | S25: H
A29: CLBS = Closing Basis ***
A30: Dividend adjusted <> | F30: Reinitiated $
A31: Part book {} | D31: s | F31: Revised stoploss #
A35: Master Trade High Risk
A36: Sr.no | B36: Date | D36: Company | E36: Rec | F36: Rec Price | G36: Stop Loss | H36: Call Closed At | I36: Target | J36: Remark | K36: Profit / Loss per share | L36: All charges | M36: Gain / Loss per Lot | N36: Lot | O36: Status | P36: Closed Date
A37: 1 | B37: 2024-02-02 | D37: FEDERALBNK FEB FUT | E37: Buy | F37: 146.6 | G37: 144.5 | H37: 148.35 | I37: 149-151 | J37: Profit of Rs.1.75/- | K37: =H37-F37 -> 1.75 | L37: =(H37*N37)*0.03% -> 222.53 | M37: =(K37*N37)-L37 -> 8527.5 | N37: 5000 | O37: Successful | P37: 2024-02-06 | S37: K
A38: 2 | B38: 2024-02-06 | D38: CIPLA FEB FUT | E38: Buy | F38: 1428.5 | G38: 1410 | H38: 1453 | I38: 1445-1461 | J38: Profit of Rs.24.5/- | K38: =H38-F38 -> 24.5 | L38: =(H38*N38)*0.03% -> 283.34 | M38: =(K38*N38)-L38 -> 15641.7 | N38: 650 | O38: Successful | P38: 2024-02-06 | S38: K
A39: 3 | B39: 2024-02-08 | D39: NIFTY FEB FUT | E39: Buy | F39: 22035 | G39: 22200 | H39: 21925 | I39: 21800-21700 | J39: Profit of Rs.110/- | K39: =F39-H39 -> 110 | L39: =(H39*N39)*0.03% -> 328.88 | M39: =(K39*N39)-L39 -> 5171.1 | N39: 50 | O39: Successful | P39: 2024-02-08 | S39: H
A44: Master Trade Medium Risk
A45: Sr.no | B45: Date | D45: Company | E45: Rec | F45: Rec Price | G45: Stop Loss | H45: Call Closed At | I45: Target | J45: Remark | K45: Profit/ Loss per lot | L45: All charges | M45: Gain / Loss per Lot | N45: Lot | O45: Status | P45: Closed Date
A46: 1 | B46: 2024-01-31 | D46: NIFTY 21700 PE 08 FEB | E46: Buy | F46: 220 | G46: 82.5 | H46: 82.5 | J46: Loss of Rs.103.5/- | K46: =H46-F46 -> -137.5 | L46: 50.00 | M46: =(K46*N46)-L46 -> -6925.0 | N46: 50 | O46: Unsuccessful | P46: 2024-02-02 | S46: H
D47: NIFTY 21450 PE 01 FEB | E47: Sell | F47: 34 | H47: 0 | K47: =F47-H47 -> 34 | L47: 25.00 | M47: =(K47*N47)-L47 -> 1675.0 | N47: 50
A48: 2 | B48: 2024-02-01 | D48: NIFTY 22500 CE 29 FEB | E48: Sell | F48: 122.5 | G48: 210 | H48: 87 | I48: 0.1 | J48: Profit of Rs.35.5/- | K48: =F48-H48 -> 35.5 | L48: 50.00 | M48: =(K48*N48)-L48 -> 1725.0 | N48: 50 | O48: Successful | P48: 2024-02-01 | S48: H
A49: 3 | B49: 2024-02-02 | D49: NIFTY 22500 CE 29 FEB | E49: Sell | F49: 127 | G49: 220 | H49: 197.5 | I49: 5 | J49: Loss of Rs.70.5/- | K49: =F49-H49 -> -70.5 | L49: 50.00 | M49: =(K49*N49)-L49 -> -3575.0 | N49: 50 | O49: Unsuccessful | P49: 2024-02-02 | S49: H
A50: 4 | B50: 2024-02-02 | D50: NIFTY 21900 PE 29 FEB | E50: Buy | F50: 262.5 | I50: 422.5 | J50: Profit of Rs.60/- | K50: =I50-F50 -> 160 | L50: 50.00 | M50: 2900.0 | N50: 50 | O50: Successful | P50: 2024-02-09 | S50: H
D51: NIFTY 21600 PE 29 FEB | E51: Sell | F51: 167.5 | I51: 267.5 | K51: =F51-I51 -> -100 | L51: 50.00 | N51: 50
A52: 5 | B52: 2024-02-02 | D52: SBIN 680 CE FEB | E52: Buy | F52: 12.5 | G52: 9 | H52: 11.25 | I52: 16-19 | J52: Loss of Rs.1.25/- | K52: =H52-F52 -> -1.25 | L52: 50.00 | M52: =(K52*N52)-L52 -> -1925.0 | N52: 1500 | O52: Unsuccessful | P52: 2024-02-02 | S52: H
A53: 6 | B53: 2024-02-05 | D53: NIFTY 22500 CE 29 FEB | E53: Sell | F53: 145 | G53: 235 | H53: 95 | I53: 5 | J53: Profit of Rs.50/- | K53: =F53-H53 -> 50 | L53: 50.00 | M53: 2450.0 | N53: 50 | O53: Successful | P53: 2024-02-05 | S53: H
A54: 7 | B54: 2024-02-05 | D54: NIFTY 21750 PE 08 FEB | E54: Buy | F54: 72.5 | G54: 18 | H54: 96 | I54: 140-200 | J54: Profit of Rs.23.5/- | K54: =H54-F54 -> 23.5 | L54: 50.00 | M54: =(K54*N54)-L54 -> 1125.0 | N54: 50 | O54: Successful | P54: 2024-02-05 | S54: H
A55: 8 | B55: 2024-02-05 | D55: BANKNIFTY 45700 PE 07 FEB | E55: Buy | F55: 290 | G55: 190 | H55: 325 | I55: 400-500 | J55: Profit of Rs.35/- | K55: =H55-F55 -> 35 | L55: 50.00 | M55: =(K55*N55)-L55 -> 475.0 | N55: 15 | O55: Successful | P55: 2024-02-05 | S55: H
A56: 9 | B56: 2024-02-05 | D56: FINNIFTY 20200 PE 06 FEB | E56: Sell | F56: 54 | H56: 47.5 | J56: Profit of Rs.29.5/- | K56: =F56-H56 -> 6.5 | L56: 50.00 | M56: 1080.0 | N56: 40 | O56: Successful | P56: 2024-02-06 | S56: H
D57: FINNIFTY 20400 CE 06 FEB | E57: Sell | F57: 44 | H57: 21 | K57: =F57-H57 -> 23 | L57: 50.00 | N57: 40
A58: 10 | B58: 2024-02-06 | D58: NIFTY 22500 CE 29 FEB | E58: Sell | F58: 101 | G58: 158 | H58: 94 | I58: 5 | J58: Profit of Rs.7/- | K58: =F58-H58 -> 7 | L58: 50.00 | M58: =(K58*N58)-L58 -> 300.0 | N58: 50 | O58: Successful | P58: 2024-02-06 | S58: H
A59: 11 | B59: 2024-02-06 | D59: NIFTY 21800 PE 08 FEB | E59: Buy | F59: 65 | G59: 25 | H59: 85 | I59: 110-150 | J59: Profit of Rs.20/- | K59: =H59-F59 -> 20 | L59: 50.00 | M59: =(K59*N59)-L59 -> 950.0 | N59: 50 | O59: Successful | P59: 2024-02-06 | S59: H
A60: 12 | B60: 2024-02-08 | D60: NIFTY 21750 PE 08 FEB | E60: Buy | F60: 41.5 | G60: 9 | H60: 67.5 | I60: 70-90 | J60: Profit of Rs.26/- | K60: =H60-F60 -> 26 | L60: 50.00 | M60: =(K60*N60)-L60 -> 1250.0 | N60: 50 | O60: Successful | P60: 2024-02-08 | S60: K
A61: 13 | B61: 2024-01-08 | D61: FINNIFTY 20150 CE 13 FEB | E61: Sell | F61: 146 | H61: 102.5 | J61: Profit of Rs.21/- | K61: =F61-H61 -> 43.5 | L61: 50.00 | M61: 740.0 | N61: 40 | O61: Successful | P61: 2024-02-09 | S61: N
D62: FINNIFTY 20050 PE 13 FEB | E62: Sell | F62: 110 | H62: 132.5 | K62: =F62-H62 -> -22.5 | L62: 50.00 | N62: 40
A63: 14 | B63: 2024-01-09 | D63: HDFCBANK 1420 CE 29 FEB | E63: Buy | F63: 31-32 | J63: Open | S63: H
D64: HDFCBANK 1460 CE 29 FEB | E64: Sell | F64: 15.5-16.5
A65: 15 | B65: 2024-01-09 | D65: NIFTY 21500 PE 15 FEB | E65: Buy | F65: 84-88 | J65: Open | S65: H
D66: NIFTY 21200 PE 15 FEB | E66: Sell | F66: 32-36
A67: 16 | B67: 2024-01-09 | D67: FINNIFTY 20200 CE 13 FEB | E67: Sell | F67: 80 | H67: 119 | J67: Loss of Rs.3/- | K67: =F67-H67 -> -39 | L67: 50.00 | M67: -220.0 | N67: 40 | O67: Unsuccessful | P67: 2024-02-09 | S67: N
D68: FINNIFTY 20000 PE 13 FEB | E68: Sell | F68: 66 | H68: 30 | K68: =F68-H68 -> 36 | L68: 50.00 | N68: 40
A75: Techno -Funda (positional)
A76: Sr.no | B76: Date | D76: Company | E76: Rec | F76: Rec Price | G76: Stop Loss*** | H76: Call Closed At | I76: Target | J76: Remark | K76: Profit / Loss per Share/Lot | L76: All charges | M76: Net Gain / Loss % | N76: Status | O76: Closed Date | P76: Market Closing Price | Q76: Second Buying Date
A77: 1 | B77: 2023-11-22 | D77: CAMS | E77: Accu | F77: 2715 | G77: 2480 | H77: 2975 | I77: 3100-3300 | J77: Profit of Rs.260/- | K77: =H77-F77 -> 260 | L77: =(F77*-0.3)/100 -> -8.15 | M77: =(K77+L77)/F77 -> 9.28% | N77: Successful | O77: 2024-02-06 | S77: H
A78: 2 | B78: 2023-12-01 | D78: HLEGLAS | E78: Accu | F78: 502.50-542.5 | G78: 477 | I78: 600-650 | J78: Open | P78: =VLOOKUP(D78,'MidCap Intra'!$B$11:$C$568,2,0) -> 518.25 | S78: H
A79: 3 | B79: 2023-12-11 | D79: LATENTVIEW | E79: Accu | F79: 465 | G79: 390 | H79: 517.5 | I79: 545-625 | J79: Profit of Rs.52.5/- | K79: =H79-F79 -> 52.5 | L79: =(F79*-0.3)/100 -> -1.40 | M79: =(K79+L79)/F79 -> 10.99% | N79: Successful | O79: 2024-02-06 | S79: H
A82: CLBS = Closing Basis *** | F82: Reinitiated $
A83: Dividend adjusted <> | F83: Revised stoploss # | H83: .................
B92: Investment Idea
A93: Sr.no | B93: Date | D93: Company | E93: Rec | F93: Rec Price | G93: Point of Review | H93: Close Rate | I93: Target | J93: Remark | K93: Profit / Loss per Share | L93: Gain / Loss % | M93: Status | N93: Closed Date
A94: 1 | B94: 2013-11-01 | D94: L&T Finance Holding | E94: Accu | F94: 82.00 | G94: - | H94: 100 | I94: 100.00 | J94: Target Achieved | K94: =H94-F94 -> 18.00 | L94: =K94/F94 -> 21.95% | M94: Successful | N94: 2016-10-14
A95: 2 | B95: 2014-06-04 | D95: Finolex Inds | E95: Buy | F95: 257.00 | G95: - | H95: 300 | I95: 300.00 | J95: Target Achieved | K95: 43.00 | L95: 16.73% | M95: Successful | N95: 2014-07-02
A96: 3 | B96: 2014-07-08 | D96: JK Cement | E96: Buy | F96: 393.00 | G96: - | H96: 468 | I96: 468.00 | J96: Target Achieved | K96: 75.00 | L96: 19.08% | M96: Successful | N96: 2014-08-12
A97: 4 | B97: 2014-08-06 | D97: Finolex Cables | E97: Buy | F97: 205.00 | G97: - | H97: 275 | I97: 250.00 | J97: Target Achieved | K97: 70.00 | L97: 34.15% | M97: Successful | N97: 2014-11-19
A98: 5 | B98: 2014-09-04 | D98: Exide Inds | E98: Buy | F98: 162.00 | G98: - | H98: 190 | I98: 190.00 | J98: Target Achieved | K98: 28.00 | L98: 17.28% | M98: Successful | N98: 2015-01-02
A99: 6 | B99: 2014-09-04 | D99: Deepak Nitrite | E99: Buy | F99: 75.00 | G99: - | H99: 91.5 | I99: 95-100 | J99: Profit of Rs.16.50/- | K99: 16.50 | L99: 22.00% | M99: Successful | N99: 2014-11-11
A100: 7 | B100: 2014-10-01 | D100: Mercks | E100: Buy | F100: 850.00 | G100: - | H100: 982.5 | I100: 1050.00 | J100: Profit of Rs.132.50/- | K100: 132.50 | L100: 15.59% | M100: Successful | N100: 2015-02-04
A101: 8 | B101: 2014-10-01 | D101: Grindwell Norton | E101: Buy | F101: 475.00 | G101: - | H101: 515 | I101: 600.00 | J101: Profit of Rs.40/- | K101: 40.00 | L101: 8.42% | M101: Successful | N101: 2014-10-27
A102: 9 | B102: 2014-10-01 | D102: Snowman Logistics | E102: Buy | F102: 86.00 | G102: - | H102: 99 | I102: 140.00 | J102: Profit of Rs.13.00/- | K102: 13.00 | L102: 15.12% | M102: Successful | N102: 2014-10-27
A103: 10 | B103: 2014-10-14 | D103: Birla Corp | E103: Buy | F103: 496.60 | G103: - | H103: 621 | I103: 580.00 | J103: Target Achieved | K103: 124.40 | L103: 25.05% | M103: Successful | N103: 2016-08-23
A104: 11 | B104: 2014-10-14 | D104: Ultratech Cem | E104: Buy | F104: 2481.90 | G104: - | H104: 2840 | I104: 2870.00 | J104: Profit of Rs.358.10/- | K104: 358.10 | L104: 14.43% | M104: Successful | N104: 2015-01-13
A105: 12 | B105: 2014-10-16 | D105: Sintex Inds | E105: Buy | F105: 84.50 | G105: - | H105: 93 | I105: 110.00 | J105: Profit of Rs.8.50/- | K105: 8.50 | L105: 10.06% | M105: Successful | N105: 2014-10-27
A106: 13 | B106: 2014-10-16 | D106: HSIL | E106: Buy | F106: 401.00 | G106: - | H106: 428 | I106: 450.00 | J106: Profit of Rs.27.00/- | K106: 27.00 | L106: 6.73% | M106: Successful | N106: 2015-01-16
A107: 14 | B107: 2014-10-16 | D107: Eveready Inds | E107: Buy | F107: 101.00 | G107: - | H107: 112 | I107: 120.00 | J107: Profit of Rs.11.00/- | K107: 11.00 | L107: 10.89% | M107: Successful | N107: 2014-10-27
A108: 15 | B108: 2014-11-11 | D108: Pennar Inds | E108: Buy | F108: 59.00 | G108: - | H108: 76 | I108: 76.00 | J108: Target Achieved | K108: 17.00 | L108: 28.81% | M108: Successful | N108: 2017-10-24
A109: 16 | B109: 2014-11-11 | D109: Snowman Logistics | E109: Buy | F109: 99.00 | G109: - | H109: 120 | I109: 120.00 | J109: Profit of Rs.21/- | K109: 21.00 | L109: 21.21% | M109: Successful | N109: 2014-11-17
A110: 17 | B110: 2014-11-13 | D110: Dharamsi Morarji Chem | E110: Buy | F110: 22.00 | G110: - | H110: 33.55 | I110: 32.00 | J110: Profit of Rs 11.55/- | K110: 11.55 | L110: 52.50% | M110: Successful | N110: 2015-07-03
A111: 18 | B111: 2014-12-03 | D111: Tatachem | E111: Buy | F111: 440.00 | G111: - | H111: 520 | I111: 520.00 | J111: Profit of Rs 80.00/- | K111: 80.00 | L111: 18.18% | M111: Successful | N111: 2015-07-23
A112: 19 | B112: 2014-12-03 | D112: Advanta | E112: Buy | F112: 360.00 | G112: - | H112: 427 | I112: 425.00 | J112: Profit of Rs.67.00/- | K112: 67.00 | L112: 18.61% | M112: Successful | N112: 2015-02-23
A113: 20 | B113: 2015-01-08 | D113: GDL | E113: Buy | F113: 360.00 | G113: - | H113: 455 | I113: 420.00 | J113: Profit of Rs.95.00/- | K113: 95.00 | L113: 26.39% | M113: Successful | N113: 2015-01-20
A114: 21 | B114: 2015-01-08 | D114: NRB Bearing | E114: Buy | F114: 130.00 | H114: 175.5 | I114: 165.00 | J114: Profit of Rs 45.50/- | K114: 45.50 | L114: 35.00% | M114: Successful | N114: 2017-12-19
A115: 22 | B115: 2015-02-05 | D115: GSFC | E115: Accu | F115: 98.00 | H115: 120 | I115: 120.00 | J115: Target Achieved | K115: 22.00 | L115: 22.45% | M115: Successful | N115: 2017-01-18
A116: 23 | B116: 2015-02-05 | D116: Sundrmfast | E116: Accu | F116: 196.00 | H116: 262 | I116: 255.00 | J116: Target Achieved | K116: 66.00 | L116: 33.67% | M116: Successful | N116: 2016-08-17
A117: 24 | B117: 2015-03-04 | D117: GPPL | E117: Accu | F117: 235 | H117: 77.00 | I117: 280-285 | J117: Loss of Rs.158/- | K117: -158.00 | L117: -67.23% | M117: Unsuccessful | N117: 2019-02-26
A118: 25 | B118: 2015-03-04 | D118: ORIENTCEM | E118: Accu | F118: 185.00 | H118: 224 | I118: 220-225 | J118: Target Achieved | K118: 39.00 | L118: 21.08% | M118: Successful | N118: 2016-10-04
A119: 26 | B119: 2015-03-27 | D119: PFS | E119: Accu | F119: 49.5 | H119: 15.85 | I119: 67.00 | J119: Loss of Rs.33.65/- | K119: -33.65 | L119: -68% | M119: Unsuccessful | N119: 2019-06-11
A120: 27 | B120: 2015-03-30 | D120: Walchandnagar Ind Ltd | E120: Accu | F120: 183.50 | H120: 219 | I120: 218.00 | J120: Profit of Rs.35.50/- | K120: 35.50 | L120: 19.35% | M120: Successful | N120: 2015-04-09
A121: 28 | B121: 2015-04-20 | D121: Kalpataru Power Transmission Ltd | E121: Accu | F121: =(227+237)/2 -> 232.00 | H121: 298 | I121: 298.00 | J121: Target Achieved | K121: 66.00 | L121: 28.45% | M121: Successful | N121: 2017-03-29
A122: 29 | B122: 2015-05-04 | D122: Mastek Ltd | E122: Buy | F122: 385.00 | H122: =212.5+331 -> 543.5 | I122: 510.00 | J122: Profit of Rs 158.50/- | K122: 158.50 | L122: 41.17% | M122: Successful | N122: 2015-08-19
A123: 30 | B123: 2015-05-04 | D123: Suprajit Eng | E123: Buy | F123: 115.50 | H123: 146 | I123: 142.00 | J123: Profit of Rs 30.50/- | K123: 30.50 | L123: 26.41% | M123: Successful | N123: 2015-07-17
A124: 31 | B124: 2015-05-27 | D124: TCI | E124: Buy | F124: 237.50 | H124: 279.5 | I124: 278.00 | J124: Target Achieved | K124: 42.00 | L124: 17.68% | M124: Successful | N124: 2015-08-06
A125: 32 | B125: 2015-06-19 | D125: HSIL | E125: Accu | F125: 340.00 | H125: 448 | I125: 448.00 | J125: Target Achieved | K125: 108.00 | L125: 31.76% | M125: Successful | N125: 2017-10-10
A126: 33 | B126: 2015-07-06 | D126: Capital First | E126: Accu | F126: 390.00 | H126: 460 | I126: 460.00 | J126: Target Achieved | K126: 70.00 | L126: 17.95% | M126: Successful | N126: 2016-04-18
A127: 34 | B127: 2015-07-10 | D127: Dolphin OffShore | E127: Accu | F127: 122.5 | H127: 61.00 | I127: 172.00 | J127: Loss of Rs.61.50/- | K127: -61.50 | L127: -50.20% | M127: Unsuccessful | N127: 2018-08-21
A128: 35 | B128: 2015-08-03 | D128: Allcargo logistics | E128: Accu | F128: 297.50 | H128: 350 | I128: 360.00 | J128: Profit of Rs 52.50/- | K128: 52.50 | L128: 17.65% | M128: Successful | N128: 2015-08-16
A129: 36 | B129: 2015-08-03 | D129: Camline Fine | E129: Accu | F129: 115.50 | H129: 149 | I129: 140.00 | J129: Profit of Rs 33.50/- | K129: 33.50 | L129: 29.00% | M129: Successful | N129: 2017-01-05
A130: 37 | B130: 2015-09-04 | D130: TCI | E130: Accu | F130: 226.00 | H130: 292 | I130: 292.00 | J130: Target Achieved | K130: 66.00 | L130: 29.20% | M130: Successful | N130: 2015-10-09
A131: 38 | B131: 2015-09-07 | D131: Kalpataru Power Transmission Ltd | E131: Accu | F131: 232.50 | H131: 312.5 | I131: 310.00 | J131: Target Achieved | K131: 80.00 | L131: 34.41% | M131: Successful | N131: 2017-03-29
A132: 39 | B132: 2015-09-21 | D132: LLOYD ELECTRIC & ENG LTD | E132: Accu | F132: 196.50 | H132: 238 | I132: 238.00 | J132: Target Achieved | K132: 41.50 | L132: 21.12% | M132: Successful | N132: 2015-10-14
A133: 40 | B133: 2015-09-24 | D133: L&T Finance Holding | E133: Accu | F133: 65.00 | H133: 82 | I133: 82.00 | J133: Target Achieved | K133: 17.00 | L133: 26.15% | M133: Successful | N133: 2016-07-27
A134: 41 | B134: 2015-10-14 | D134: KEC International ltd | E134: Accu | F134: 144.00 | H134: 182.5 | I134: 181.00 | J134: Target Achieved | K134: 38.50 | L134: 26.74% | M134: Successful | N134: 2017-03-23
A135: 42 | B135: 2015-10-14 | D135: Gruh Finance | E135: Accu | F135: 264.00 | H135: 311 | I135: 311.00 | J135: Target Achieved | K135: 47.00 | L135: 17.80% | M135: Successful | N135: 2016-08-22
A136: 43 | B136: 2015-11-10 | D136: Pidilitind | E136: Buy | F136: 549.50 | H136: 630 | I136: 630.00 | J136: Target Achieved | K136: 80.50 | L136: 14.65% | M136: Successful | N136: 2016-02-19
A137: 44 | B137: 2015-12-04 | D137: Zensar Technology | E137: Accu | F137: 1027.50 | H137: 1315 | I137: 1250.00 | J137: Target Achieved | K137: 287.50 | L137: 27.98% | M137: Successful | N137: 2018-05-24
A138: 45 | B138: 2015-12-29 | D138: Vinati Organics Ltd | E138: Accu | F138: 465.00 | H138: 540 | I138: 540.00 | J138: Target Achieved | K138: 75.00 | L138: 16.13% | M138: Successful | N138: 2016-06-09
A139: 46 | B139: 2016-01-11 | D139: GSFC | E139: Buy | F139: 81.00 | H139: 110 | I139: 110.00 | J139: Target Achieved | K139: 29.00 | L139: 35.80% | M139: Successful | N139: 2017-01-10
A140: 47 | B140: 2016-01-13 | D140: SSWL | E140: Buy | F140: 417.50 | H140: 547 | I140: 535.00 | J140: Target Achieved | K140: 129.50 | L140: 31.02% | M140: Successful | N140: 2016-07-27
A141: 48 | B141: 2016-02-08 | D141: Persistent System Ltd | E141: Accu | F141: 650.00 | H141: 800 | I141: 800.00 | J141: Target Achieved | K141: 150.00 | L141: 23.08% | M141: Successful | N141: 2018-02-23
A142: 49 | B142: 2016-03-04 | D142: UPL | E142: Accu | F142: 437.50 | H142: 504.5 | I142: 522.00 | J142: Profit of Rs.67/- | K142: 67.00 | L142: 15.31% | M142: Successful | N142: 2016-04-20
A143: 50 | B143: 2016-03-09 | D143: Ashoka Buildcon Ltd | E143: Accu | F143: 189.50 | H143: 218 | I143: 218.00 | J143: Target Achieved | K143: 28.50 | L143: 15.04% | M143: Successful | N143: 2017-10-26
A144: 51 | B144: 2016-04-11 | D144: PTC INDIA FIN SERV LTD | E144: Accu | F144: 36.5 | H144: 15.85 | I144: 60.00 | J144: Loss of Rs.20.65/- | K144: -20.65 | L144: -56.58% | M144: Unsuccessful | N144: 2019-06-11
A145: 52 | B145: 2016-04-12 | D145: CAMLINFINE $ | E145: Accu | F145: 93.00 | H145: 149 | I145: 140.00 | J145: Profit of Rs 56/- | K145: 56.00 | L145: 60.22% | M145: Successful | N145: 2017-01-05
A146: 53 | B146: 2016-04-12 | D146: Greaves Cotton Ltd. | E146: Accu | F146: 130.00 | H146: 150 | I146: 150-155 | J146: Target Achieved | K146: 20.00 | L146: 15.38% | M146: Successful | N146: 2016-07-13
A147: 54 | B147: 2016-04-13 | D147: DHFL | E147: Accu | F147: 196.00 | H147: 299 | I147: 299.00 | J147: Target Achieved | K147: 103.00 | L147: 52.55% | M147: Successful | N147: 2016-09-07
A148: 55 | B148: 2016-04-13 | D148: Magma | E148: Accu | F148: 88.00 | H148: 103 | I148: 103.00 | J148: Target Achieved | K148: 15.00 | L148: 17.05% | M148: Successful | N148: 2016-06-09
A149: 56 | B149: 2016-05-02 | D149: KEC International ltd $ | E149: Accu | F149: 127.50 | H149: 148 | I149: 148-150 | J149: Target Achieved | K149: =H149-F149 -> 20.50 | L149: =K149/F149 -> 16.08% | M149: Successful | N149: 2016-07-13
A150: 57 | B150: 2016-05-03 | D150: Mindtree | E150: Accu | F150: 675.00 | H150: 815 | I150: 790-800 | J150: Target Achieved | K150: 140.00 | L150: 20.74% | M150: Successful | N150: 2018-02-23
A151: 58 | B151: 2016-06-01 | D151: Atulauto | E151: Accu | F151: 500 | H151: 232.50 | I151: 565-570 | J151: Loss of Rs.267.50 /- | K151: -267.50 | L151: -53.50% | M151: Unsuccessful | N151: 2019-09-27
A152: 59 | B152: 2016-06-06 | D152: TRITURBINE | E152: Accu | F152: 110.00 | H152: 126.5 | I152: 125.00 | J152: Profit of Rs.16.50/- | K152: 16.50 | L152: 15.00% | M152: Successful | N152: 2016-07-01
A153: 60 | B153: 2016-06-17 | D153: Pennar Industries Ltd | E153: Accu | F153: 44.00 | H153: 69.5 | I153: 69.50 | J153: Profit of Rs.25.50/- | K153: 25.50 | L153: 57.95% | M153: Successful | N153: 2017-08-30
A154: 61 | B154: 2016-06-28 | D154: EVEREADY | E154: Accu | F154: 262.50 | H154: 340 | I154: 333.00 | J154: Profit of Rs.77.50/- | K154: 77.50 | L154: 29.52% | M154: Successful | N154: 2017-10-09
A155: 62 | B155: 2016-06-28 | D155: FIEMIND | E155: Accu | F155: 840.00 | H155: 1230 | I155: 1230.00 | J155: Target Achieved | K155: 390.00 | L155: 46.43% | M155: Successful | N155: 2016-10-06
A156: 63 | B156: 2016-07-05 | D156: Bajaj Corp Ltd | E156: Accu | F156: 395 | H156: =(468.5+342.5)/2 -> 405.50 | I156: 510.00 | J156: Profit of Rs.10.50/- | K156: =H156-F156 -> 10.50 | L156: =K156/F156 -> 3% | M156: Neutral | N156: 2019-05-21
A157: 64 | B157: 2016-08-02 | D157: GPPL $ | E157: Buy | F157: =169.5-12.8 -> 156.7 | H157: 77.00 | I157: 198-200 | J157: Loss of Rs.79.7/- | K157: -79.70 | L157: -50.86% | M157: Unsuccessful | N157: 2019-02-26
A158: 65 | B158: 2016-08-04 | D158: WONDERLA HOLIDAYS LTD | E158: Accu | F158: 400 | H158: 305.00 | I158: 475.00 | J158: Loss of Rs.95/- | K158: -95.00 | L158: -23.75% | M158: Unsuccessful | N158: 2019-05-21
A159: 66 | B159: 2016-08-11 | D159: CAMLINFINE | E159: Accu | F159: 86.50 | H159: 130 | I159: 130.00 | J159: Profit of Rs.43.50/- | K159: 43.50 | L159: 50.29% | M159: Successful | N159: 2017-12-22
A160: 67 | B160: 2016-08-18 | D160: GRANULES | E160: Accu | F160: 133.5 | H160: 126.50 | I160: 178.00 | J160: Exit | K160: -7.00 | L160: -5.24% | M160: Unsuccessful | N160: 2016-09-02
A161: 68 | B161: 2016-08-31 | D161: VA TECH WABAG | E161: Accu | F161: 560.00 | H161: 725 | I161: 725.00 | J161: Target Achieved | K161: 165.00 | L161: 29.46% | M161: Successful | N161: 2016-03-27
A162: 69 | B162: 2016-09-01 | D162: SKIPPER LIMITED | E162: Accu | F162: 160.50 | H162: 210 | I162: 210.00 | J162: Target Achieved | K162: 49.50 | L162: 30.84% | M162: Successful | N162: 2017-05-16
A163: 70 | B163: 2016-10-03 | D163: IFBIND | E163: Accu | F163: 430.00 | H163: 596 | I163: 575.00 | J163: Profit of Rs.166/- | K163: 166.00 | L163: 38.60% | M163: Successful | N163: 2017-02-03
A164: 71 | B164: 2016-10-14 | D164: ASIANTILES | E164: Accu | F164: 280.00 | H164: 345 | I164: 345.00 | J164: Target Achieved | K164: =H164-F164 -> 65.00 | L164: =K164/F164 -> 23.21% | M164: Successful | N164: 2017-03-20
A165: 72 | B165: 2016-10-14 | D165: DEEPIND | E165: Accu | F165: 245.00 | H165: 325.5 | I165: 330.00 | J165: Profit of Rs.80.5/- | K165: 80.50 | L165: 32.86% | M165: Successful | N165: 2017-02-03
A166: 73 | B166: 2016-10-17 | D166: DCBBANK | E166: Accu | F166: 125.00 | H166: 160 | I166: 160.00 | J166: Target Achieved | K166: 35.00 | L166: 28.00% | M166: Successful | N166: 2017-03-09
A167: 74 | B167: 2016-10-17 | D167: ORIENTREF | E167: Accu | F167: 114.00 | H167: 145 | I167: 145.00 | J167: Target Achieved | K167: 31.00 | L167: =K167/F167 -> 27.19% | M167: Successful | N167: 2017-05-04
A168: 75 | B168: 2016-10-17 | D168: GANECOS | E168: Accu | F168: 212.00 | H168: 280 | I168: 276.00 | J168: Profit of Rs.68/- | K168: 68.00 | L168: 32.08% | M168: Successful | N168: 2017-05-03
A169: 76 | B169: 2016-11-04 | D169: NBCC | E169: Accu | F169: 155.00 | H169: 210 | I169: 210.00 | J169: Profit of Rs.55/- | K169: 55.00 | L169: 35.48% | M169: Successful | N169: 2017-07-28
A170: 77 | B170: 2016-12-06 | D170: PRECAM | E170: Accu | F170: 150.5 | H170: 72.50 | I170: 174.00 | J170: Loss of Rs.78/- | K170: -78.00 | L170: -51.83% | M170: Unsuccessful | N170: 2018-08-21
A171: 78 | B171: 2016-12-08 | D171: INFRATEL | E171: Accu | F171: 380.00 | H171: 478 | I171: 468.00 | J171: Target Achieved | K171: =H171-F171 -> 98.00 | L171: =K171/F171 -> 25.79% | M171: Successful | N171: 2017-10-17
A172: 79 | B172: 2016-12-30 | D172: GODREJPROP | E172: Accu | F172: 305.00 | H172: 375 | I172: 375.00 | J172: Target Achieved | K172: 70.00 | L172: 22.95% | M172: Successful | N172: 2017-02-02
A173: 80 | B173: 2017-01-04 | D173: DEEPAKNTR | E173: Accu | F173: 99.50 | H173: 158 | I173: 158.00 | J173: Target Achieved | K173: 58.50 | L173: 58.79% | M173: Successful | N173: 2017-06-12
A174: 81 | B174: 2017-01-04 | D174: DEEPAKNTR | E174: Accu | F174: 99.50 | H174: 158 | I174: 158.00 | J174: Target Achieved | K174: 58.50 | L174: 58.79% | M174: Successful | N174: 2017-06-12
A175: 82 | B175: 2017-02-20 | D175: RECLTD | E175: Accu | F175: 140.50 | H175: 220 | I175: 220.00 | J175: Target Achieved | K175: =H175-F175 -> 79.50 | L175: =K175/F175 -> 56.58% | M175: Successful | N175: 2017-05-09
A176: 83 | B176: 2017-02-20 | D176: SUBROS | E176: Accu | F176: 202.50 | H176: 234 | I176: 234.00 | J176: Target Achieved | K176: 31.50 | L176: 15.56% | M176: Successful | N176: 2017-04-11
A177: 84 | B177: 2017-03-24 | D177: VRLLOG | E177: Accu | F177: 300.50 | H177: 417.5 | I177: 420.00 | J177: Profit of Rs.117/- | K177: =H177-F177 -> 117.00 | L177: =K177/F177 -> 38.94% | M177: Successful | N177: 2017-12-01
A178: 85 | B178: 2017-03-24 | D178: FIEMIND | E178: Accu | F178: 850.00 | H178: 1042.5 | I178: 1023.00 | J178: Profit of Rs 192.50/- | K178: 192.50 | L178: 22.65% | M178: Successful | N178: 2017-04-05
A179: 86 | B179: 2017-04-05 | D179: RATNAMANI | E179: Accu | F179: 785.00 | H179: 930 | I179: 920.00 | J179: Profit of Rs.145/- | K179: =H179-F179 -> 145.00 | L179: =K179/F179 -> 18.47% | M179: Successful | N179: 2017-08-29
A180: 87 | B180: 2017-04-06 | D180: ZEEMEDIA | E180: Accu | F180: 40 | H180: 13.10 | I180: 60.00 | J180: Loss of Rs.26.9/- | K180: -26.90 | L180: -67.25% | M180: Unsuccessful | N180: 2018-02-07
A181: 88 | B181: 2017-04-12 | D181: DABUR | E181: Accu | F181: 289.50 | H181: 354 | I181: 360.00 | J181: Profit of Rs.64.5/- | K181: =H181-F181 -> 64.50 | L181: =K181/F181 -> 22.28% | M181: Successful | N181: 2017-11-01
A182: 89 | B182: 2017-04-20 | D182: KPRMILL | E182: Accu | F182: 700.00 | H182: 840 | I182: 840.00 | J182: Profit of Rs.140/- | K182: 140.00 | L182: 20.00% | M182: Successful | N182: 2017-06-07
A183: 90 | B183: 2017-06-01 | D183: ESSELPACK | E183: Accu | F183: 130.00 | H183: 144.25 | I183: 170.00 | J183: Profit of Rs.14.25/- | K183: 14.25 | L183: 10.96% | M183: Successful | N183: 2019-07-29
A184: 91 | B184: 2017-06-15 | D184: KEI | E184: Accu | F184: 214.50 | H184: 262 | I184: 262.00 | J184: Profit of Rs.47.5/- | K184: 47.50 | L184: 22.14% | M184: Successful | N184: 2017-08-30
A185: 92 | B185: 2017-07-17 | D185: MAYURUNIQ | E185: Accu | F185: 370.00 | H185: 447.5 | I185: 450.00 | J185: Target Achieved | K185: 77.50 | L185: 20.95% | M185: Successful | N185: 2017-10-27
A186: 93 | B186: 2017-07-27 | D186: RAMCOCEM | E186: Accu | F186: 657.50 | H186: 825 | I186: 820.00 | J186: Target Achieved | K186: 167.50 | L186: 25.48% | M186: Successful | N186: 2017-12-21
A187: 94 | B187: 2017-08-17 | D187: FINPIPE | E187: Accu | F187: 605.00 | H187: 750 | I187: 750.00 | J187: Profit of Rs.145/- | K187: 145.00 | L187: 23.97% | M187: Successful | N187: 2017-10-19
A188: 95 | B188: 2017-09-01 | D188: SHK | E188: Accu | F188: 255 | H188: 217.25 | I188: 320.00 | J188: Loss of Rs.37.75/- | K188: -37.75 | L188: -15% | M188: Unsuccessful | N188: 2019-07-15
A189: 96 | B189: 2017-09-19 | D189: SKIPPER | E189: Accu | F189: 215.00 | H189: 258 | I189: 258.00 | J189: Target Achieved | K189: 43.00 | L189: 20.00% | M189: Successful | N189: 2017-11-01
A190: 97 | B190: 2017-09-19 | D190: SKIPPER | E190: Accu | F190: 215.00 | H190: 258 | I190: 258.00 | J190: Target Achieved | K190: 43.00 | L190: 20.00% | M190: Successful | N190: 2017-11-01
A191: 98 | B191: 2017-09-20 | D191: CAMLINFINE$ | E191: Accu | F191: 75.00 | H191: 90 | I191: 90.00 | J191: Profit of Rs.15.00/- | K191: =H191-F191 -> 15.00 | L191: =K191/F191 -> 20.00% | M191: Successful | N191: 2017-10-11
A192: 99 | B192: 2017-10-03 | D192: GNA | E192: Accu | F192: 315.00 | H192: 392 | I192: 384.00 | J192: Profit of Rs.77/- | K192: 77.00 | L192: 24.44% | M192: Successful | N192: 2017-10-09
A193: 100 | B193: 2017-10-05 | D193: NOCIL | E193: Accu | F193: 145.00 | H193: 179 | I193: 180.00 | J193: Profit of Rs.34/- | K193: 34.00 | L193: 23.45% | M193: Successful | N193: 2017-10-17
A194: 101 | B194: 2017-10-06 | D194: CENTURYPLY | E194: Accu | F194: 256.00 | H194: 323 | I194: 320.00 | J194: Target Achieved | K194: 67.00 | L194: 26.17% | M194: Successful | N194: 2017-11-28
A195: 102 | B195: 2017-10-09 | D195: EIHOTEL | E195: Accu | F195: 137.50 | H195: 184 | I195: 183.00 | J195: Profit of Rs.46.5/- | K195: 46.50 | L195: 33.82% | M195: Successful | N195: 2018-01-08
A196: 103 | B196: 2017-10-10 | D196: NRBBEARING | E196: Accu | F196: 125.50 | H196: 158 | I196: 155.00 | J196: Profit of Rs.32.5/- | K196: 32.50 | L196: 25.90% | M196: Successful | N196: 2017-11-28
A197: 104 | B197: 2017-10-10 | D197: BOROSIL | E197: Accu | F197: 895.00 | H197: 1122.5 | I197: 1078.00 | J197: Profit of Rs.227.5/- | K197: 227.50 | L197: 25.42% | M197: Successful | N197: 2018-01-17
A198: 105 | B198: 2017-10-12 | D198: CYIENT | E198: Accu | F198: 525.00 | H198: 629 | I198: 629.00 | J198: Target Achieved | K198: 104.00 | L198: 19.81% | M198: Successful | N198: 2018-01-19
A199: 106 | B199: 2017-11-07 | D199: HATSUN | E199: Accu | F199: 740.00 | H199: 892.5 | I199: 900.00 | J199: Profit of Rs.152.5/- | K199: =H199-F199 -> 152.50 | L199: =K199/F199 -> 20.61% | M199: Successful | N199: 2017-11-13
A200: 107 | B200: 2017-12-04 | D200: SANGHIIND | E200: Accu | F200: 118.50 | H200: 143.5 | I200: 145.00 | J200: Profit of Rs.25/- | K200: 25.00 | L200: 21.10% | M200: Successful | N200: 2017-12-28
A201: 108 | B201: 2017-12-21 | D201: KAJARIACER | E201: Accu | F201: 715 | H201: 500.00 | I201: 872.00 | J201: Loss of Rs.215/- | K201: -215.00 | L201: -30.07% | M201: Unsuccessful | N201: 2019-07-24
A202: 109 | B202: 2017-12-29 | D202: GNA | E202: Accu | F202: 435.00 | H202: 542.5 | I202: 539.00 | J202: Target Achieved | K202: 107.50 | L202: 24.71% | M202: Successful | N202: 2018-04-16
A203: 110 | B203: 2017-12-29 | D203: ZENSARTECH | E203: Accu | F203: 885.00 | H203: 1090 | I203: 1084.00 | J203: Target Achieved | K203: 205.00 | L203: 23.16% | M203: Successful | N203: 2018-04-23
A204: 111 | B204: 2018-04-02 | D204: EVERESTIND | E204: Accu | F204: 478.50 | H204: 442 | I204: 613.00 | J204: Loss of Rs.36.50 /- | K204: =H204-F204 -> -36.50 | L204: =K204/F204 -> -7.63% | M204: Unsuccessful | N204: 2019-10-24
A205: 112 | B205: 2018-04-04 | D205: GPPL$ | E205: Accu | F205: =141.5-7.3 -> 134.2 | H205: 77.00 | I205: 180.00 | J205: Loss of Rs.57.2/- | K205: -57.20 | L205: -42.62% | M205: Unsuccessful | N205: 2019-02-26
A206: 113 | B206: 2018-04-19 | D206: MANPASAND | E206: Accu | F206: 430 | H206: 220.00 | I206: 537.00 | J206: Loss of Rs.210/- | K206: -210.00 | L206: -48.84% | M206: Unsuccessful | N206: 2018-06-01
A207: 114 | B207: 2018-04-30 | D207: HEIDELBERG | E207: Accu | F207: 153.5 | H207: 196 | I207: 196.00 | J207: Profit of Rs.42.50/- | K207: 42.50 | L207: 27.69% | M207: Successful | N207: 2019-05-20
A208: 115 | B208: 2018-07-25 | D208: ZEEMEDIA | E208: Accu | F208: 27.5 | H208: 13.10 | I208: 60.00 | J208: Loss of Rs.14.40/- | K208: -14.40 | L208: -52.36% | M208: Unsuccessful | N208: 2018-02-07
A209: 116 | B209: 2018-08-06 | D209: GABRIEL | E209: Accu | F209: 148.5 | H209: 102 | I209: 182.00 | J209: Loss of Rs.46.50/- | K209: =H209-F209 -> -46.50 | L209: =K209/F209 -> -31.31% | M209: Unsuccessful | N209: 2019-07-15
A210: 117 | B210: 2018-08-23 | D210: INDIANHUME | E210: Accu | F210: 285 | H210: 355 | I210: 364.00 | J210: Profit of Rs.70/- | K210: 70.00 | L210: 24.56% | M210: Successful | N210: 2018-12-21
A211: 118 | B211: 2018-08-29 | D211: GRINDWELL | E211: Accu | F211: 525 | H211: 585 | I211: 635.00 | J211: Profit of Rs.60- | K211: =H211-F211 -> 60.00 | L211: =K211/F211 -> 11.43% | M211: Successful | N211: 2019-07-16
A212: 119 | B212: 2018-10-22 | D212: FINPIPE | E212: Accu | F212: 475 | H212: 574 | I212: 570.00 | J212: Target Achieved | K212: 99.00 | L212: 20.84% | M212: Successful | N212: 2018-10-30
A213: 120 | B213: 2018-10-24 | D213: GULFOILLUB | E213: Accu | F213: 707.5 | H213: 872 | I213: 872.00 | J213: Target Achieved | K213: 164.50 | L213: 23.25% | M213: Successful | N213: 2019-01-17
A214: 121 | B214: 2018-10-25 | D214: DBCORP | E214: Accu | F214: 162 | H214: 204 | I214: 209.00 | J214: Profit of Rs.42/- | K214: 42.00 | L214: 25.93% | M214: Successful | N214: 2019-03-15
A215: 122 | B215: 2018-10-26 | D215: RITES | E215: Accu | F215: 240 | H215: 297 | I215: 297.00 | J215: Target Achieved | K215: 57.00 | L215: 23.75% | M215: Successful | N215: 2018-11-13
A216: 123 | B216: 2018-12-05 | D216: BRIGADE | E216: Accu | F216: 202.5 | H216: 255 | I216: 252.00 | J216: Target Achieved | K216: 52.50 | L216: 25.93% | M216: Successful | N216: 2019-03-18 | S216: V
A217: 124 | B217: 2018-12-31 | D217: JKCEMENT | E217: Accu | F217: 710 | H217: 866 | I217: 866.00 | J217: Target Achieved | K217: 156.00 | L217: 21.97% | M217: Successful | N217: 2019-03-29 | S217: V
A218: 125 | B218: 2019-02-26 | D218: MARICO | E218: Accu | F218: 337.25 | H218: 398.5 | I218: 411.00 | J218: Profit of Rs.61.25/- | K218: 61.25 | L218: 18.16% | M218: Successful | N218: 2019-10-22 | S218: V
A219: 126 | B219: 2019-04-04 | D219: ITDCEM | E219: Accu | F219: 130 | H219: 65 | I219: 158.00 | J219: Loss of Rs.65 /- | K219: -65.00 | L219: -50.00% | M219: Unsuccessful | N219: 2019-09-18 | S219: K
A220: 127 | B220: 2017-10-09 | D220: RECLTD | E220: Accu | F220: 141.5 | H220: 183.5 | I220: 210.00 | J220: Profit of Rs.42/- | K220: 42.00 | L220: 29.68% | M220: Successful | N220: 2017-11-03 | S220: K
A221: 128 | B221: 2017-12-05 | D221: ALLCARGO | E221: Accu | F221: 172.00 | H221: 155.25 | I221: 230.00 | J221: Loss of Rs.16.75/- | K221: -16.75 | L221: -9.74% | M221: Unsuccessful | N221: 2019-11-18 | S221: K
A222: 129 | B222: 2018-10-25 | D222: GODREJCP | E222: Accu | F222: 698.5 | H222: 890 | I222: 890.00 | J222: Profit of Rs.191.50/- | K222: 191.50 | L222: 27.42% | M222: Successful | N222: 2021-05-12 | S222: V
A223: 130 | B223: 2017-05-22 | D223: GREAVESCOT | E223: Accu | F223: 127.6 | H223: 138 | I223: 190.00 | J223: Profit of Rs.10.40 | K223: 10.40 | L223: 8.15% | M223: Successful | N223: 2019-11-05 | S223: K
A224: 131 | B224: 2018-02-27 | D224: MOLDTKPAC | E224: Accu | F224: 317 | H224: 382.5 | I224: 398.00 | J224: Profit of Rs.65.5 | K224: 65.50 | L224: 20.66% | M224: Successful | N224: 2021-02-11 | S224: K
A225: 132 | B225: 2018-03-05 | D225: LICHSGFIN | E225: Accu | F225: =510-14.4 -> 495.60 | H225: 350 | I225: 672.00 | J225: Loss of Rs.145.60/- | K225: -145.60 | L225: -29.38% | M225: Unsuccessful | N225: 2020-02-26 | S225: V
A226: 133 | B226: 2018-05-17 | D226: PHILIPCARB | E226: Accu | F226: 230.30 | H226: 102.5 | I226: 348.00 | J226: Loss of Rs.127.80/- | K226: -127.80 | L226: -55.49% | M226: Unsuccessful | N226: 2020-03-06 | S226: V
A227: 134 | B227: 2018-06-07 | D227: KEC | E227: Accu | F227: =342.5-5.1 -> 337.4 | H227: 412.5 | I227: 439.00 | J227: Profit of Rs.75.10 | K227: 75.10 | L227: 22.26% | M227: Successful | N227: 2021-02-03 | S227: K
A228: 135 | B228: 2018-07-04 | D228: ASHOKLEY | E228: Accu | F228: =127.5-5.53 -> 121.97 | H228: 122.50 | I228: 170.00 | J228: Profit of Rs.0.53/- | K228: 0.53 | L228: 0% | M228: Neutral | N228: 2021-08-23 | S228: V
A229: 136 | B229: 2018-07-13 | D229: FCONSUMER | E229: Accu | F229: 46.50 | H229: 17 | I229: 59.00 | J229: Loss of Rs.29.50/- | K229: -29.50 | L229: -63.44% | M229: Unsuccessful | N229: 2020-02-26 | S229: V
A230: 137 | B230: 2018-10-23 | D230: JKPAPER | E230: Accu | F230: 156.5 | H230: 207.5 | I230: 191.00 | J230: Target Achieved | K230: 51.00 | L230: 32.59% | M230: Successful | N230: 2021-06-22 | S230: V
... 71 more rows
